Body Name,Date Paid,Transaction Number,Amount,Supplier Name,Supplier Type,Expense Area,Cost Centre Description,Expense Type
Cambridgeshire County Council,19-Apr-22,51301758918,"-92,065.70",CAMBRIDGE CITY COUNCIL,OTHER PUBLIC BODIES,PH Healthy Lifestyles,Healthy Lifestyles,Professional Fees and Hired Services
Cambridgeshire County Council,01-Apr-22,51301516363,"-67,549.64",BARNARDOS SERVICES LTD,CARE ESTABLISHMENT,Safeguarding East & South Cambs and Cambridge,Family Safeguarding,Grants and Support for other Service Users
Cambridgeshire County Council,01-Apr-22,51301516366,"-67,549.64",BARNARDOS SERVICES LTD,CARE ESTABLISHMENT,Safeguarding East & South Cambs and Cambridge,Family Safeguarding,Grants and Support for other Service Users
Cambridgeshire County Council,26-Apr-22,51301771653,"-42,385.65",Key Living Project,CARE ESTABLISHMENT,LAC Placements,Placements - residential homes,Agency Placements - Out of  County
Cambridgeshire County Council,19-Apr-22,51301767994,"-27,992.30",ST GEORGE'S COURT,CARE ESTABLISHMENT,OP - City & South Blocks,City and South - Long term blocks,Nursing Care
Cambridgeshire County Council,04-Apr-22,51301705346,"-27,272.40","Change, Grow, Live  Services Ltd",COMPANY,Drug & Alcohol Misuse,Adult Treatment Contract,Joint Partnership Funding
Cambridgeshire County Council,01-Apr-22,51301758434,"-26,521.44",Keys PCE Ltd,CARE ESTABLISHMENT,LAC Placements,Placements - residential homes,Agency Placements - Out of  County
Cambridgeshire County Council,19-Apr-22,51301767989,"-17,595.16",BUCHAN HEALTHCARE LTD,CARE ESTABLISHMENT,OP - City & South Blocks,City and South - Long term blocks,Nursing Care
Cambridgeshire County Council,19-Apr-22,51301767989,"-17,595.16",BUCHAN HEALTHCARE LTD,CARE ESTABLISHMENT,OP - City & South Blocks,City and South - Long term blocks,Nursing Care
Cambridgeshire County Council,19-Apr-22,51301767989,"-17,595.16",BUCHAN HEALTHCARE LTD,CARE ESTABLISHMENT,OP - City & South Blocks,City and South - Long term blocks,Nursing Care
Cambridgeshire County Council,19-Apr-22,51301767989,"-17,595.16",BUCHAN HEALTHCARE LTD,CARE ESTABLISHMENT,OP - City & South Blocks,City and South - Long term blocks,Nursing Care
Cambridgeshire County Council,19-Apr-22,51301767989,"-17,595.16",BUCHAN HEALTHCARE LTD,CARE ESTABLISHMENT,OP - City & South Blocks,City and South - Long term blocks,Nursing Care
Cambridgeshire County Council,19-Apr-22,51301767989,"-17,595.16",BUCHAN HEALTHCARE LTD,CARE ESTABLISHMENT,OP - City & South Blocks,City and South - Long term blocks,Nursing Care
Cambridgeshire County Council,19-Apr-22,51301767989,"-17,595.16",BUCHAN HEALTHCARE LTD,CARE ESTABLISHMENT,OP - City & South Blocks,City and South - Long term blocks,Nursing Care
Cambridgeshire County Council,19-Apr-22,51301767989,"-16,795.38",BUCHAN HEALTHCARE LTD,CARE ESTABLISHMENT,OP - City & South Blocks,City and South - Long term blocks,Nursing Care
Cambridgeshire County Council,19-Apr-22,51301767989,"-16,795.38",BUCHAN HEALTHCARE LTD,CARE ESTABLISHMENT,OP - City & South Blocks,City and South - Long term blocks,Nursing Care
Cambridgeshire County Council,19-Apr-22,51301767989,"-16,795.38",BUCHAN HEALTHCARE LTD,CARE ESTABLISHMENT,OP - City & South Blocks,City and South - Long term blocks,Nursing Care
Cambridgeshire County Council,19-Apr-22,51301767989,"-16,795.38",BUCHAN HEALTHCARE LTD,CARE ESTABLISHMENT,OP - City & South Blocks,City and South - Long term blocks,Nursing Care
Cambridgeshire County Council,19-Apr-22,51301767989,"-16,795.38",BUCHAN HEALTHCARE LTD,CARE ESTABLISHMENT,OP - City & South Blocks,City and South - Long term blocks,Nursing Care
Cambridgeshire County Council,19-Apr-22,51301767989,"-16,795.38",BUCHAN HEALTHCARE LTD,CARE ESTABLISHMENT,OP - City & South Blocks,City and South - Long term blocks,Nursing Care
Cambridgeshire County Council,19-Apr-22,51301767989,"-16,795.38",BUCHAN HEALTHCARE LTD,CARE ESTABLISHMENT,OP - City & South Blocks,City and South - Long term blocks,Nursing Care
Cambridgeshire County Council,19-Apr-22,51301767989,"-16,795.38",BUCHAN HEALTHCARE LTD,CARE ESTABLISHMENT,OP - City & South Blocks,City and South - Long term blocks,Nursing Care
Cambridgeshire County Council,19-Apr-22,51301767994,"-15,995.60",ST GEORGE'S COURT,CARE ESTABLISHMENT,OP - City & South Blocks,City and South - Long term blocks,Nursing Care
Cambridgeshire County Council,25-Apr-22,51301770643,"-12,596.56",OPUS LGSS (PEOPLE SOLUTIONS) LTD,TRADE SUPPLIER,Control Accounts,Suspense Account - General,Suspense Items
Cambridgeshire County Council,19-Apr-22,51301767989,"-12,567.97",BUCHAN HEALTHCARE LTD,CARE ESTABLISHMENT,OP - City & South Blocks,City and South - Long term blocks,Nursing Care
Cambridgeshire County Council,19-Apr-22,51301767989,"-11,996.70",BUCHAN HEALTHCARE LTD,CARE ESTABLISHMENT,OP - City & South Blocks,City and South - Long term blocks,Nursing Care
Cambridgeshire County Council,19-Apr-22,51301767989,"-11,996.70",BUCHAN HEALTHCARE LTD,CARE ESTABLISHMENT,OP - City & South Blocks,City and South - Long term blocks,Nursing Care
Cambridgeshire County Council,19-Apr-22,51301767989,"-10,054.38",BUCHAN HEALTHCARE LTD,CARE ESTABLISHMENT,OP - City & South Blocks,City and South - Long term blocks,Nursing Care
Cambridgeshire County Council,19-Apr-22,51301767989,"-10,054.38",BUCHAN HEALTHCARE LTD,CARE ESTABLISHMENT,OP - City & South Blocks,City and South - Long term blocks,Nursing Care
Cambridgeshire County Council,19-Apr-22,51301767989,"-10,054.38",BUCHAN HEALTHCARE LTD,CARE ESTABLISHMENT,OP - City & South Blocks,City and South - Long term blocks,Nursing Care
Cambridgeshire County Council,19-Apr-22,51301767989,"-9,597.36",BUCHAN HEALTHCARE LTD,CARE ESTABLISHMENT,OP - City & South Blocks,City and South - Long term blocks,Nursing Care
Cambridgeshire County Council,19-Apr-22,51301767978,"-9,553.74",BROOK HEALTHCARE,CARE ESTABLISHMENT,OP - City & South Blocks,City and South - Long term blocks,Residential Care
Cambridgeshire County Council,19-Apr-22,51301767978,"-9,553.74",BROOK HEALTHCARE,CARE ESTABLISHMENT,OP - City & South Blocks,City and South - Long term blocks,Residential Care
Cambridgeshire County Council,19-Apr-22,51301767978,"-9,553.74",BROOK HEALTHCARE,CARE ESTABLISHMENT,OP - City & South Blocks,City and South - Long term blocks,Residential Care
Cambridgeshire County Council,19-Apr-22,51301767978,"-9,553.74",BROOK HEALTHCARE,CARE ESTABLISHMENT,OP - City & South Blocks,City and South - Long term blocks,Residential Care
Cambridgeshire County Council,19-Apr-22,51301767978,"-9,553.74",BROOK HEALTHCARE,CARE ESTABLISHMENT,OP - City & South Blocks,City and South - Long term blocks,Residential Care
Cambridgeshire County Council,19-Apr-22,51301767978,"-9,553.74",BROOK HEALTHCARE,CARE ESTABLISHMENT,OP - City & South Blocks,City and South - Long term blocks,Residential Care
Cambridgeshire County Council,26-Apr-22,51301690447,"-9,141.39",PARK HOUSE SCHOOL,EDUCATION,SEN Placements,Placements - Education,Independent School Placements
Cambridgeshire County Council,19-Apr-22,51301769216,"-8,692.00",Focus Care Agency,CARE ESTABLISHMENT,LD - Young Adults Team,LD - Young Adults - Special Needs,Supported Living
Cambridgeshire County Council,19-Apr-22,51301769216,"-8,692.00",Focus Care Agency,CARE ESTABLISHMENT,LD - Young Adults Team,LD - Young Adults - Special Needs,Supported Living
Cambridgeshire County Council,19-Apr-22,51301769216,"-8,692.00",Focus Care Agency,CARE ESTABLISHMENT,LD - Young Adults Team,LD - Young Adults - Special Needs,Supported Living
Cambridgeshire County Council,19-Apr-22,51301769216,"-8,692.00",Focus Care Agency,CARE ESTABLISHMENT,LD - Young Adults Team,LD - Young Adults - Special Needs,Supported Living
Cambridgeshire County Council,19-Apr-22,51301769216,"-8,692.00",Focus Care Agency,CARE ESTABLISHMENT,LD - Young Adults Team,LD - Young Adults - Special Needs,Supported Living
Cambridgeshire County Council,19-Apr-22,51301769216,"-8,692.00",Focus Care Agency,CARE ESTABLISHMENT,LD - Young Adults Team,LD - Young Adults - Special Needs,Supported Living
Cambridgeshire County Council,19-Apr-22,51301769216,"-8,692.00",Focus Care Agency,CARE ESTABLISHMENT,LD - Young Adults Team,LD - Young Adults - Special Needs,Supported Living
Cambridgeshire County Council,19-Apr-22,51301769216,"-8,692.00",Focus Care Agency,CARE ESTABLISHMENT,LD - Young Adults Team,LD - Young Adults - Special Needs,Supported Living
Cambridgeshire County Council,19-Apr-22,51301769216,"-8,692.00",Focus Care Agency,CARE ESTABLISHMENT,LD - Young Adults Team,LD - Young Adults - Special Needs,Supported Living
Cambridgeshire County Council,19-Apr-22,51301769216,"-8,692.00",Focus Care Agency,CARE ESTABLISHMENT,LD - Young Adults Team,LD - Young Adults - Special Needs,Supported Living
Cambridgeshire County Council,19-Apr-22,51301769216,"-8,692.00",Focus Care Agency,CARE ESTABLISHMENT,LD - Young Adults Team,LD - Young Adults - Special Needs,Supported Living
Cambridgeshire County Council,19-Apr-22,51301769216,"-8,692.00",Focus Care Agency,CARE ESTABLISHMENT,LD - Young Adults Team,LD - Young Adults - Special Needs,Supported Living
Cambridgeshire County Council,19-Apr-22,51301769216,"-8,692.00",Focus Care Agency,CARE ESTABLISHMENT,LD - Young Adults Team,LD - Young Adults - Special Needs,Supported Living
Cambridgeshire County Council,19-Apr-22,51301769216,"-8,692.00",Focus Care Agency,CARE ESTABLISHMENT,LD - Young Adults Team,LD - Young Adults - Special Needs,Supported Living
Cambridgeshire County Council,19-Apr-22,51301769216,"-8,692.00",Focus Care Agency,CARE ESTABLISHMENT,LD - Young Adults Team,LD - Young Adults - Special Needs,Supported Living
Cambridgeshire County Council,19-Apr-22,51301769216,"-8,692.00",Focus Care Agency,CARE ESTABLISHMENT,LD - Young Adults Team,LD - Young Adults - Special Needs,Supported Living
Cambridgeshire County Council,19-Apr-22,51301769216,"-8,692.00",Focus Care Agency,CARE ESTABLISHMENT,LD - Young Adults Team,LD - Young Adults - Special Needs,Supported Living
Cambridgeshire County Council,19-Apr-22,51301769216,"-8,692.00",Focus Care Agency,CARE ESTABLISHMENT,LD - Young Adults Team,LD - Young Adults - Special Needs,Supported Living
Cambridgeshire County Council,19-Apr-22,51301769216,"-8,692.00",Focus Care Agency,CARE ESTABLISHMENT,LD - Young Adults Team,LD - Young Adults - Special Needs,Supported Living
Cambridgeshire County Council,19-Apr-22,51301769216,"-8,692.00",Focus Care Agency,CARE ESTABLISHMENT,LD - Young Adults Team,LD - Young Adults - Special Needs,Supported Living
Cambridgeshire County Council,19-Apr-22,51301769216,"-8,692.00",Focus Care Agency,CARE ESTABLISHMENT,LD - Young Adults Team,LD - Young Adults - Special Needs,Supported Living
Cambridgeshire County Council,19-Apr-22,51301769216,"-8,692.00",Focus Care Agency,CARE ESTABLISHMENT,LD - Young Adults Team,LD - Young Adults - Special Needs,Supported Living
Cambridgeshire County Council,19-Apr-22,51301769216,"-8,692.00",Focus Care Agency,CARE ESTABLISHMENT,LD - Young Adults Team,LD - Young Adults - Special Needs,Supported Living
Cambridgeshire County Council,19-Apr-22,51301769216,"-8,692.00",Focus Care Agency,CARE ESTABLISHMENT,LD - Young Adults Team,LD - Young Adults - Special Needs,Supported Living
Cambridgeshire County Council,19-Apr-22,51301769216,"-8,692.00",Focus Care Agency,CARE ESTABLISHMENT,LD - Young Adults Team,LD - Young Adults - Special Needs,Supported Living
Cambridgeshire County Council,19-Apr-22,51301769216,"-8,692.00",Focus Care Agency,CARE ESTABLISHMENT,LD - Young Adults Team,LD - Young Adults - Special Needs,Supported Living
Cambridgeshire County Council,19-Apr-22,51301769216,"-8,692.00",Focus Care Agency,CARE ESTABLISHMENT,LD - Young Adults Team,LD - Young Adults - Special Needs,Supported Living
Cambridgeshire County Council,19-Apr-22,51301769216,"-8,692.00",Focus Care Agency,CARE ESTABLISHMENT,LD - Young Adults Team,LD - Young Adults - Special Needs,Supported Living
Cambridgeshire County Council,19-Apr-22,51301768034,"-8,289.60",ETHELDRED HOUSE,CARE ESTABLISHMENT,OP - City & South Blocks,City and South - Long term blocks,Nursing Care
Cambridgeshire County Council,19-Apr-22,51301768034,"-8,289.60",ETHELDRED HOUSE,CARE ESTABLISHMENT,OP - City & South Blocks,City and South - Long term blocks,Nursing Care
Cambridgeshire County Council,19-Apr-22,51301768034,"-8,289.60",ETHELDRED HOUSE,CARE ESTABLISHMENT,OP - City & South Blocks,City and South - Long term blocks,Nursing Care
Cambridgeshire County Council,19-Apr-22,51301768034,"-8,289.60",ETHELDRED HOUSE,CARE ESTABLISHMENT,OP - City & South Blocks,City and South - Long term blocks,Nursing Care
Cambridgeshire County Council,19-Apr-22,51301768034,"-8,289.60",ETHELDRED HOUSE,CARE ESTABLISHMENT,OP - City & South Blocks,City and South - Long term blocks,Nursing Care
Cambridgeshire County Council,19-Apr-22,51301767980,"-7,678.68",HUNTERS HEALTHCARE (HUNTERS DOWN),CARE ESTABLISHMENT,OP - Hunts Blocks,Hunts - Long term blocks,Nursing Care
Cambridgeshire County Council,19-Apr-22,51301767980,"-7,678.68",HUNTERS HEALTHCARE (HUNTERS DOWN),CARE ESTABLISHMENT,OP - Hunts Blocks,Hunts - Long term blocks,Nursing Care
Cambridgeshire County Council,19-Apr-22,51301767980,"-7,678.68",HUNTERS HEALTHCARE (HUNTERS DOWN),CARE ESTABLISHMENT,OP - Hunts Blocks,Hunts - Long term blocks,Nursing Care
Cambridgeshire County Council,19-Apr-22,51301767980,"-7,678.68",HUNTERS HEALTHCARE (HUNTERS DOWN),CARE ESTABLISHMENT,OP - Hunts Blocks,Hunts - Long term blocks,Nursing Care
Cambridgeshire County Council,19-Apr-22,51301767980,"-7,678.68",HUNTERS HEALTHCARE (HUNTERS DOWN),CARE ESTABLISHMENT,OP - Hunts Blocks,Hunts - Long term blocks,Nursing Care
Cambridgeshire County Council,19-Apr-22,51301767980,"-7,678.68",HUNTERS HEALTHCARE (HUNTERS DOWN),CARE ESTABLISHMENT,OP - Hunts Blocks,Hunts - Long term blocks,Nursing Care
Cambridgeshire County Council,19-Apr-22,51301767980,"-7,678.68",HUNTERS HEALTHCARE (HUNTERS DOWN),CARE ESTABLISHMENT,OP - Hunts Blocks,Hunts - Long term blocks,Nursing Care
Cambridgeshire County Council,19-Apr-22,51301767980,"-7,678.68",HUNTERS HEALTHCARE (HUNTERS DOWN),CARE ESTABLISHMENT,OP - Hunts Blocks,Hunts - Long term blocks,Nursing Care
Cambridgeshire County Council,19-Apr-22,51301767980,"-7,678.68",HUNTERS HEALTHCARE (HUNTERS DOWN),CARE ESTABLISHMENT,OP - Hunts Blocks,Hunts - Long term blocks,Nursing Care
Cambridgeshire County Council,19-Apr-22,51301767980,"-7,678.68",HUNTERS HEALTHCARE (HUNTERS DOWN),CARE ESTABLISHMENT,OP - Hunts Blocks,Hunts - Long term blocks,Nursing Care
Cambridgeshire County Council,19-Apr-22,51301767980,"-7,678.68",HUNTERS HEALTHCARE (HUNTERS DOWN),CARE ESTABLISHMENT,OP - Hunts Blocks,Hunts - Long term blocks,Nursing Care
Cambridgeshire County Council,19-Apr-22,51301767980,"-7,678.68",HUNTERS HEALTHCARE (HUNTERS DOWN),CARE ESTABLISHMENT,OP - Hunts Blocks,Hunts - Long term blocks,Nursing Care
Cambridgeshire County Council,19-Apr-22,51301767980,"-7,678.68",HUNTERS HEALTHCARE (HUNTERS DOWN),CARE ESTABLISHMENT,OP - Hunts Blocks,Hunts - Long term blocks,Nursing Care
Cambridgeshire County Council,19-Apr-22,51301767980,"-7,678.68",HUNTERS HEALTHCARE (HUNTERS DOWN),CARE ESTABLISHMENT,OP - Hunts Blocks,Hunts - Long term blocks,Nursing Care
Cambridgeshire County Council,19-Apr-22,51301767980,"-7,678.68",HUNTERS HEALTHCARE (HUNTERS DOWN),CARE ESTABLISHMENT,OP - Hunts Blocks,Hunts - Long term blocks,Nursing Care
Cambridgeshire County Council,19-Apr-22,51301767980,"-7,678.68",HUNTERS HEALTHCARE (HUNTERS DOWN),CARE ESTABLISHMENT,OP - Hunts Blocks,Hunts - Long term blocks,Nursing Care
Cambridgeshire County Council,19-Apr-22,51301767980,"-7,678.68",HUNTERS HEALTHCARE (HUNTERS DOWN),CARE ESTABLISHMENT,OP - Hunts Blocks,Hunts - Long term blocks,Nursing Care
Cambridgeshire County Council,19-Apr-22,51301767980,"-7,678.68",HUNTERS HEALTHCARE (HUNTERS DOWN),CARE ESTABLISHMENT,OP - Hunts Blocks,Hunts - Long term blocks,Nursing Care
Cambridgeshire County Council,19-Apr-22,51301767980,"-7,678.68",HUNTERS HEALTHCARE (HUNTERS DOWN),CARE ESTABLISHMENT,OP - Hunts Blocks,Hunts - Long term blocks,Nursing Care
Cambridgeshire County Council,19-Apr-22,51301767980,"-7,678.68",HUNTERS HEALTHCARE (HUNTERS DOWN),CARE ESTABLISHMENT,OP - Hunts Blocks,Hunts - Long term blocks,Nursing Care
Cambridgeshire County Council,19-Apr-22,51301767980,"-7,678.68",HUNTERS HEALTHCARE (HUNTERS DOWN),CARE ESTABLISHMENT,OP - Hunts Blocks,Hunts - Long term blocks,Nursing Care
Cambridgeshire County Council,19-Apr-22,51301767980,"-7,678.68",HUNTERS HEALTHCARE (HUNTERS DOWN),CARE ESTABLISHMENT,OP - Hunts Blocks,Hunts - Long term blocks,Nursing Care
Cambridgeshire County Council,19-Apr-22,51301767980,"-7,678.68",HUNTERS HEALTHCARE (HUNTERS DOWN),CARE ESTABLISHMENT,OP - Hunts Blocks,Hunts - Long term blocks,Nursing Care
Cambridgeshire County Council,19-Apr-22,51301767980,"-7,678.68",HUNTERS HEALTHCARE (HUNTERS DOWN),CARE ESTABLISHMENT,OP - Hunts Blocks,Hunts - Long term blocks,Nursing Care
Cambridgeshire County Council,19-Apr-22,51301767980,"-7,678.68",HUNTERS HEALTHCARE (HUNTERS DOWN),CARE ESTABLISHMENT,OP - Hunts Blocks,Hunts - Long term blocks,Nursing Care
Cambridgeshire County Council,19-Apr-22,51301767980,"-7,678.68",HUNTERS HEALTHCARE (HUNTERS DOWN),CARE ESTABLISHMENT,OP - Hunts Blocks,Hunts - Long term blocks,Nursing Care
Cambridgeshire County Council,19-Apr-22,51301767980,"-7,678.68",HUNTERS HEALTHCARE (HUNTERS DOWN),CARE ESTABLISHMENT,OP - Hunts Blocks,Hunts - Long term blocks,Nursing Care
Cambridgeshire County Council,19-Apr-22,51301767980,"-7,678.68",HUNTERS HEALTHCARE (HUNTERS DOWN),CARE ESTABLISHMENT,OP - Hunts Blocks,Hunts - Long term blocks,Nursing Care
Cambridgeshire County Council,19-Apr-22,51301767980,"-7,678.68",HUNTERS HEALTHCARE (HUNTERS DOWN),CARE ESTABLISHMENT,OP - Hunts Blocks,Hunts - Long term blocks,Nursing Care
Cambridgeshire County Council,19-Apr-22,51301767980,"-7,678.68",HUNTERS HEALTHCARE (HUNTERS DOWN),CARE ESTABLISHMENT,OP - Hunts Blocks,Hunts - Long term blocks,Nursing Care
Cambridgeshire County Council,19-Apr-22,51301767980,"-7,678.68",HUNTERS HEALTHCARE (HUNTERS DOWN),CARE ESTABLISHMENT,OP - Hunts Blocks,Hunts - Long term blocks,Nursing Care
Cambridgeshire County Council,19-Apr-22,51301767980,"-7,678.68",HUNTERS HEALTHCARE (HUNTERS DOWN),CARE ESTABLISHMENT,OP - Hunts Blocks,Hunts - Long term blocks,Nursing Care
Cambridgeshire County Council,19-Apr-22,51301767980,"-7,678.68",HUNTERS HEALTHCARE (HUNTERS DOWN),CARE ESTABLISHMENT,OP - Hunts Blocks,Hunts - Long term blocks,Nursing Care
Cambridgeshire County Council,19-Apr-22,51301767980,"-7,678.68",HUNTERS HEALTHCARE (HUNTERS DOWN),CARE ESTABLISHMENT,OP - Hunts Blocks,Hunts - Long term blocks,Nursing Care
Cambridgeshire County Council,19-Apr-22,51301767980,"-7,678.68",HUNTERS HEALTHCARE (HUNTERS DOWN),CARE ESTABLISHMENT,OP - Hunts Blocks,Hunts - Long term blocks,Nursing Care
Cambridgeshire County Council,19-Apr-22,51301767989,"-7,540.78",BUCHAN HEALTHCARE LTD,CARE ESTABLISHMENT,OP - City & South Blocks,City and South - Long term blocks,Nursing Care
Cambridgeshire County Council,29-Apr-22,51301596766,"-7,500.00",Horizon Care and Education,EDUCATION,SEN Placements,Placements - Education,Independent School Placements
Cambridgeshire County Council,19-Apr-22,51301767989,"-7,198.02",BUCHAN HEALTHCARE LTD,CARE ESTABLISHMENT,OP - City & South Blocks,City and South - Long term blocks,Nursing Care
Cambridgeshire County Council,19-Apr-22,51301767989,"-7,198.02",BUCHAN HEALTHCARE LTD,CARE ESTABLISHMENT,OP - City & South Blocks,City and South - Long term blocks,Nursing Care
Cambridgeshire County Council,19-Apr-22,51301767989,"-7,198.02",BUCHAN HEALTHCARE LTD,CARE ESTABLISHMENT,OP - City & South Blocks,City and South - Long term blocks,Nursing Care
Cambridgeshire County Council,19-Apr-22,51301768016,"-6,398.90",RHEOLA HEALTHCARE,CARE ESTABLISHMENT,OP - Hunts Blocks,Hunts - Long term blocks,Residential Care
Cambridgeshire County Council,19-Apr-22,51301768016,"-6,398.90",RHEOLA HEALTHCARE,CARE ESTABLISHMENT,OP - Hunts Blocks,Hunts - Long term blocks,Residential Care
Cambridgeshire County Council,19-Apr-22,51301768016,"-6,398.90",RHEOLA HEALTHCARE,CARE ESTABLISHMENT,OP - Hunts Blocks,Hunts - Long term blocks,Residential Care
Cambridgeshire County Council,19-Apr-22,51301768037,"-6,360.00",THE CAMBRIDGE NURSING CENTRE,CARE ESTABLISHMENT,OP - City & South Blocks,City and South - Long term blocks,Nursing Care
Cambridgeshire County Council,19-Apr-22,51301768037,"-6,360.00",THE CAMBRIDGE NURSING CENTRE,CARE ESTABLISHMENT,OP - City & South Blocks,City and South - Long term blocks,Nursing Care
Cambridgeshire County Council,19-Apr-22,51301767980,"-6,293.07",HUNTERS HEALTHCARE (HUNTERS DOWN),CARE ESTABLISHMENT,OP - Hunts Blocks,Hunts - Long term blocks,Nursing Care
Cambridgeshire County Council,19-Apr-22,51301767980,"-6,293.07",HUNTERS HEALTHCARE (HUNTERS DOWN),CARE ESTABLISHMENT,OP - Hunts Blocks,Hunts - Long term blocks,Nursing Care
Cambridgeshire County Council,19-Apr-22,51301767980,"-6,293.07",HUNTERS HEALTHCARE (HUNTERS DOWN),CARE ESTABLISHMENT,OP - Hunts Blocks,Hunts - Long term blocks,Nursing Care
Cambridgeshire County Council,19-Apr-22,51301767980,"-6,293.07",HUNTERS HEALTHCARE (HUNTERS DOWN),CARE ESTABLISHMENT,OP - Hunts Blocks,Hunts - Long term blocks,Nursing Care
Cambridgeshire County Council,19-Apr-22,51301767980,"-6,293.07",HUNTERS HEALTHCARE (HUNTERS DOWN),CARE ESTABLISHMENT,OP - Hunts Blocks,Hunts - Long term blocks,Nursing Care
Cambridgeshire County Council,19-Apr-22,51301767980,"-6,293.07",HUNTERS HEALTHCARE (HUNTERS DOWN),CARE ESTABLISHMENT,OP - Hunts Blocks,Hunts - Long term blocks,Nursing Care
Cambridgeshire County Council,19-Apr-22,51301767980,"-6,293.07",HUNTERS HEALTHCARE (HUNTERS DOWN),CARE ESTABLISHMENT,OP - Hunts Blocks,Hunts - Long term blocks,Nursing Care
Cambridgeshire County Council,19-Apr-22,51301767989,"-5,802.72",BUCHAN HEALTHCARE LTD,CARE ESTABLISHMENT,OP - City & South Blocks,City and South - Long term blocks,Nursing Care
Cambridgeshire County Council,19-Apr-22,51301767989,"-5,802.72",BUCHAN HEALTHCARE LTD,CARE ESTABLISHMENT,OP - City & South Blocks,City and South - Long term blocks,Nursing Care
Cambridgeshire County Council,19-Apr-22,51301767989,"-5,802.72",BUCHAN HEALTHCARE LTD,CARE ESTABLISHMENT,OP - City & South Blocks,City and South - Long term blocks,Nursing Care
Cambridgeshire County Council,19-Apr-22,51301767989,"-5,802.72",BUCHAN HEALTHCARE LTD,CARE ESTABLISHMENT,OP - City & South Blocks,City and South - Long term blocks,Nursing Care
Cambridgeshire County Council,19-Apr-22,51301767989,"-5,802.72",BUCHAN HEALTHCARE LTD,CARE ESTABLISHMENT,OP - City & South Blocks,City and South - Long term blocks,Nursing Care
Cambridgeshire County Council,19-Apr-22,51301767989,"-5,802.72",BUCHAN HEALTHCARE LTD,CARE ESTABLISHMENT,OP - City & South Blocks,City and South - Long term blocks,Nursing Care
Cambridgeshire County Council,19-Apr-22,51301767978,"-5,459.28",BROOK HEALTHCARE,CARE ESTABLISHMENT,OP - City & South Blocks,City and South - Long term blocks,Residential Care
Cambridgeshire County Council,29-Apr-22,51301758748,"-5,328.00",EXACTRAK LTD DIVISION OF ITW LTD,COMPANY,Winter Maintenance,Central Winter Maintenance,Vehicle Running Costs
Cambridgeshire County Council,19-Apr-22,51301767989,"-5,027.19",BUCHAN HEALTHCARE LTD,CARE ESTABLISHMENT,OP - City & South Blocks,City and South - Long term blocks,Nursing Care
Cambridgeshire County Council,19-Apr-22,51301767989,"-5,027.19",BUCHAN HEALTHCARE LTD,CARE ESTABLISHMENT,OP - City & South Blocks,City and South - Long term blocks,Nursing Care
Cambridgeshire County Council,01-Apr-22,51301757496,"-4,517.04",THE BEECHES UK LIMITED,CARE ESTABLISHMENT,LAC Placements,Placements - S117 tier 4 step-down,Agency Placements - In County
Cambridgeshire County Council,19-Apr-22,51301768017,"-4,484.41",PRIMROSE HEALTHCARE,CARE ESTABLISHMENT,OP - City & South Blocks,City and South - Long term blocks,Residential Care
Cambridgeshire County Council,19-Apr-22,51301768016,"-4,113.58",RHEOLA HEALTHCARE,CARE ESTABLISHMENT,OP - Hunts Blocks,Hunts - Long term blocks,Residential Care
Cambridgeshire County Council,19-Apr-22,51301769216,"-3,725.14",Focus Care Agency,CARE ESTABLISHMENT,LD - Young Adults Team,LD - Young Adults - Special Needs,Supported Living
Cambridgeshire County Council,19-Apr-22,51301767980,"-3,596.04",HUNTERS HEALTHCARE (HUNTERS DOWN),CARE ESTABLISHMENT,OP - Hunts Blocks,Hunts - Long term blocks,Nursing Care
Cambridgeshire County Council,19-Apr-22,51301767982,"-3,575.00",THE GABLES SPECIALIST NURSING HOME,CARE ESTABLISHMENT,OP - Fenland Blocks,Fenland - Long term blocks,Nursing Care
Cambridgeshire County Council,19-Apr-22,51301767982,"-3,575.00",THE GABLES SPECIALIST NURSING HOME,CARE ESTABLISHMENT,OP - Fenland Blocks,Fenland - Long term blocks,Nursing Care
Cambridgeshire County Council,19-Apr-22,51301767982,"-3,575.00",THE GABLES SPECIALIST NURSING HOME,CARE ESTABLISHMENT,OP - Fenland Blocks,Fenland - Long term blocks,Nursing Care
Cambridgeshire County Council,19-Apr-22,51301767982,"-3,575.00",THE GABLES SPECIALIST NURSING HOME,CARE ESTABLISHMENT,OP - Fenland Blocks,Fenland - Long term blocks,Nursing Care
Cambridgeshire County Council,19-Apr-22,51301767982,"-3,575.00",THE GABLES SPECIALIST NURSING HOME,CARE ESTABLISHMENT,OP - Fenland Blocks,Fenland - Long term blocks,Nursing Care
Cambridgeshire County Council,19-Apr-22,51301768034,"-3,552.69",ETHELDRED HOUSE,CARE ESTABLISHMENT,OP - City & South Blocks,City and South - Long term blocks,Nursing Care
Cambridgeshire County Council,19-Apr-22,51301768016,"-3,290.86",RHEOLA HEALTHCARE,CARE ESTABLISHMENT,OP - Hunts Blocks,Hunts - Long term blocks,Residential Care
Cambridgeshire County Council,19-Apr-22,51301768409,"-3,243.46",GLENHOLME HEALTHCARE LTD,CARE ESTABLISHMENT,LD - Hunts Locality - Cost of Care,LD - Huntingdonshire - Care,Residential Care
Cambridgeshire County Council,19-Apr-22,51301768409,"-3,243.46",GLENHOLME HEALTHCARE LTD,CARE ESTABLISHMENT,LD - Hunts Locality - Cost of Care,LD - Huntingdonshire - Care,Residential Care
Cambridgeshire County Council,19-Apr-22,51301768409,"-3,243.46",GLENHOLME HEALTHCARE LTD,CARE ESTABLISHMENT,LD - Hunts Locality - Cost of Care,LD - Huntingdonshire - Care,Residential Care
Cambridgeshire County Council,19-Apr-22,51301768409,"-3,243.46",GLENHOLME HEALTHCARE LTD,CARE ESTABLISHMENT,LD - Hunts Locality - Cost of Care,LD - Huntingdonshire - Care,Residential Care
Cambridgeshire County Council,19-Apr-22,51301768409,"-3,243.46",GLENHOLME HEALTHCARE LTD,CARE ESTABLISHMENT,LD - Hunts Locality - Cost of Care,LD - Huntingdonshire - Care,Residential Care
Cambridgeshire County Council,19-Apr-22,51301768409,"-3,243.46",GLENHOLME HEALTHCARE LTD,CARE ESTABLISHMENT,LD - Hunts Locality - Cost of Care,LD - Huntingdonshire - Care,Residential Care
Cambridgeshire County Council,19-Apr-22,51301768409,"-3,243.46",GLENHOLME HEALTHCARE LTD,CARE ESTABLISHMENT,LD - Hunts Locality - Cost of Care,LD - Huntingdonshire - Care,Residential Care
Cambridgeshire County Council,19-Apr-22,51301768409,"-3,243.46",GLENHOLME HEALTHCARE LTD,CARE ESTABLISHMENT,LD - Hunts Locality - Cost of Care,LD - Huntingdonshire - Care,Residential Care
Cambridgeshire County Council,19-Apr-22,51301768409,"-3,243.46",GLENHOLME HEALTHCARE LTD,CARE ESTABLISHMENT,LD - Hunts Locality - Cost of Care,LD - Huntingdonshire - Care,Residential Care
Cambridgeshire County Council,19-Apr-22,51301768409,"-3,243.46",GLENHOLME HEALTHCARE LTD,CARE ESTABLISHMENT,LD - Hunts Locality - Cost of Care,LD - Huntingdonshire - Care,Residential Care
Cambridgeshire County Council,19-Apr-22,51301768409,"-3,243.46",GLENHOLME HEALTHCARE LTD,CARE ESTABLISHMENT,LD - Hunts Locality - Cost of Care,LD - Huntingdonshire - Care,Residential Care
Cambridgeshire County Council,19-Apr-22,51301768409,"-3,243.46",GLENHOLME HEALTHCARE LTD,CARE ESTABLISHMENT,LD - Hunts Locality - Cost of Care,LD - Huntingdonshire - Care,Residential Care
Cambridgeshire County Council,19-Apr-22,51301768409,"-3,243.46",GLENHOLME HEALTHCARE LTD,CARE ESTABLISHMENT,LD - Hunts Locality - Cost of Care,LD - Huntingdonshire - Care,Residential Care
Cambridgeshire County Council,19-Apr-22,51301768409,"-3,243.46",GLENHOLME HEALTHCARE LTD,CARE ESTABLISHMENT,LD - Hunts Locality - Cost of Care,LD - Huntingdonshire - Care,Residential Care
Cambridgeshire County Council,19-Apr-22,51301768409,"-3,243.46",GLENHOLME HEALTHCARE LTD,CARE ESTABLISHMENT,LD - Hunts Locality - Cost of Care,LD - Huntingdonshire - Care,Residential Care
Cambridgeshire County Council,19-Apr-22,51301768409,"-3,243.46",GLENHOLME HEALTHCARE LTD,CARE ESTABLISHMENT,LD - Hunts Locality - Cost of Care,LD - Huntingdonshire - Care,Residential Care
Cambridgeshire County Council,19-Apr-22,51301768409,"-3,243.46",GLENHOLME HEALTHCARE LTD,CARE ESTABLISHMENT,LD - Hunts Locality - Cost of Care,LD - Huntingdonshire - Care,Residential Care
Cambridgeshire County Council,19-Apr-22,51301768409,"-3,243.46",GLENHOLME HEALTHCARE LTD,CARE ESTABLISHMENT,LD - Hunts Locality - Cost of Care,LD - Huntingdonshire - Care,Residential Care
Cambridgeshire County Council,19-Apr-22,51301768409,"-3,243.46",GLENHOLME HEALTHCARE LTD,CARE ESTABLISHMENT,LD - Hunts Locality - Cost of Care,LD - Huntingdonshire - Care,Residential Care
Cambridgeshire County Council,19-Apr-22,51301768409,"-3,243.46",GLENHOLME HEALTHCARE LTD,CARE ESTABLISHMENT,LD - Hunts Locality - Cost of Care,LD - Huntingdonshire - Care,Residential Care
Cambridgeshire County Council,19-Apr-22,51301768409,"-3,243.46",GLENHOLME HEALTHCARE LTD,CARE ESTABLISHMENT,LD - Hunts Locality - Cost of Care,LD - Huntingdonshire - Care,Residential Care
Cambridgeshire County Council,19-Apr-22,51301768409,"-3,243.46",GLENHOLME HEALTHCARE LTD,CARE ESTABLISHMENT,LD - Hunts Locality - Cost of Care,LD - Huntingdonshire - Care,Residential Care
Cambridgeshire County Council,19-Apr-22,51301768409,"-3,243.46",GLENHOLME HEALTHCARE LTD,CARE ESTABLISHMENT,LD - Hunts Locality - Cost of Care,LD - Huntingdonshire - Care,Residential Care
Cambridgeshire County Council,19-Apr-22,51301768409,"-3,243.46",GLENHOLME HEALTHCARE LTD,CARE ESTABLISHMENT,LD - Hunts Locality - Cost of Care,LD - Huntingdonshire - Care,Residential Care
Cambridgeshire County Council,19-Apr-22,51301768409,"-3,243.46",GLENHOLME HEALTHCARE LTD,CARE ESTABLISHMENT,LD - Hunts Locality - Cost of Care,LD - Huntingdonshire - Care,Residential Care
Cambridgeshire County Council,19-Apr-22,51301768409,"-3,243.46",GLENHOLME HEALTHCARE LTD,CARE ESTABLISHMENT,LD - Hunts Locality - Cost of Care,LD - Huntingdonshire - Care,Residential Care
Cambridgeshire County Council,19-Apr-22,51301768409,"-3,243.46",GLENHOLME HEALTHCARE LTD,CARE ESTABLISHMENT,LD - Hunts Locality - Cost of Care,LD - Huntingdonshire - Care,Residential Care
Cambridgeshire County Council,19-Apr-22,51301768409,"-3,243.46",GLENHOLME HEALTHCARE LTD,CARE ESTABLISHMENT,LD - Hunts Locality - Cost of Care,LD - Huntingdonshire - Care,Residential Care
Cambridgeshire County Council,19-Apr-22,51301768409,"-3,243.46",GLENHOLME HEALTHCARE LTD,CARE ESTABLISHMENT,LD - Hunts Locality - Cost of Care,LD - Huntingdonshire - Care,Residential Care
Cambridgeshire County Council,19-Apr-22,51301768409,"-3,243.46",GLENHOLME HEALTHCARE LTD,CARE ESTABLISHMENT,LD - Hunts Locality - Cost of Care,LD - Huntingdonshire - Care,Residential Care
Cambridgeshire County Council,19-Apr-22,51301768409,"-3,243.46",GLENHOLME HEALTHCARE LTD,CARE ESTABLISHMENT,LD - Hunts Locality - Cost of Care,LD - Huntingdonshire - Care,Residential Care
Cambridgeshire County Council,19-Apr-22,51301768409,"-3,243.46",GLENHOLME HEALTHCARE LTD,CARE ESTABLISHMENT,LD - Hunts Locality - Cost of Care,LD - Huntingdonshire - Care,Residential Care
Cambridgeshire County Council,19-Apr-22,51301768409,"-3,243.46",GLENHOLME HEALTHCARE LTD,CARE ESTABLISHMENT,LD - Hunts Locality - Cost of Care,LD - Huntingdonshire - Care,Residential Care
Cambridgeshire County Council,19-Apr-22,51301768409,"-3,243.46",GLENHOLME HEALTHCARE LTD,CARE ESTABLISHMENT,LD - Hunts Locality - Cost of Care,LD - Huntingdonshire - Care,Residential Care
Cambridgeshire County Council,19-Apr-22,51301768409,"-3,243.46",GLENHOLME HEALTHCARE LTD,CARE ESTABLISHMENT,LD - Hunts Locality - Cost of Care,LD - Huntingdonshire - Care,Residential Care
Cambridgeshire County Council,19-Apr-22,51301768409,"-3,243.46",GLENHOLME HEALTHCARE LTD,CARE ESTABLISHMENT,LD - Hunts Locality - Cost of Care,LD - Huntingdonshire - Care,Residential Care
Cambridgeshire County Council,19-Apr-22,51301768409,"-3,243.46",GLENHOLME HEALTHCARE LTD,CARE ESTABLISHMENT,LD - Hunts Locality - Cost of Care,LD - Huntingdonshire - Care,Residential Care
Cambridgeshire County Council,19-Apr-22,51301768409,"-3,243.46",GLENHOLME HEALTHCARE LTD,CARE ESTABLISHMENT,LD - Hunts Locality - Cost of Care,LD - Huntingdonshire - Care,Residential Care
Cambridgeshire County Council,19-Apr-22,51301768409,"-3,243.46",GLENHOLME HEALTHCARE LTD,CARE ESTABLISHMENT,LD - Hunts Locality - Cost of Care,LD - Huntingdonshire - Care,Residential Care
Cambridgeshire County Council,19-Apr-22,51301768409,"-3,243.46",GLENHOLME HEALTHCARE LTD,CARE ESTABLISHMENT,LD - Hunts Locality - Cost of Care,LD - Huntingdonshire - Care,Residential Care
Cambridgeshire County Council,19-Apr-22,51301768409,"-3,243.46",GLENHOLME HEALTHCARE LTD,CARE ESTABLISHMENT,LD - Hunts Locality - Cost of Care,LD - Huntingdonshire - Care,Residential Care
Cambridgeshire County Council,19-Apr-22,51301768409,"-3,243.46",GLENHOLME HEALTHCARE LTD,CARE ESTABLISHMENT,LD - Hunts Locality - Cost of Care,LD - Huntingdonshire - Care,Residential Care
Cambridgeshire County Council,19-Apr-22,51301768409,"-3,243.46",GLENHOLME HEALTHCARE LTD,CARE ESTABLISHMENT,LD - Hunts Locality - Cost of Care,LD - Huntingdonshire - Care,Residential Care
Cambridgeshire County Council,19-Apr-22,51301768409,"-3,243.46",GLENHOLME HEALTHCARE LTD,CARE ESTABLISHMENT,LD - Hunts Locality - Cost of Care,LD - Huntingdonshire - Care,Residential Care
Cambridgeshire County Council,19-Apr-22,51301768409,"-3,243.46",GLENHOLME HEALTHCARE LTD,CARE ESTABLISHMENT,LD - Hunts Locality - Cost of Care,LD - Huntingdonshire - Care,Residential Care
Cambridgeshire County Council,19-Apr-22,51301768409,"-3,243.46",GLENHOLME HEALTHCARE LTD,CARE ESTABLISHMENT,LD - Hunts Locality - Cost of Care,LD - Huntingdonshire - Care,Residential Care
Cambridgeshire County Council,19-Apr-22,51301768409,"-3,243.46",GLENHOLME HEALTHCARE LTD,CARE ESTABLISHMENT,LD - Hunts Locality - Cost of Care,LD - Huntingdonshire - Care,Residential Care
Cambridgeshire County Council,19-Apr-22,51301768409,"-3,243.46",GLENHOLME HEALTHCARE LTD,CARE ESTABLISHMENT,LD - Hunts Locality - Cost of Care,LD - Huntingdonshire - Care,Residential Care
Cambridgeshire County Council,19-Apr-22,51301768409,"-3,243.46",GLENHOLME HEALTHCARE LTD,CARE ESTABLISHMENT,LD - Hunts Locality - Cost of Care,LD - Huntingdonshire - Care,Residential Care
Cambridgeshire County Council,19-Apr-22,51301768409,"-3,243.46",GLENHOLME HEALTHCARE LTD,CARE ESTABLISHMENT,LD - Hunts Locality - Cost of Care,LD - Huntingdonshire - Care,Residential Care
Cambridgeshire County Council,19-Apr-22,51301768409,"-3,243.46",GLENHOLME HEALTHCARE LTD,CARE ESTABLISHMENT,LD - Hunts Locality - Cost of Care,LD - Huntingdonshire - Care,Residential Care
Cambridgeshire County Council,19-Apr-22,51301768409,"-3,243.46",GLENHOLME HEALTHCARE LTD,CARE ESTABLISHMENT,LD - Hunts Locality - Cost of Care,LD - Huntingdonshire - Care,Residential Care
Cambridgeshire County Council,19-Apr-22,51301768409,"-3,243.46",GLENHOLME HEALTHCARE LTD,CARE ESTABLISHMENT,LD - Hunts Locality - Cost of Care,LD - Huntingdonshire - Care,Residential Care
Cambridgeshire County Council,19-Apr-22,51301768409,"-3,243.46",GLENHOLME HEALTHCARE LTD,CARE ESTABLISHMENT,LD - Hunts Locality - Cost of Care,LD - Huntingdonshire - Care,Residential Care
Cambridgeshire County Council,19-Apr-22,51301768409,"-3,243.46",GLENHOLME HEALTHCARE LTD,CARE ESTABLISHMENT,LD - Hunts Locality - Cost of Care,LD - Huntingdonshire - Care,Residential Care
Cambridgeshire County Council,19-Apr-22,51301769158,"-3,173.06",Focus Care Agency,CARE ESTABLISHMENT,LD - Fenland Locality - Cost of Care,LD - Fenland  - Care,Supported Living
Cambridgeshire County Council,19-Apr-22,51301769158,"-3,173.06",Focus Care Agency,CARE ESTABLISHMENT,LD - Fenland Locality - Cost of Care,LD - Fenland  - Care,Supported Living
Cambridgeshire County Council,19-Apr-22,51301769158,"-3,173.06",Focus Care Agency,CARE ESTABLISHMENT,LD - Fenland Locality - Cost of Care,LD - Fenland  - Care,Supported Living
Cambridgeshire County Council,19-Apr-22,51301769158,"-3,173.06",Focus Care Agency,CARE ESTABLISHMENT,LD - Fenland Locality - Cost of Care,LD - Fenland  - Care,Supported Living
Cambridgeshire County Council,19-Apr-22,51301769158,"-3,173.06",Focus Care Agency,CARE ESTABLISHMENT,LD - Fenland Locality - Cost of Care,LD - Fenland  - Care,Supported Living
Cambridgeshire County Council,19-Apr-22,51301769158,"-3,173.06",Focus Care Agency,CARE ESTABLISHMENT,LD - Fenland Locality - Cost of Care,LD - Fenland  - Care,Supported Living
Cambridgeshire County Council,19-Apr-22,51301769158,"-3,173.06",Focus Care Agency,CARE ESTABLISHMENT,LD - Fenland Locality - Cost of Care,LD - Fenland  - Care,Supported Living
Cambridgeshire County Council,19-Apr-22,51301769158,"-3,173.06",Focus Care Agency,CARE ESTABLISHMENT,LD - Fenland Locality - Cost of Care,LD - Fenland  - Care,Supported Living
Cambridgeshire County Council,19-Apr-22,51301769158,"-3,173.06",Focus Care Agency,CARE ESTABLISHMENT,LD - Fenland Locality - Cost of Care,LD - Fenland  - Care,Supported Living
Cambridgeshire County Council,19-Apr-22,51301769158,"-3,173.06",Focus Care Agency,CARE ESTABLISHMENT,LD - Fenland Locality - Cost of Care,LD - Fenland  - Care,Supported Living
Cambridgeshire County Council,19-Apr-22,51301769158,"-3,173.06",Focus Care Agency,CARE ESTABLISHMENT,LD - Fenland Locality - Cost of Care,LD - Fenland  - Care,Supported Living
Cambridgeshire County Council,19-Apr-22,51301769158,"-3,173.06",Focus Care Agency,CARE ESTABLISHMENT,LD - Fenland Locality - Cost of Care,LD - Fenland  - Care,Supported Living
Cambridgeshire County Council,19-Apr-22,51301769158,"-3,173.06",Focus Care Agency,CARE ESTABLISHMENT,LD - Fenland Locality - Cost of Care,LD - Fenland  - Care,Supported Living
Cambridgeshire County Council,19-Apr-22,51301769158,"-3,173.06",Focus Care Agency,CARE ESTABLISHMENT,LD - Fenland Locality - Cost of Care,LD - Fenland  - Care,Supported Living
Cambridgeshire County Council,19-Apr-22,51301769158,"-3,173.06",Focus Care Agency,CARE ESTABLISHMENT,LD - Fenland Locality - Cost of Care,LD - Fenland  - Care,Supported Living
Cambridgeshire County Council,19-Apr-22,51301769158,"-3,173.06",Focus Care Agency,CARE ESTABLISHMENT,LD - Fenland Locality - Cost of Care,LD - Fenland  - Care,Supported Living
Cambridgeshire County Council,19-Apr-22,51301769158,"-3,173.06",Focus Care Agency,CARE ESTABLISHMENT,LD - Fenland Locality - Cost of Care,LD - Fenland  - Care,Supported Living
Cambridgeshire County Council,19-Apr-22,51301769158,"-3,173.06",Focus Care Agency,CARE ESTABLISHMENT,LD - Fenland Locality - Cost of Care,LD - Fenland  - Care,Supported Living
Cambridgeshire County Council,19-Apr-22,51301769158,"-3,173.06",Focus Care Agency,CARE ESTABLISHMENT,LD - Fenland Locality - Cost of Care,LD - Fenland  - Care,Supported Living
Cambridgeshire County Council,19-Apr-22,51301769158,"-3,173.06",Focus Care Agency,CARE ESTABLISHMENT,LD - Fenland Locality - Cost of Care,LD - Fenland  - Care,Supported Living
Cambridgeshire County Council,19-Apr-22,51301769158,"-3,173.06",Focus Care Agency,CARE ESTABLISHMENT,LD - Fenland Locality - Cost of Care,LD - Fenland  - Care,Supported Living
Cambridgeshire County Council,19-Apr-22,51301769158,"-3,173.06",Focus Care Agency,CARE ESTABLISHMENT,LD - Fenland Locality - Cost of Care,LD - Fenland  - Care,Supported Living
Cambridgeshire County Council,19-Apr-22,51301769158,"-3,173.06",Focus Care Agency,CARE ESTABLISHMENT,LD - Fenland Locality - Cost of Care,LD - Fenland  - Care,Supported Living
Cambridgeshire County Council,19-Apr-22,51301769158,"-3,173.06",Focus Care Agency,CARE ESTABLISHMENT,LD - Fenland Locality - Cost of Care,LD - Fenland  - Care,Supported Living
Cambridgeshire County Council,19-Apr-22,51301769158,"-3,173.06",Focus Care Agency,CARE ESTABLISHMENT,LD - Fenland Locality - Cost of Care,LD - Fenland  - Care,Supported Living
Cambridgeshire County Council,19-Apr-22,51301769158,"-3,173.06",Focus Care Agency,CARE ESTABLISHMENT,LD - Fenland Locality - Cost of Care,LD - Fenland  - Care,Supported Living
Cambridgeshire County Council,19-Apr-22,51301769158,"-3,173.06",Focus Care Agency,CARE ESTABLISHMENT,LD - Fenland Locality - Cost of Care,LD - Fenland  - Care,Supported Living
Cambridgeshire County Council,19-Apr-22,51301769158,"-3,173.06",Focus Care Agency,CARE ESTABLISHMENT,LD - Fenland Locality - Cost of Care,LD - Fenland  - Care,Supported Living
Cambridgeshire County Council,19-Apr-22,51301769158,"-3,173.06",Focus Care Agency,CARE ESTABLISHMENT,LD - Fenland Locality - Cost of Care,LD - Fenland  - Care,Supported Living
Cambridgeshire County Council,19-Apr-22,51301769158,"-3,173.06",Focus Care Agency,CARE ESTABLISHMENT,LD - Fenland Locality - Cost of Care,LD - Fenland  - Care,Supported Living
Cambridgeshire County Council,19-Apr-22,51301769158,"-3,173.06",Focus Care Agency,CARE ESTABLISHMENT,LD - Fenland Locality - Cost of Care,LD - Fenland  - Care,Supported Living
Cambridgeshire County Council,19-Apr-22,51301769158,"-3,173.06",Focus Care Agency,CARE ESTABLISHMENT,LD - Fenland Locality - Cost of Care,LD - Fenland  - Care,Supported Living
Cambridgeshire County Council,19-Apr-22,51301769158,"-3,173.06",Focus Care Agency,CARE ESTABLISHMENT,LD - Fenland Locality - Cost of Care,LD - Fenland  - Care,Supported Living
Cambridgeshire County Council,19-Apr-22,51301769158,"-3,173.06",Focus Care Agency,CARE ESTABLISHMENT,LD - Fenland Locality - Cost of Care,LD - Fenland  - Care,Supported Living
Cambridgeshire County Council,19-Apr-22,51301769158,"-3,173.06",Focus Care Agency,CARE ESTABLISHMENT,LD - Fenland Locality - Cost of Care,LD - Fenland  - Care,Supported Living
Cambridgeshire County Council,19-Apr-22,51301769158,"-3,173.06",Focus Care Agency,CARE ESTABLISHMENT,LD - Fenland Locality - Cost of Care,LD - Fenland  - Care,Supported Living
Cambridgeshire County Council,19-Apr-22,51301769158,"-3,173.06",Focus Care Agency,CARE ESTABLISHMENT,LD - Fenland Locality - Cost of Care,LD - Fenland  - Care,Supported Living
Cambridgeshire County Council,19-Apr-22,51301769158,"-3,173.06",Focus Care Agency,CARE ESTABLISHMENT,LD - Fenland Locality - Cost of Care,LD - Fenland  - Care,Supported Living
Cambridgeshire County Council,19-Apr-22,51301769158,"-3,173.06",Focus Care Agency,CARE ESTABLISHMENT,LD - Fenland Locality - Cost of Care,LD - Fenland  - Care,Supported Living
Cambridgeshire County Council,19-Apr-22,51301769158,"-3,173.06",Focus Care Agency,CARE ESTABLISHMENT,LD - Fenland Locality - Cost of Care,LD - Fenland  - Care,Supported Living
Cambridgeshire County Council,19-Apr-22,51301769158,"-3,173.06",Focus Care Agency,CARE ESTABLISHMENT,LD - Fenland Locality - Cost of Care,LD - Fenland  - Care,Supported Living
Cambridgeshire County Council,19-Apr-22,51301769158,"-3,173.06",Focus Care Agency,CARE ESTABLISHMENT,LD - Fenland Locality - Cost of Care,LD - Fenland  - Care,Supported Living
Cambridgeshire County Council,19-Apr-22,51301769158,"-3,173.06",Focus Care Agency,CARE ESTABLISHMENT,LD - Fenland Locality - Cost of Care,LD - Fenland  - Care,Supported Living
Cambridgeshire County Council,19-Apr-22,51301769158,"-3,173.06",Focus Care Agency,CARE ESTABLISHMENT,LD - Fenland Locality - Cost of Care,LD - Fenland  - Care,Supported Living
Cambridgeshire County Council,19-Apr-22,51301769158,"-3,173.06",Focus Care Agency,CARE ESTABLISHMENT,LD - Fenland Locality - Cost of Care,LD - Fenland  - Care,Supported Living
Cambridgeshire County Council,19-Apr-22,51301769158,"-3,173.06",Focus Care Agency,CARE ESTABLISHMENT,LD - Fenland Locality - Cost of Care,LD - Fenland  - Care,Supported Living
Cambridgeshire County Council,19-Apr-22,51301769158,"-3,173.06",Focus Care Agency,CARE ESTABLISHMENT,LD - Fenland Locality - Cost of Care,LD - Fenland  - Care,Supported Living
Cambridgeshire County Council,19-Apr-22,51301769158,"-3,173.06",Focus Care Agency,CARE ESTABLISHMENT,LD - Fenland Locality - Cost of Care,LD - Fenland  - Care,Supported Living
Cambridgeshire County Council,19-Apr-22,51301769158,"-3,173.06",Focus Care Agency,CARE ESTABLISHMENT,LD - Fenland Locality - Cost of Care,LD - Fenland  - Care,Supported Living
Cambridgeshire County Council,19-Apr-22,51301769158,"-3,173.06",Focus Care Agency,CARE ESTABLISHMENT,LD - Fenland Locality - Cost of Care,LD - Fenland  - Care,Supported Living
Cambridgeshire County Council,19-Apr-22,51301769158,"-3,173.06",Focus Care Agency,CARE ESTABLISHMENT,LD - Fenland Locality - Cost of Care,LD - Fenland  - Care,Supported Living
Cambridgeshire County Council,19-Apr-22,51301769158,"-3,173.06",Focus Care Agency,CARE ESTABLISHMENT,LD - Fenland Locality - Cost of Care,LD - Fenland  - Care,Supported Living
Cambridgeshire County Council,19-Apr-22,51301768015,"-3,163.58",BROOKFIELD CARE (Radis Commnity Care),CARE ESTABLISHMENT,Commissioning - Dom Cars,East Cambs - Dom Blocks,Domiciliary Care
Cambridgeshire County Council,19-Apr-22,51301768015,"-3,163.58",BROOKFIELD CARE (Radis Commnity Care),CARE ESTABLISHMENT,Commissioning - Dom Cars,East Cambs - Dom Blocks,Domiciliary Care
Cambridgeshire County Council,19-Apr-22,51301768015,"-3,163.58",BROOKFIELD CARE (Radis Commnity Care),CARE ESTABLISHMENT,Commissioning - Dom Cars,East Cambs - Dom Blocks,Domiciliary Care
Cambridgeshire County Council,19-Apr-22,51301768015,"-3,163.58",BROOKFIELD CARE (Radis Commnity Care),CARE ESTABLISHMENT,Commissioning - Dom Cars,East Cambs - Dom Blocks,Domiciliary Care
Cambridgeshire County Council,19-Apr-22,51301768037,"-2,725.71",THE CAMBRIDGE NURSING CENTRE,CARE ESTABLISHMENT,OP - City & South Blocks,City and South - Long term blocks,Nursing Care
Cambridgeshire County Council,19-Apr-22,51301769152,"-2,662.94",Focus Care Agency,CARE ESTABLISHMENT,LD - Hunts Locality - Cost of Care,LD - Huntingdonshire - Care,Supported Living
Cambridgeshire County Council,19-Apr-22,51301769152,"-2,662.94",Focus Care Agency,CARE ESTABLISHMENT,LD - Hunts Locality - Cost of Care,LD - Huntingdonshire - Care,Supported Living
Cambridgeshire County Council,19-Apr-22,51301769152,"-2,662.94",Focus Care Agency,CARE ESTABLISHMENT,LD - Hunts Locality - Cost of Care,LD - Huntingdonshire - Care,Supported Living
Cambridgeshire County Council,19-Apr-22,51301769152,"-2,662.94",Focus Care Agency,CARE ESTABLISHMENT,LD - Hunts Locality - Cost of Care,LD - Huntingdonshire - Care,Supported Living
Cambridgeshire County Council,19-Apr-22,51301769152,"-2,662.94",Focus Care Agency,CARE ESTABLISHMENT,LD - Hunts Locality - Cost of Care,LD - Huntingdonshire - Care,Supported Living
Cambridgeshire County Council,19-Apr-22,51301769152,"-2,662.94",Focus Care Agency,CARE ESTABLISHMENT,LD - Hunts Locality - Cost of Care,LD - Huntingdonshire - Care,Supported Living
Cambridgeshire County Council,19-Apr-22,51301769152,"-2,662.94",Focus Care Agency,CARE ESTABLISHMENT,LD - Hunts Locality - Cost of Care,LD - Huntingdonshire - Care,Supported Living
Cambridgeshire County Council,19-Apr-22,51301769152,"-2,662.94",Focus Care Agency,CARE ESTABLISHMENT,LD - Hunts Locality - Cost of Care,LD - Huntingdonshire - Care,Supported Living
Cambridgeshire County Council,19-Apr-22,51301769152,"-2,662.94",Focus Care Agency,CARE ESTABLISHMENT,LD - Hunts Locality - Cost of Care,LD - Huntingdonshire - Care,Supported Living
Cambridgeshire County Council,19-Apr-22,51301769152,"-2,662.94",Focus Care Agency,CARE ESTABLISHMENT,LD - Hunts Locality - Cost of Care,LD - Huntingdonshire - Care,Supported Living
Cambridgeshire County Council,19-Apr-22,51301769152,"-2,662.94",Focus Care Agency,CARE ESTABLISHMENT,LD - Hunts Locality - Cost of Care,LD - Huntingdonshire - Care,Supported Living
Cambridgeshire County Council,19-Apr-22,51301769152,"-2,662.94",Focus Care Agency,CARE ESTABLISHMENT,LD - Hunts Locality - Cost of Care,LD - Huntingdonshire - Care,Supported Living
Cambridgeshire County Council,19-Apr-22,51301769152,"-2,662.94",Focus Care Agency,CARE ESTABLISHMENT,LD - Hunts Locality - Cost of Care,LD - Huntingdonshire - Care,Supported Living
Cambridgeshire County Council,19-Apr-22,51301769152,"-2,662.94",Focus Care Agency,CARE ESTABLISHMENT,LD - Hunts Locality - Cost of Care,LD - Huntingdonshire - Care,Supported Living
Cambridgeshire County Council,19-Apr-22,51301769152,"-2,662.94",Focus Care Agency,CARE ESTABLISHMENT,LD - Hunts Locality - Cost of Care,LD - Huntingdonshire - Care,Supported Living
Cambridgeshire County Council,19-Apr-22,51301769152,"-2,662.94",Focus Care Agency,CARE ESTABLISHMENT,LD - Hunts Locality - Cost of Care,LD - Huntingdonshire - Care,Supported Living
Cambridgeshire County Council,19-Apr-22,51301769152,"-2,662.94",Focus Care Agency,CARE ESTABLISHMENT,LD - Hunts Locality - Cost of Care,LD - Huntingdonshire - Care,Supported Living
Cambridgeshire County Council,19-Apr-22,51301769152,"-2,662.94",Focus Care Agency,CARE ESTABLISHMENT,LD - Hunts Locality - Cost of Care,LD - Huntingdonshire - Care,Supported Living
Cambridgeshire County Council,19-Apr-22,51301769152,"-2,662.94",Focus Care Agency,CARE ESTABLISHMENT,LD - Hunts Locality - Cost of Care,LD - Huntingdonshire - Care,Supported Living
Cambridgeshire County Council,19-Apr-22,51301769152,"-2,662.94",Focus Care Agency,CARE ESTABLISHMENT,LD - Hunts Locality - Cost of Care,LD - Huntingdonshire - Care,Supported Living
Cambridgeshire County Council,19-Apr-22,51301769152,"-2,662.94",Focus Care Agency,CARE ESTABLISHMENT,LD - Hunts Locality - Cost of Care,LD - Huntingdonshire - Care,Supported Living
Cambridgeshire County Council,19-Apr-22,51301769152,"-2,662.94",Focus Care Agency,CARE ESTABLISHMENT,LD - Hunts Locality - Cost of Care,LD - Huntingdonshire - Care,Supported Living
Cambridgeshire County Council,19-Apr-22,51301769152,"-2,662.94",Focus Care Agency,CARE ESTABLISHMENT,LD - Hunts Locality - Cost of Care,LD - Huntingdonshire - Care,Supported Living
Cambridgeshire County Council,19-Apr-22,51301769152,"-2,662.94",Focus Care Agency,CARE ESTABLISHMENT,LD - Hunts Locality - Cost of Care,LD - Huntingdonshire - Care,Supported Living
Cambridgeshire County Council,19-Apr-22,51301769152,"-2,662.94",Focus Care Agency,CARE ESTABLISHMENT,LD - Hunts Locality - Cost of Care,LD - Huntingdonshire - Care,Supported Living
Cambridgeshire County Council,19-Apr-22,51301769152,"-2,662.94",Focus Care Agency,CARE ESTABLISHMENT,LD - Hunts Locality - Cost of Care,LD - Huntingdonshire - Care,Supported Living
Cambridgeshire County Council,19-Apr-22,51301769152,"-2,662.94",Focus Care Agency,CARE ESTABLISHMENT,LD - Hunts Locality - Cost of Care,LD - Huntingdonshire - Care,Supported Living
Cambridgeshire County Council,19-Apr-22,51301769152,"-2,662.94",Focus Care Agency,CARE ESTABLISHMENT,LD - Hunts Locality - Cost of Care,LD - Huntingdonshire - Care,Supported Living
Cambridgeshire County Council,19-Apr-22,51301769152,"-2,662.94",Focus Care Agency,CARE ESTABLISHMENT,LD - Hunts Locality - Cost of Care,LD - Huntingdonshire - Care,Supported Living
Cambridgeshire County Council,19-Apr-22,51301769152,"-2,662.94",Focus Care Agency,CARE ESTABLISHMENT,LD - Hunts Locality - Cost of Care,LD - Huntingdonshire - Care,Supported Living
Cambridgeshire County Council,19-Apr-22,51301769152,"-2,662.94",Focus Care Agency,CARE ESTABLISHMENT,LD - Hunts Locality - Cost of Care,LD - Huntingdonshire - Care,Supported Living
Cambridgeshire County Council,19-Apr-22,51301769152,"-2,662.94",Focus Care Agency,CARE ESTABLISHMENT,LD - Hunts Locality - Cost of Care,LD - Huntingdonshire - Care,Supported Living
Cambridgeshire County Council,19-Apr-22,51301769152,"-2,662.94",Focus Care Agency,CARE ESTABLISHMENT,LD - Hunts Locality - Cost of Care,LD - Huntingdonshire - Care,Supported Living
Cambridgeshire County Council,19-Apr-22,51301769152,"-2,662.94",Focus Care Agency,CARE ESTABLISHMENT,LD - Hunts Locality - Cost of Care,LD - Huntingdonshire - Care,Supported Living
Cambridgeshire County Council,19-Apr-22,51301769152,"-2,662.94",Focus Care Agency,CARE ESTABLISHMENT,LD - Hunts Locality - Cost of Care,LD - Huntingdonshire - Care,Supported Living
Cambridgeshire County Council,19-Apr-22,51301769152,"-2,662.94",Focus Care Agency,CARE ESTABLISHMENT,LD - Hunts Locality - Cost of Care,LD - Huntingdonshire - Care,Supported Living
Cambridgeshire County Council,19-Apr-22,51301769152,"-2,662.94",Focus Care Agency,CARE ESTABLISHMENT,LD - Hunts Locality - Cost of Care,LD - Huntingdonshire - Care,Supported Living
Cambridgeshire County Council,19-Apr-22,51301769152,"-2,662.94",Focus Care Agency,CARE ESTABLISHMENT,LD - Hunts Locality - Cost of Care,LD - Huntingdonshire - Care,Supported Living
Cambridgeshire County Council,19-Apr-22,51301769152,"-2,662.94",Focus Care Agency,CARE ESTABLISHMENT,LD - Hunts Locality - Cost of Care,LD - Huntingdonshire - Care,Supported Living
Cambridgeshire County Council,19-Apr-22,51301769152,"-2,662.94",Focus Care Agency,CARE ESTABLISHMENT,LD - Hunts Locality - Cost of Care,LD - Huntingdonshire - Care,Supported Living
Cambridgeshire County Council,19-Apr-22,51301769152,"-2,662.94",Focus Care Agency,CARE ESTABLISHMENT,LD - Hunts Locality - Cost of Care,LD - Huntingdonshire - Care,Supported Living
Cambridgeshire County Council,19-Apr-22,51301769152,"-2,662.94",Focus Care Agency,CARE ESTABLISHMENT,LD - Hunts Locality - Cost of Care,LD - Huntingdonshire - Care,Supported Living
Cambridgeshire County Council,19-Apr-22,51301769152,"-2,662.94",Focus Care Agency,CARE ESTABLISHMENT,LD - Hunts Locality - Cost of Care,LD - Huntingdonshire - Care,Supported Living
Cambridgeshire County Council,19-Apr-22,51301769152,"-2,662.94",Focus Care Agency,CARE ESTABLISHMENT,LD - Hunts Locality - Cost of Care,LD - Huntingdonshire - Care,Supported Living
Cambridgeshire County Council,19-Apr-22,51301769152,"-2,662.94",Focus Care Agency,CARE ESTABLISHMENT,LD - Hunts Locality - Cost of Care,LD - Huntingdonshire - Care,Supported Living
Cambridgeshire County Council,19-Apr-22,51301769152,"-2,662.94",Focus Care Agency,CARE ESTABLISHMENT,LD - Hunts Locality - Cost of Care,LD - Huntingdonshire - Care,Supported Living
Cambridgeshire County Council,19-Apr-22,51301769152,"-2,662.94",Focus Care Agency,CARE ESTABLISHMENT,LD - Hunts Locality - Cost of Care,LD - Huntingdonshire - Care,Supported Living
Cambridgeshire County Council,19-Apr-22,51301769152,"-2,662.94",Focus Care Agency,CARE ESTABLISHMENT,LD - Hunts Locality - Cost of Care,LD - Huntingdonshire - Care,Supported Living
Cambridgeshire County Council,19-Apr-22,51301769152,"-2,662.94",Focus Care Agency,CARE ESTABLISHMENT,LD - Hunts Locality - Cost of Care,LD - Huntingdonshire - Care,Supported Living
Cambridgeshire County Council,19-Apr-22,51301769152,"-2,662.94",Focus Care Agency,CARE ESTABLISHMENT,LD - Hunts Locality - Cost of Care,LD - Huntingdonshire - Care,Supported Living
Cambridgeshire County Council,19-Apr-22,51301769152,"-2,662.94",Focus Care Agency,CARE ESTABLISHMENT,LD - Hunts Locality - Cost of Care,LD - Huntingdonshire - Care,Supported Living
Cambridgeshire County Council,19-Apr-22,51301769152,"-2,662.94",Focus Care Agency,CARE ESTABLISHMENT,LD - Hunts Locality - Cost of Care,LD - Huntingdonshire - Care,Supported Living
Cambridgeshire County Council,01-Apr-22,51301745420,"-2,658.06",Willow Care and Support,CARE ESTABLISHMENT,AMH - Specialist & Primary,Mental Health - Specialist & Primary,Supported Living
Cambridgeshire County Council,01-Apr-22,51301745420,"-2,658.06",Willow Care and Support,CARE ESTABLISHMENT,AMH - Specialist & Primary,Mental Health - Specialist & Primary,Supported Living
Cambridgeshire County Council,01-Apr-22,51301745420,"-2,658.06",Willow Care and Support,CARE ESTABLISHMENT,AMH - Specialist & Primary,Mental Health - Specialist & Primary,Supported Living
Cambridgeshire County Council,01-Apr-22,51301745420,"-2,658.06",Willow Care and Support,CARE ESTABLISHMENT,AMH - Specialist & Primary,Mental Health - Specialist & Primary,Supported Living
Cambridgeshire County Council,01-Apr-22,51301745420,"-2,658.06",Willow Care and Support,CARE ESTABLISHMENT,AMH - Specialist & Primary,Mental Health - Specialist & Primary,Supported Living
Cambridgeshire County Council,01-Apr-22,51301745420,"-2,658.06",Willow Care and Support,CARE ESTABLISHMENT,AMH - Specialist & Primary,Mental Health - Specialist & Primary,Supported Living
Cambridgeshire County Council,01-Apr-22,51301745420,"-2,658.06",Willow Care and Support,CARE ESTABLISHMENT,AMH - Specialist & Primary,Mental Health - Specialist & Primary,Supported Living
Cambridgeshire County Council,01-Apr-22,51301745420,"-2,658.06",Willow Care and Support,CARE ESTABLISHMENT,AMH - Specialist & Primary,Mental Health - Specialist & Primary,Supported Living
Cambridgeshire County Council,01-Apr-22,51301745420,"-2,658.06",Willow Care and Support,CARE ESTABLISHMENT,AMH - Specialist & Primary,Mental Health - Specialist & Primary,Supported Living
Cambridgeshire County Council,01-Apr-22,51301745420,"-2,658.06",Willow Care and Support,CARE ESTABLISHMENT,AMH - Specialist & Primary,Mental Health - Specialist & Primary,Supported Living
Cambridgeshire County Council,01-Apr-22,51301745420,"-2,658.06",Willow Care and Support,CARE ESTABLISHMENT,AMH - Specialist & Primary,Mental Health - Specialist & Primary,Supported Living
Cambridgeshire County Council,01-Apr-22,51301745420,"-2,658.06",Willow Care and Support,CARE ESTABLISHMENT,AMH - Specialist & Primary,Mental Health - Specialist & Primary,Supported Living
Cambridgeshire County Council,01-Apr-22,51301745420,"-2,658.06",Willow Care and Support,CARE ESTABLISHMENT,AMH - Specialist & Primary,Mental Health - Specialist & Primary,Supported Living
Cambridgeshire County Council,01-Apr-22,51301745420,"-2,658.06",Willow Care and Support,CARE ESTABLISHMENT,AMH - Specialist & Primary,Mental Health - Specialist & Primary,Supported Living
Cambridgeshire County Council,01-Apr-22,51301745420,"-2,658.06",Willow Care and Support,CARE ESTABLISHMENT,AMH - Specialist & Primary,Mental Health - Specialist & Primary,Supported Living
Cambridgeshire County Council,19-Apr-22,51301769251,"-2,629.02",Focus Care Agency,CARE ESTABLISHMENT,LD - Hunts Locality - Cost of Care,LD - Huntingdonshire - Care,Domiciliary Care
Cambridgeshire County Council,19-Apr-22,51301769251,"-2,629.02",Focus Care Agency,CARE ESTABLISHMENT,LD - Hunts Locality - Cost of Care,LD - Huntingdonshire - Care,Domiciliary Care
Cambridgeshire County Council,19-Apr-22,51301769251,"-2,629.02",Focus Care Agency,CARE ESTABLISHMENT,LD - Hunts Locality - Cost of Care,LD - Huntingdonshire - Care,Domiciliary Care
Cambridgeshire County Council,19-Apr-22,51301769251,"-2,629.02",Focus Care Agency,CARE ESTABLISHMENT,LD - Hunts Locality - Cost of Care,LD - Huntingdonshire - Care,Domiciliary Care
Cambridgeshire County Council,19-Apr-22,51301769251,"-2,629.02",Focus Care Agency,CARE ESTABLISHMENT,LD - Hunts Locality - Cost of Care,LD - Huntingdonshire - Care,Domiciliary Care
Cambridgeshire County Council,19-Apr-22,51301769251,"-2,629.02",Focus Care Agency,CARE ESTABLISHMENT,LD - Hunts Locality - Cost of Care,LD - Huntingdonshire - Care,Domiciliary Care
Cambridgeshire County Council,19-Apr-22,51301769251,"-2,629.02",Focus Care Agency,CARE ESTABLISHMENT,LD - Hunts Locality - Cost of Care,LD - Huntingdonshire - Care,Domiciliary Care
Cambridgeshire County Council,19-Apr-22,51301769251,"-2,629.02",Focus Care Agency,CARE ESTABLISHMENT,LD - Hunts Locality - Cost of Care,LD - Huntingdonshire - Care,Domiciliary Care
Cambridgeshire County Council,19-Apr-22,51301769251,"-2,629.02",Focus Care Agency,CARE ESTABLISHMENT,LD - Hunts Locality - Cost of Care,LD - Huntingdonshire - Care,Domiciliary Care
Cambridgeshire County Council,19-Apr-22,51301769251,"-2,629.02",Focus Care Agency,CARE ESTABLISHMENT,LD - Hunts Locality - Cost of Care,LD - Huntingdonshire - Care,Domiciliary Care
Cambridgeshire County Council,19-Apr-22,51301769251,"-2,629.02",Focus Care Agency,CARE ESTABLISHMENT,LD - Hunts Locality - Cost of Care,LD - Huntingdonshire - Care,Domiciliary Care
Cambridgeshire County Council,19-Apr-22,51301769251,"-2,629.02",Focus Care Agency,CARE ESTABLISHMENT,LD - Hunts Locality - Cost of Care,LD - Huntingdonshire - Care,Domiciliary Care
Cambridgeshire County Council,19-Apr-22,51301769251,"-2,629.02",Focus Care Agency,CARE ESTABLISHMENT,LD - Hunts Locality - Cost of Care,LD - Huntingdonshire - Care,Domiciliary Care
Cambridgeshire County Council,19-Apr-22,51301769251,"-2,629.02",Focus Care Agency,CARE ESTABLISHMENT,LD - Hunts Locality - Cost of Care,LD - Huntingdonshire - Care,Domiciliary Care
Cambridgeshire County Council,19-Apr-22,51301769079,"-2,629.02",Focus Care Agency,CARE ESTABLISHMENT,LD - Young Adults Team,LD - Young Adults - Care,Domiciliary Care
Cambridgeshire County Council,19-Apr-22,51301769079,"-2,629.02",Focus Care Agency,CARE ESTABLISHMENT,LD - Young Adults Team,LD - Young Adults - Care,Domiciliary Care
Cambridgeshire County Council,19-Apr-22,51301769079,"-2,629.02",Focus Care Agency,CARE ESTABLISHMENT,LD - Young Adults Team,LD - Young Adults - Care,Domiciliary Care
Cambridgeshire County Council,19-Apr-22,51301769079,"-2,629.02",Focus Care Agency,CARE ESTABLISHMENT,LD - Young Adults Team,LD - Young Adults - Care,Domiciliary Care
Cambridgeshire County Council,19-Apr-22,51301769079,"-2,629.02",Focus Care Agency,CARE ESTABLISHMENT,LD - Young Adults Team,LD - Young Adults - Care,Domiciliary Care
Cambridgeshire County Council,19-Apr-22,51301769079,"-2,629.02",Focus Care Agency,CARE ESTABLISHMENT,LD - Young Adults Team,LD - Young Adults - Care,Domiciliary Care
Cambridgeshire County Council,19-Apr-22,51301769079,"-2,629.02",Focus Care Agency,CARE ESTABLISHMENT,LD - Young Adults Team,LD - Young Adults - Care,Domiciliary Care
Cambridgeshire County Council,19-Apr-22,51301769079,"-2,629.02",Focus Care Agency,CARE ESTABLISHMENT,LD - Young Adults Team,LD - Young Adults - Care,Domiciliary Care
Cambridgeshire County Council,19-Apr-22,51301769079,"-2,629.02",Focus Care Agency,CARE ESTABLISHMENT,LD - Young Adults Team,LD - Young Adults - Care,Domiciliary Care
Cambridgeshire County Council,19-Apr-22,51301769079,"-2,629.02",Focus Care Agency,CARE ESTABLISHMENT,LD - Young Adults Team,LD - Young Adults - Care,Domiciliary Care
Cambridgeshire County Council,19-Apr-22,51301769079,"-2,629.02",Focus Care Agency,CARE ESTABLISHMENT,LD - Young Adults Team,LD - Young Adults - Care,Domiciliary Care
Cambridgeshire County Council,19-Apr-22,51301769079,"-2,629.02",Focus Care Agency,CARE ESTABLISHMENT,LD - Young Adults Team,LD - Young Adults - Care,Domiciliary Care
Cambridgeshire County Council,19-Apr-22,51301769079,"-2,629.02",Focus Care Agency,CARE ESTABLISHMENT,LD - Young Adults Team,LD - Young Adults - Care,Domiciliary Care
Cambridgeshire County Council,19-Apr-22,51301769079,"-2,629.02",Focus Care Agency,CARE ESTABLISHMENT,LD - Young Adults Team,LD - Young Adults - Care,Domiciliary Care
Cambridgeshire County Council,19-Apr-22,51301769079,"-2,629.02",Focus Care Agency,CARE ESTABLISHMENT,LD - Young Adults Team,LD - Young Adults - Care,Domiciliary Care
Cambridgeshire County Council,19-Apr-22,51301769079,"-2,629.02",Focus Care Agency,CARE ESTABLISHMENT,LD - Young Adults Team,LD - Young Adults - Care,Domiciliary Care
Cambridgeshire County Council,19-Apr-22,51301769079,"-2,629.02",Focus Care Agency,CARE ESTABLISHMENT,LD - Young Adults Team,LD - Young Adults - Care,Domiciliary Care
Cambridgeshire County Council,19-Apr-22,51301769079,"-2,629.02",Focus Care Agency,CARE ESTABLISHMENT,LD - Young Adults Team,LD - Young Adults - Care,Domiciliary Care
Cambridgeshire County Council,19-Apr-22,51301769079,"-2,629.02",Focus Care Agency,CARE ESTABLISHMENT,LD - Young Adults Team,LD - Young Adults - Care,Domiciliary Care
Cambridgeshire County Council,19-Apr-22,51301769079,"-2,629.02",Focus Care Agency,CARE ESTABLISHMENT,LD - Young Adults Team,LD - Young Adults - Care,Domiciliary Care
Cambridgeshire County Council,19-Apr-22,51301769079,"-2,629.02",Focus Care Agency,CARE ESTABLISHMENT,LD - Young Adults Team,LD - Young Adults - Care,Domiciliary Care
Cambridgeshire County Council,19-Apr-22,51301769079,"-2,629.02",Focus Care Agency,CARE ESTABLISHMENT,LD - Young Adults Team,LD - Young Adults - Care,Domiciliary Care
Cambridgeshire County Council,19-Apr-22,51301769079,"-2,629.02",Focus Care Agency,CARE ESTABLISHMENT,LD - Young Adults Team,LD - Young Adults - Care,Domiciliary Care
Cambridgeshire County Council,19-Apr-22,51301769079,"-2,629.02",Focus Care Agency,CARE ESTABLISHMENT,LD - Young Adults Team,LD - Young Adults - Care,Domiciliary Care
Cambridgeshire County Council,19-Apr-22,51301769079,"-2,629.02",Focus Care Agency,CARE ESTABLISHMENT,LD - Young Adults Team,LD - Young Adults - Care,Domiciliary Care
Cambridgeshire County Council,19-Apr-22,51301769079,"-2,629.02",Focus Care Agency,CARE ESTABLISHMENT,LD - Young Adults Team,LD - Young Adults - Care,Domiciliary Care
Cambridgeshire County Council,19-Apr-22,51301769079,"-2,629.02",Focus Care Agency,CARE ESTABLISHMENT,LD - Young Adults Team,LD - Young Adults - Care,Domiciliary Care
Cambridgeshire County Council,19-Apr-22,51301769079,"-2,629.02",Focus Care Agency,CARE ESTABLISHMENT,LD - Young Adults Team,LD - Young Adults - Care,Domiciliary Care
Cambridgeshire County Council,19-Apr-22,51301769079,"-2,629.02",Focus Care Agency,CARE ESTABLISHMENT,LD - Young Adults Team,LD - Young Adults - Care,Domiciliary Care
Cambridgeshire County Council,19-Apr-22,51301769079,"-2,629.02",Focus Care Agency,CARE ESTABLISHMENT,LD - Young Adults Team,LD - Young Adults - Care,Domiciliary Care
Cambridgeshire County Council,19-Apr-22,51301769079,"-2,629.02",Focus Care Agency,CARE ESTABLISHMENT,LD - Young Adults Team,LD - Young Adults - Care,Domiciliary Care
Cambridgeshire County Council,19-Apr-22,51301769079,"-2,629.02",Focus Care Agency,CARE ESTABLISHMENT,LD - Young Adults Team,LD - Young Adults - Care,Domiciliary Care
Cambridgeshire County Council,19-Apr-22,51301769079,"-2,629.02",Focus Care Agency,CARE ESTABLISHMENT,LD - Young Adults Team,LD - Young Adults - Care,Domiciliary Care
Cambridgeshire County Council,19-Apr-22,51301769079,"-2,629.02",Focus Care Agency,CARE ESTABLISHMENT,LD - Young Adults Team,LD - Young Adults - Care,Domiciliary Care
Cambridgeshire County Council,19-Apr-22,51301769079,"-2,629.02",Focus Care Agency,CARE ESTABLISHMENT,LD - Young Adults Team,LD - Young Adults - Care,Domiciliary Care
Cambridgeshire County Council,19-Apr-22,51301769079,"-2,629.02",Focus Care Agency,CARE ESTABLISHMENT,LD - Young Adults Team,LD - Young Adults - Care,Domiciliary Care
Cambridgeshire County Council,19-Apr-22,51301769079,"-2,629.02",Focus Care Agency,CARE ESTABLISHMENT,LD - Young Adults Team,LD - Young Adults - Care,Domiciliary Care
Cambridgeshire County Council,19-Apr-22,51301768019,"-2,600.00",SWAN HOUSE NURSING & RESIDENTIAL HOME,CARE ESTABLISHMENT,OP - Fenland Blocks,Fenland - Long term blocks,Nursing Care
Cambridgeshire County Council,19-Apr-22,51301768019,"-2,600.00",SWAN HOUSE NURSING & RESIDENTIAL HOME,CARE ESTABLISHMENT,OP - Fenland Blocks,Fenland - Long term blocks,Nursing Care
Cambridgeshire County Council,19-Apr-22,51301768019,"-2,600.00",SWAN HOUSE NURSING & RESIDENTIAL HOME,CARE ESTABLISHMENT,OP - Fenland Blocks,Fenland - Long term blocks,Nursing Care
Cambridgeshire County Council,19-Apr-22,51301768019,"-2,600.00",SWAN HOUSE NURSING & RESIDENTIAL HOME,CARE ESTABLISHMENT,OP - Fenland Blocks,Fenland - Long term blocks,Nursing Care
Cambridgeshire County Council,19-Apr-22,51301768019,"-2,600.00",SWAN HOUSE NURSING & RESIDENTIAL HOME,CARE ESTABLISHMENT,OP - Fenland Blocks,Fenland - Long term blocks,Nursing Care
Cambridgeshire County Council,19-Apr-22,51301768019,"-2,600.00",SWAN HOUSE NURSING & RESIDENTIAL HOME,CARE ESTABLISHMENT,OP - Fenland Blocks,Fenland - Long term blocks,Nursing Care
Cambridgeshire County Council,19-Apr-22,51301768019,"-2,600.00",SWAN HOUSE NURSING & RESIDENTIAL HOME,CARE ESTABLISHMENT,OP - Fenland Blocks,Fenland - Long term blocks,Nursing Care
Cambridgeshire County Council,19-Apr-22,51301768019,"-2,600.00",SWAN HOUSE NURSING & RESIDENTIAL HOME,CARE ESTABLISHMENT,OP - Fenland Blocks,Fenland - Long term blocks,Nursing Care
Cambridgeshire County Council,19-Apr-22,51301768019,"-2,600.00",SWAN HOUSE NURSING & RESIDENTIAL HOME,CARE ESTABLISHMENT,OP - Fenland Blocks,Fenland - Long term blocks,Nursing Care
Cambridgeshire County Council,19-Apr-22,51301768019,"-2,600.00",SWAN HOUSE NURSING & RESIDENTIAL HOME,CARE ESTABLISHMENT,OP - Fenland Blocks,Fenland - Long term blocks,Nursing Care
Cambridgeshire County Council,19-Apr-22,51301768019,"-2,600.00",SWAN HOUSE NURSING & RESIDENTIAL HOME,CARE ESTABLISHMENT,OP - Fenland Blocks,Fenland - Long term blocks,Nursing Care
Cambridgeshire County Council,19-Apr-22,51301768019,"-2,600.00",SWAN HOUSE NURSING & RESIDENTIAL HOME,CARE ESTABLISHMENT,OP - Fenland Blocks,Fenland - Long term blocks,Nursing Care
Cambridgeshire County Council,19-Apr-22,51301768019,"-2,600.00",SWAN HOUSE NURSING & RESIDENTIAL HOME,CARE ESTABLISHMENT,OP - Fenland Blocks,Fenland - Long term blocks,Nursing Care
Cambridgeshire County Council,19-Apr-22,51301768019,"-2,600.00",SWAN HOUSE NURSING & RESIDENTIAL HOME,CARE ESTABLISHMENT,OP - Fenland Blocks,Fenland - Long term blocks,Nursing Care
Cambridgeshire County Council,19-Apr-22,51301768019,"-2,600.00",SWAN HOUSE NURSING & RESIDENTIAL HOME,CARE ESTABLISHMENT,OP - Fenland Blocks,Fenland - Long term blocks,Nursing Care
Cambridgeshire County Council,19-Apr-22,51301768019,"-2,600.00",SWAN HOUSE NURSING & RESIDENTIAL HOME,CARE ESTABLISHMENT,OP - Fenland Blocks,Fenland - Long term blocks,Nursing Care
Cambridgeshire County Council,19-Apr-22,51301768019,"-2,600.00",SWAN HOUSE NURSING & RESIDENTIAL HOME,CARE ESTABLISHMENT,OP - Fenland Blocks,Fenland - Long term blocks,Nursing Care
Cambridgeshire County Council,19-Apr-22,51301768019,"-2,600.00",SWAN HOUSE NURSING & RESIDENTIAL HOME,CARE ESTABLISHMENT,OP - Fenland Blocks,Fenland - Long term blocks,Nursing Care
Cambridgeshire County Council,19-Apr-22,51301768019,"-2,600.00",SWAN HOUSE NURSING & RESIDENTIAL HOME,CARE ESTABLISHMENT,OP - Fenland Blocks,Fenland - Long term blocks,Nursing Care
Cambridgeshire County Council,19-Apr-22,51301768019,"-2,600.00",SWAN HOUSE NURSING & RESIDENTIAL HOME,CARE ESTABLISHMENT,OP - Fenland Blocks,Fenland - Long term blocks,Nursing Care
Cambridgeshire County Council,19-Apr-22,51301768019,"-2,600.00",SWAN HOUSE NURSING & RESIDENTIAL HOME,CARE ESTABLISHMENT,OP - Fenland Blocks,Fenland - Long term blocks,Nursing Care
Cambridgeshire County Council,19-Apr-22,51301768019,"-2,600.00",SWAN HOUSE NURSING & RESIDENTIAL HOME,CARE ESTABLISHMENT,OP - Fenland Blocks,Fenland - Long term blocks,Nursing Care
Cambridgeshire County Council,19-Apr-22,51301768019,"-2,600.00",SWAN HOUSE NURSING & RESIDENTIAL HOME,CARE ESTABLISHMENT,OP - Fenland Blocks,Fenland - Long term blocks,Nursing Care
Cambridgeshire County Council,19-Apr-22,51301768019,"-2,600.00",SWAN HOUSE NURSING & RESIDENTIAL HOME,CARE ESTABLISHMENT,OP - Fenland Blocks,Fenland - Long term blocks,Nursing Care
Cambridgeshire County Council,19-Apr-22,51301767989,"-2,486.88",BUCHAN HEALTHCARE LTD,CARE ESTABLISHMENT,OP - City & South Blocks,City and South - Long term blocks,Nursing Care
Cambridgeshire County Council,14-Apr-22,51301745889,"-2,478.00",Redacted Personal Data,SERVICE USER,LD - Hunts Locality - Cost of Care,LD - Huntingdonshire - Care,Direct Payments
Cambridgeshire County Council,14-Apr-22,51301745889,"-2,478.00",Redacted Personal Data,SERVICE USER,LD - Hunts Locality - Cost of Care,LD - Huntingdonshire - Care,Direct Payments
Cambridgeshire County Council,14-Apr-22,51301745889,"-2,478.00",Redacted Personal Data,SERVICE USER,LD - Hunts Locality - Cost of Care,LD - Huntingdonshire - Care,Direct Payments
Cambridgeshire County Council,14-Apr-22,51301745889,"-2,478.00",Redacted Personal Data,SERVICE USER,LD - Hunts Locality - Cost of Care,LD - Huntingdonshire - Care,Direct Payments
Cambridgeshire County Council,19-Apr-22,51301768044,"-2,476.08",BROOKFIELD CARE (Radis Commnity Care),CARE ESTABLISHMENT,Commissioning - Dom Cars,Hancock-Funded Dom-Cars,Domiciliary Care
Cambridgeshire County Council,19-Apr-22,51301768044,"-2,476.08",BROOKFIELD CARE (Radis Commnity Care),CARE ESTABLISHMENT,Commissioning - Dom Cars,Hancock-Funded Dom-Cars,Domiciliary Care
Cambridgeshire County Council,19-Apr-22,51301768044,"-2,476.08",BROOKFIELD CARE (Radis Commnity Care),CARE ESTABLISHMENT,Commissioning - Dom Cars,Hancock-Funded Dom-Cars,Domiciliary Care
Cambridgeshire County Council,19-Apr-22,51301768411,"-2,458.42",AURORA ORCHARD MANOR,CARE ESTABLISHMENT,LD - South Locality - Cost of Care,LD - South Cambs - Special Needs,Residential Care
Cambridgeshire County Council,19-Apr-22,51301768411,"-2,458.42",AURORA ORCHARD MANOR,CARE ESTABLISHMENT,LD - South Locality - Cost of Care,LD - South Cambs - Special Needs,Residential Care
Cambridgeshire County Council,19-Apr-22,51301768411,"-2,458.42",AURORA ORCHARD MANOR,CARE ESTABLISHMENT,LD - South Locality - Cost of Care,LD - South Cambs - Special Needs,Residential Care
Cambridgeshire County Council,19-Apr-22,51301768411,"-2,458.42",AURORA ORCHARD MANOR,CARE ESTABLISHMENT,LD - South Locality - Cost of Care,LD - South Cambs - Special Needs,Residential Care
Cambridgeshire County Council,19-Apr-22,51301768411,"-2,458.42",AURORA ORCHARD MANOR,CARE ESTABLISHMENT,LD - South Locality - Cost of Care,LD - South Cambs - Special Needs,Residential Care
Cambridgeshire County Council,01-Apr-22,51301745420,"-2,278.34",Willow Care and Support,CARE ESTABLISHMENT,AMH - Specialist & Primary,Mental Health - Specialist & Primary,Supported Living
Cambridgeshire County Council,19-Apr-22,51301768015,"-2,259.70",BROOKFIELD CARE (Radis Commnity Care),CARE ESTABLISHMENT,Commissioning - Dom Cars,East Cambs - Dom Blocks,Domiciliary Care
Cambridgeshire County Council,19-Apr-22,51301768044,"-2,122.35",BROOKFIELD CARE (Radis Commnity Care),CARE ESTABLISHMENT,Commissioning - Dom Cars,Hancock-Funded Dom-Cars,Domiciliary Care
Cambridgeshire County Council,19-Apr-22,51301768020,"-2,100.00",GLENNFIELD CARE CENTRE (OP),CARE ESTABLISHMENT,OP - Fenland Blocks,Fenland - Long term blocks,Nursing Care
Cambridgeshire County Council,19-Apr-22,51301768020,"-2,100.00",GLENNFIELD CARE CENTRE (OP),CARE ESTABLISHMENT,OP - Fenland Blocks,Fenland - Long term blocks,Nursing Care
Cambridgeshire County Council,19-Apr-22,51301768038,"-2,070.00",CARE UK LIMITED,CARE ESTABLISHMENT,OP - Hunts Blocks,Hunts - Long term blocks,Nursing Care
Cambridgeshire County Council,19-Apr-22,51301768038,"-2,070.00",CARE UK LIMITED,CARE ESTABLISHMENT,OP - Hunts Blocks,Hunts - Long term blocks,Nursing Care
Cambridgeshire County Council,19-Apr-22,51301768038,"-2,070.00",CARE UK LIMITED,CARE ESTABLISHMENT,OP - Hunts Blocks,Hunts - Long term blocks,Nursing Care
Cambridgeshire County Council,19-Apr-22,51301768038,"-2,070.00",CARE UK LIMITED,CARE ESTABLISHMENT,OP - Hunts Blocks,Hunts - Long term blocks,Nursing Care
Cambridgeshire County Council,14-Apr-22,51301764632,"-2,063.69",Redacted Personal Data,SERVICE USER,Physical Disablity - Cost of Care,Countywide PD Service - Care,Direct Payments
Cambridgeshire County Council,14-Apr-22,51301764632,"-2,063.69",Redacted Personal Data,SERVICE USER,Physical Disablity - Cost of Care,Countywide PD Service - Care,Direct Payments
Cambridgeshire County Council,14-Apr-22,51301764632,"-2,063.69",Redacted Personal Data,SERVICE USER,Physical Disablity - Cost of Care,Countywide PD Service - Care,Direct Payments
Cambridgeshire County Council,14-Apr-22,51301764632,"-2,063.69",Redacted Personal Data,SERVICE USER,Physical Disablity - Cost of Care,Countywide PD Service - Care,Direct Payments
Cambridgeshire County Council,19-Apr-22,51301768781,"-1,957.00",EAGLE WOOD NEUROLOGICAL CARE,CARE ESTABLISHMENT,OPMH - Hunts & Fens,Older People Mental Health Hunts,Nursing Care
Cambridgeshire County Council,19-Apr-22,51301768781,"-1,957.00",EAGLE WOOD NEUROLOGICAL CARE,CARE ESTABLISHMENT,OPMH - Hunts & Fens,Older People Mental Health Hunts,Nursing Care
Cambridgeshire County Council,19-Apr-22,51301768781,"-1,957.00",EAGLE WOOD NEUROLOGICAL CARE,CARE ESTABLISHMENT,OPMH - Hunts & Fens,Older People Mental Health Hunts,Nursing Care
Cambridgeshire County Council,19-Apr-22,51301768781,"-1,957.00",EAGLE WOOD NEUROLOGICAL CARE,CARE ESTABLISHMENT,OPMH - Hunts & Fens,Older People Mental Health Hunts,Nursing Care
Cambridgeshire County Council,19-Apr-22,51301768781,"-1,957.00",EAGLE WOOD NEUROLOGICAL CARE,CARE ESTABLISHMENT,OPMH - Hunts & Fens,Older People Mental Health Hunts,Nursing Care
Cambridgeshire County Council,19-Apr-22,51301768781,"-1,957.00",EAGLE WOOD NEUROLOGICAL CARE,CARE ESTABLISHMENT,OPMH - Hunts & Fens,Older People Mental Health Hunts,Nursing Care
Cambridgeshire County Council,19-Apr-22,51301768781,"-1,957.00",EAGLE WOOD NEUROLOGICAL CARE,CARE ESTABLISHMENT,OPMH - Hunts & Fens,Older People Mental Health Hunts,Nursing Care
Cambridgeshire County Council,19-Apr-22,51301768781,"-1,957.00",EAGLE WOOD NEUROLOGICAL CARE,CARE ESTABLISHMENT,OPMH - Hunts & Fens,Older People Mental Health Hunts,Nursing Care
Cambridgeshire County Council,19-Apr-22,51301768781,"-1,957.00",EAGLE WOOD NEUROLOGICAL CARE,CARE ESTABLISHMENT,OPMH - Hunts & Fens,Older People Mental Health Hunts,Nursing Care
Cambridgeshire County Council,19-Apr-22,51301768781,"-1,957.00",EAGLE WOOD NEUROLOGICAL CARE,CARE ESTABLISHMENT,OPMH - Hunts & Fens,Older People Mental Health Hunts,Nursing Care
Cambridgeshire County Council,19-Apr-22,51301768781,"-1,957.00",EAGLE WOOD NEUROLOGICAL CARE,CARE ESTABLISHMENT,OPMH - Hunts & Fens,Older People Mental Health Hunts,Nursing Care
Cambridgeshire County Council,19-Apr-22,51301768781,"-1,957.00",EAGLE WOOD NEUROLOGICAL CARE,CARE ESTABLISHMENT,OPMH - Hunts & Fens,Older People Mental Health Hunts,Nursing Care
Cambridgeshire County Council,19-Apr-22,51301768781,"-1,957.00",EAGLE WOOD NEUROLOGICAL CARE,CARE ESTABLISHMENT,OPMH - Hunts & Fens,Older People Mental Health Hunts,Nursing Care
Cambridgeshire County Council,19-Apr-22,51301768781,"-1,957.00",EAGLE WOOD NEUROLOGICAL CARE,CARE ESTABLISHMENT,OPMH - Hunts & Fens,Older People Mental Health Hunts,Nursing Care
Cambridgeshire County Council,19-Apr-22,51301768781,"-1,957.00",EAGLE WOOD NEUROLOGICAL CARE,CARE ESTABLISHMENT,OPMH - Hunts & Fens,Older People Mental Health Hunts,Nursing Care
Cambridgeshire County Council,19-Apr-22,51301768781,"-1,957.00",EAGLE WOOD NEUROLOGICAL CARE,CARE ESTABLISHMENT,OPMH - Hunts & Fens,Older People Mental Health Hunts,Nursing Care
Cambridgeshire County Council,19-Apr-22,51301768781,"-1,957.00",EAGLE WOOD NEUROLOGICAL CARE,CARE ESTABLISHMENT,OPMH - Hunts & Fens,Older People Mental Health Hunts,Nursing Care
Cambridgeshire County Council,19-Apr-22,51301768781,"-1,957.00",EAGLE WOOD NEUROLOGICAL CARE,CARE ESTABLISHMENT,OPMH - Hunts & Fens,Older People Mental Health Hunts,Nursing Care
Cambridgeshire County Council,19-Apr-22,51301768781,"-1,957.00",EAGLE WOOD NEUROLOGICAL CARE,CARE ESTABLISHMENT,OPMH - Hunts & Fens,Older People Mental Health Hunts,Nursing Care
Cambridgeshire County Council,19-Apr-22,51301768781,"-1,957.00",EAGLE WOOD NEUROLOGICAL CARE,CARE ESTABLISHMENT,OPMH - Hunts & Fens,Older People Mental Health Hunts,Nursing Care
Cambridgeshire County Council,19-Apr-22,51301768781,"-1,957.00",EAGLE WOOD NEUROLOGICAL CARE,CARE ESTABLISHMENT,OPMH - Hunts & Fens,Older People Mental Health Hunts,Nursing Care
Cambridgeshire County Council,19-Apr-22,51301768781,"-1,957.00",EAGLE WOOD NEUROLOGICAL CARE,CARE ESTABLISHMENT,OPMH - Hunts & Fens,Older People Mental Health Hunts,Nursing Care
Cambridgeshire County Council,19-Apr-22,51301768781,"-1,957.00",EAGLE WOOD NEUROLOGICAL CARE,CARE ESTABLISHMENT,OPMH - Hunts & Fens,Older People Mental Health Hunts,Nursing Care
Cambridgeshire County Council,19-Apr-22,51301768781,"-1,957.00",EAGLE WOOD NEUROLOGICAL CARE,CARE ESTABLISHMENT,OPMH - Hunts & Fens,Older People Mental Health Hunts,Nursing Care
Cambridgeshire County Council,19-Apr-22,51301768781,"-1,957.00",EAGLE WOOD NEUROLOGICAL CARE,CARE ESTABLISHMENT,OPMH - Hunts & Fens,Older People Mental Health Hunts,Nursing Care
Cambridgeshire County Council,19-Apr-22,51301768781,"-1,957.00",EAGLE WOOD NEUROLOGICAL CARE,CARE ESTABLISHMENT,OPMH - Hunts & Fens,Older People Mental Health Hunts,Nursing Care
Cambridgeshire County Council,19-Apr-22,51301768781,"-1,957.00",EAGLE WOOD NEUROLOGICAL CARE,CARE ESTABLISHMENT,OPMH - Hunts & Fens,Older People Mental Health Hunts,Nursing Care
Cambridgeshire County Council,19-Apr-22,51301768781,"-1,957.00",EAGLE WOOD NEUROLOGICAL CARE,CARE ESTABLISHMENT,OPMH - Hunts & Fens,Older People Mental Health Hunts,Nursing Care
Cambridgeshire County Council,19-Apr-22,51301768781,"-1,957.00",EAGLE WOOD NEUROLOGICAL CARE,CARE ESTABLISHMENT,OPMH - Hunts & Fens,Older People Mental Health Hunts,Nursing Care
Cambridgeshire County Council,19-Apr-22,51301768781,"-1,957.00",EAGLE WOOD NEUROLOGICAL CARE,CARE ESTABLISHMENT,OPMH - Hunts & Fens,Older People Mental Health Hunts,Nursing Care
Cambridgeshire County Council,19-Apr-22,51301768781,"-1,957.00",EAGLE WOOD NEUROLOGICAL CARE,CARE ESTABLISHMENT,OPMH - Hunts & Fens,Older People Mental Health Hunts,Nursing Care
Cambridgeshire County Council,19-Apr-22,51301768781,"-1,957.00",EAGLE WOOD NEUROLOGICAL CARE,CARE ESTABLISHMENT,OPMH - Hunts & Fens,Older People Mental Health Hunts,Nursing Care
Cambridgeshire County Council,19-Apr-22,51301768781,"-1,957.00",EAGLE WOOD NEUROLOGICAL CARE,CARE ESTABLISHMENT,OPMH - Hunts & Fens,Older People Mental Health Hunts,Nursing Care
Cambridgeshire County Council,19-Apr-22,51301768781,"-1,957.00",EAGLE WOOD NEUROLOGICAL CARE,CARE ESTABLISHMENT,OPMH - Hunts & Fens,Older People Mental Health Hunts,Nursing Care
Cambridgeshire County Council,19-Apr-22,51301768781,"-1,957.00",EAGLE WOOD NEUROLOGICAL CARE,CARE ESTABLISHMENT,OPMH - Hunts & Fens,Older People Mental Health Hunts,Nursing Care
Cambridgeshire County Council,19-Apr-22,51301768781,"-1,957.00",EAGLE WOOD NEUROLOGICAL CARE,CARE ESTABLISHMENT,OPMH - Hunts & Fens,Older People Mental Health Hunts,Nursing Care
Cambridgeshire County Council,19-Apr-22,51301768781,"-1,957.00",EAGLE WOOD NEUROLOGICAL CARE,CARE ESTABLISHMENT,OPMH - Hunts & Fens,Older People Mental Health Hunts,Nursing Care
Cambridgeshire County Council,19-Apr-22,51301768781,"-1,957.00",EAGLE WOOD NEUROLOGICAL CARE,CARE ESTABLISHMENT,OPMH - Hunts & Fens,Older People Mental Health Hunts,Nursing Care
Cambridgeshire County Council,19-Apr-22,51301768781,"-1,957.00",EAGLE WOOD NEUROLOGICAL CARE,CARE ESTABLISHMENT,OPMH - Hunts & Fens,Older People Mental Health Hunts,Nursing Care
Cambridgeshire County Council,19-Apr-22,51301768781,"-1,957.00",EAGLE WOOD NEUROLOGICAL CARE,CARE ESTABLISHMENT,OPMH - Hunts & Fens,Older People Mental Health Hunts,Nursing Care
Cambridgeshire County Council,19-Apr-22,51301768781,"-1,957.00",EAGLE WOOD NEUROLOGICAL CARE,CARE ESTABLISHMENT,OPMH - Hunts & Fens,Older People Mental Health Hunts,Nursing Care
Cambridgeshire County Council,19-Apr-22,51301768781,"-1,957.00",EAGLE WOOD NEUROLOGICAL CARE,CARE ESTABLISHMENT,OPMH - Hunts & Fens,Older People Mental Health Hunts,Nursing Care
Cambridgeshire County Council,19-Apr-22,51301768781,"-1,957.00",EAGLE WOOD NEUROLOGICAL CARE,CARE ESTABLISHMENT,OPMH - Hunts & Fens,Older People Mental Health Hunts,Nursing Care
Cambridgeshire County Council,19-Apr-22,51301768781,"-1,957.00",EAGLE WOOD NEUROLOGICAL CARE,CARE ESTABLISHMENT,OPMH - Hunts & Fens,Older People Mental Health Hunts,Nursing Care
Cambridgeshire County Council,19-Apr-22,51301768781,"-1,957.00",EAGLE WOOD NEUROLOGICAL CARE,CARE ESTABLISHMENT,OPMH - Hunts & Fens,Older People Mental Health Hunts,Nursing Care
Cambridgeshire County Council,19-Apr-22,51301768781,"-1,957.00",EAGLE WOOD NEUROLOGICAL CARE,CARE ESTABLISHMENT,OPMH - Hunts & Fens,Older People Mental Health Hunts,Nursing Care
Cambridgeshire County Council,19-Apr-22,51301768781,"-1,957.00",EAGLE WOOD NEUROLOGICAL CARE,CARE ESTABLISHMENT,OPMH - Hunts & Fens,Older People Mental Health Hunts,Nursing Care
Cambridgeshire County Council,19-Apr-22,51301768781,"-1,957.00",EAGLE WOOD NEUROLOGICAL CARE,CARE ESTABLISHMENT,OPMH - Hunts & Fens,Older People Mental Health Hunts,Nursing Care
Cambridgeshire County Council,19-Apr-22,51301768781,"-1,957.00",EAGLE WOOD NEUROLOGICAL CARE,CARE ESTABLISHMENT,OPMH - Hunts & Fens,Older People Mental Health Hunts,Nursing Care
Cambridgeshire County Council,19-Apr-22,51301768781,"-1,957.00",EAGLE WOOD NEUROLOGICAL CARE,CARE ESTABLISHMENT,OPMH - Hunts & Fens,Older People Mental Health Hunts,Nursing Care
Cambridgeshire County Council,19-Apr-22,51301768781,"-1,957.00",EAGLE WOOD NEUROLOGICAL CARE,CARE ESTABLISHMENT,OPMH - Hunts & Fens,Older People Mental Health Hunts,Nursing Care
Cambridgeshire County Council,19-Apr-22,51301768781,"-1,957.00",EAGLE WOOD NEUROLOGICAL CARE,CARE ESTABLISHMENT,OPMH - Hunts & Fens,Older People Mental Health Hunts,Nursing Care
Cambridgeshire County Council,19-Apr-22,51301768019,"-1,950.00",SWAN HOUSE NURSING & RESIDENTIAL HOME,CARE ESTABLISHMENT,OP - Fenland Blocks,Fenland - Long term blocks,Nursing Care
Cambridgeshire County Council,19-Apr-22,51301766764,"-1,946.51",VOYAGE,CARE ESTABLISHMENT,LD - Hunts Locality - Cost of Care,LD - Huntingdonshire - Care,Supported Living
Cambridgeshire County Council,19-Apr-22,51301766764,"-1,946.51",VOYAGE,CARE ESTABLISHMENT,LD - Hunts Locality - Cost of Care,LD - Huntingdonshire - Care,Supported Living
Cambridgeshire County Council,19-Apr-22,51301766764,"-1,946.51",VOYAGE,CARE ESTABLISHMENT,LD - Hunts Locality - Cost of Care,LD - Huntingdonshire - Care,Supported Living
Cambridgeshire County Council,19-Apr-22,51301766521,"-1,940.70",THERA EAST ANGLIA,CARE ESTABLISHMENT,LD - East Locality - Cost of Care,LD - East Cambs - Care,Domiciliary Care
Cambridgeshire County Council,19-Apr-22,51301766521,"-1,940.70",THERA EAST ANGLIA,CARE ESTABLISHMENT,LD - East Locality - Cost of Care,LD - East Cambs - Care,Domiciliary Care
Cambridgeshire County Council,19-Apr-22,51301766521,"-1,940.70",THERA EAST ANGLIA,CARE ESTABLISHMENT,LD - East Locality - Cost of Care,LD - East Cambs - Care,Domiciliary Care
Cambridgeshire County Council,19-Apr-22,51301766521,"-1,940.70",THERA EAST ANGLIA,CARE ESTABLISHMENT,LD - East Locality - Cost of Care,LD - East Cambs - Care,Domiciliary Care
Cambridgeshire County Council,26-Apr-22,51301771650,"-1,922.38",121 SOCIAL CARE LTD,CARE ESTABLISHMENT,LAC Placements,Placements - residential homes,Agency Placements - In County
Cambridgeshire County Council,19-Apr-22,51301768019,"-1,857.14",SWAN HOUSE NURSING & RESIDENTIAL HOME,CARE ESTABLISHMENT,OP - Fenland Blocks,Fenland - Long term blocks,Nursing Care
Cambridgeshire County Council,19-Apr-22,51301768019,"-1,857.14",SWAN HOUSE NURSING & RESIDENTIAL HOME,CARE ESTABLISHMENT,OP - Fenland Blocks,Fenland - Long term blocks,Nursing Care
Cambridgeshire County Council,19-Apr-22,51301768016,"-1,828.26",RHEOLA HEALTHCARE,CARE ESTABLISHMENT,OP - Hunts Blocks,Hunts - Long term blocks,Residential Care
Cambridgeshire County Council,19-Apr-22,51301768008,"-1,795.50",AISLING LODGE (MD CARE HOMES),CARE ESTABLISHMENT,OP - Hunts Blocks,Hunts - Long term blocks,Residential Care
Cambridgeshire County Council,19-Apr-22,51301768008,"-1,795.50",AISLING LODGE (MD CARE HOMES),CARE ESTABLISHMENT,OP - Hunts Blocks,Hunts - Long term blocks,Residential Care
Cambridgeshire County Council,19-Apr-22,51301767976,"-1,789.71",FORD HOUSE CARE HOME,CARE ESTABLISHMENT,OP - Hunts Locality - Cost of Care,Hunts OP Team - Care,Nursing Care
Cambridgeshire County Council,19-Apr-22,51301767997,"-1,761.00",K RAVIVARUMAN T/A FAIR HAVEN CARE HOME,CARE ESTABLISHMENT,OP - East Cambs Blocks,East Cambs � Long term Blocks,Residential Care
Cambridgeshire County Council,19-Apr-22,51301767997,"-1,761.00",K RAVIVARUMAN T/A FAIR HAVEN CARE HOME,CARE ESTABLISHMENT,OP - East Cambs Blocks,East Cambs � Long term Blocks,Residential Care
Cambridgeshire County Council,19-Apr-22,51301767997,"-1,761.00",K RAVIVARUMAN T/A FAIR HAVEN CARE HOME,CARE ESTABLISHMENT,OP - East Cambs Blocks,East Cambs � Long term Blocks,Residential Care
Cambridgeshire County Council,19-Apr-22,51301767997,"-1,761.00",K RAVIVARUMAN T/A FAIR HAVEN CARE HOME,CARE ESTABLISHMENT,OP - East Cambs Blocks,East Cambs � Long term Blocks,Residential Care
Cambridgeshire County Council,19-Apr-22,51301768037,"-1,689.43",THE CAMBRIDGE NURSING CENTRE,CARE ESTABLISHMENT,OP - City & South Blocks,City and South - Long term blocks,Nursing Care
Cambridgeshire County Council,29-Apr-22,51301773452,"-1,687.85",VOYAGE (LICHFIELD),CARE ESTABLISHMENT,LD - East Locality - Cost of Care,LD - East Cambs - Care,Residential Care - Property Voids
Cambridgeshire County Council,19-Apr-22,51301766521,"-1,663.46",THERA EAST ANGLIA,CARE ESTABLISHMENT,LD - East Locality - Cost of Care,LD - East Cambs - Care,Domiciliary Care
Cambridgeshire County Council,19-Apr-22,51301768847,"-1,644.68",Bramshaw House,COMPANY,LD - Hunts Locality - Cost of Care,LD - Huntingdonshire - Special Needs,Nursing Care
Cambridgeshire County Council,19-Apr-22,51301768847,"-1,644.68",Bramshaw House,COMPANY,LD - Hunts Locality - Cost of Care,LD - Huntingdonshire - Special Needs,Nursing Care
Cambridgeshire County Council,19-Apr-22,51301768847,"-1,644.68",Bramshaw House,COMPANY,LD - Hunts Locality - Cost of Care,LD - Huntingdonshire - Special Needs,Nursing Care
Cambridgeshire County Council,19-Apr-22,51301768847,"-1,644.68",Bramshaw House,COMPANY,LD - Hunts Locality - Cost of Care,LD - Huntingdonshire - Special Needs,Nursing Care
Cambridgeshire County Council,19-Apr-22,51301768847,"-1,644.68",Bramshaw House,COMPANY,LD - Hunts Locality - Cost of Care,LD - Huntingdonshire - Special Needs,Nursing Care
Cambridgeshire County Council,19-Apr-22,51301768847,"-1,644.68",Bramshaw House,COMPANY,LD - Hunts Locality - Cost of Care,LD - Huntingdonshire - Special Needs,Nursing Care
Cambridgeshire County Council,19-Apr-22,51301768847,"-1,644.68",Bramshaw House,COMPANY,LD - Hunts Locality - Cost of Care,LD - Huntingdonshire - Special Needs,Nursing Care
Cambridgeshire County Council,19-Apr-22,51301768847,"-1,644.68",Bramshaw House,COMPANY,LD - Hunts Locality - Cost of Care,LD - Huntingdonshire - Special Needs,Nursing Care
Cambridgeshire County Council,19-Apr-22,51301768847,"-1,644.68",Bramshaw House,COMPANY,LD - Hunts Locality - Cost of Care,LD - Huntingdonshire - Special Needs,Nursing Care
Cambridgeshire County Council,19-Apr-22,51301768847,"-1,644.68",Bramshaw House,COMPANY,LD - Hunts Locality - Cost of Care,LD - Huntingdonshire - Special Needs,Nursing Care
Cambridgeshire County Council,19-Apr-22,51301768847,"-1,644.68",Bramshaw House,COMPANY,LD - Hunts Locality - Cost of Care,LD - Huntingdonshire - Special Needs,Nursing Care
Cambridgeshire County Council,19-Apr-22,51301768847,"-1,644.68",Bramshaw House,COMPANY,LD - Hunts Locality - Cost of Care,LD - Huntingdonshire - Special Needs,Nursing Care
Cambridgeshire County Council,19-Apr-22,51301768847,"-1,644.68",Bramshaw House,COMPANY,LD - Hunts Locality - Cost of Care,LD - Huntingdonshire - Special Needs,Nursing Care
Cambridgeshire County Council,19-Apr-22,51301768847,"-1,644.68",Bramshaw House,COMPANY,LD - Hunts Locality - Cost of Care,LD - Huntingdonshire - Special Needs,Nursing Care
Cambridgeshire County Council,19-Apr-22,51301768847,"-1,644.68",Bramshaw House,COMPANY,LD - Hunts Locality - Cost of Care,LD - Huntingdonshire - Special Needs,Nursing Care
Cambridgeshire County Council,19-Apr-22,51301768847,"-1,644.68",Bramshaw House,COMPANY,LD - Hunts Locality - Cost of Care,LD - Huntingdonshire - Special Needs,Nursing Care
Cambridgeshire County Council,19-Apr-22,51301768847,"-1,644.68",Bramshaw House,COMPANY,LD - Hunts Locality - Cost of Care,LD - Huntingdonshire - Special Needs,Nursing Care
Cambridgeshire County Council,19-Apr-22,51301768847,"-1,644.68",Bramshaw House,COMPANY,LD - Hunts Locality - Cost of Care,LD - Huntingdonshire - Special Needs,Nursing Care
Cambridgeshire County Council,19-Apr-22,51301768847,"-1,644.68",Bramshaw House,COMPANY,LD - Hunts Locality - Cost of Care,LD - Huntingdonshire - Special Needs,Nursing Care
Cambridgeshire County Council,19-Apr-22,51301768847,"-1,644.68",Bramshaw House,COMPANY,LD - Hunts Locality - Cost of Care,LD - Huntingdonshire - Special Needs,Nursing Care
Cambridgeshire County Council,19-Apr-22,51301768847,"-1,644.68",Bramshaw House,COMPANY,LD - Hunts Locality - Cost of Care,LD - Huntingdonshire - Special Needs,Nursing Care
Cambridgeshire County Council,19-Apr-22,51301768847,"-1,644.68",Bramshaw House,COMPANY,LD - Hunts Locality - Cost of Care,LD - Huntingdonshire - Special Needs,Nursing Care
Cambridgeshire County Council,19-Apr-22,51301768847,"-1,644.68",Bramshaw House,COMPANY,LD - Hunts Locality - Cost of Care,LD - Huntingdonshire - Special Needs,Nursing Care
Cambridgeshire County Council,19-Apr-22,51301768847,"-1,644.68",Bramshaw House,COMPANY,LD - Hunts Locality - Cost of Care,LD - Huntingdonshire - Special Needs,Nursing Care
Cambridgeshire County Council,19-Apr-22,51301768847,"-1,644.68",Bramshaw House,COMPANY,LD - Hunts Locality - Cost of Care,LD - Huntingdonshire - Special Needs,Nursing Care
Cambridgeshire County Council,19-Apr-22,51301768847,"-1,644.68",Bramshaw House,COMPANY,LD - Hunts Locality - Cost of Care,LD - Huntingdonshire - Special Needs,Nursing Care
Cambridgeshire County Council,19-Apr-22,51301768847,"-1,644.68",Bramshaw House,COMPANY,LD - Hunts Locality - Cost of Care,LD - Huntingdonshire - Special Needs,Nursing Care
Cambridgeshire County Council,19-Apr-22,51301768847,"-1,644.68",Bramshaw House,COMPANY,LD - Hunts Locality - Cost of Care,LD - Huntingdonshire - Special Needs,Nursing Care
Cambridgeshire County Council,19-Apr-22,51301768847,"-1,644.68",Bramshaw House,COMPANY,LD - Hunts Locality - Cost of Care,LD - Huntingdonshire - Special Needs,Nursing Care
Cambridgeshire County Council,19-Apr-22,51301768847,"-1,644.68",Bramshaw House,COMPANY,LD - Hunts Locality - Cost of Care,LD - Huntingdonshire - Special Needs,Nursing Care
Cambridgeshire County Council,19-Apr-22,51301768847,"-1,644.68",Bramshaw House,COMPANY,LD - Hunts Locality - Cost of Care,LD - Huntingdonshire - Special Needs,Nursing Care
Cambridgeshire County Council,19-Apr-22,51301768847,"-1,644.68",Bramshaw House,COMPANY,LD - Hunts Locality - Cost of Care,LD - Huntingdonshire - Special Needs,Nursing Care
Cambridgeshire County Council,19-Apr-22,51301768847,"-1,644.68",Bramshaw House,COMPANY,LD - Hunts Locality - Cost of Care,LD - Huntingdonshire - Special Needs,Nursing Care
Cambridgeshire County Council,19-Apr-22,51301768847,"-1,644.68",Bramshaw House,COMPANY,LD - Hunts Locality - Cost of Care,LD - Huntingdonshire - Special Needs,Nursing Care
Cambridgeshire County Council,19-Apr-22,51301768847,"-1,644.68",Bramshaw House,COMPANY,LD - Hunts Locality - Cost of Care,LD - Huntingdonshire - Special Needs,Nursing Care
Cambridgeshire County Council,19-Apr-22,51301768847,"-1,644.68",Bramshaw House,COMPANY,LD - Hunts Locality - Cost of Care,LD - Huntingdonshire - Special Needs,Nursing Care
Cambridgeshire County Council,19-Apr-22,51301768847,"-1,644.68",Bramshaw House,COMPANY,LD - Hunts Locality - Cost of Care,LD - Huntingdonshire - Special Needs,Nursing Care
Cambridgeshire County Council,19-Apr-22,51301768847,"-1,644.68",Bramshaw House,COMPANY,LD - Hunts Locality - Cost of Care,LD - Huntingdonshire - Special Needs,Nursing Care
Cambridgeshire County Council,19-Apr-22,51301768847,"-1,644.68",Bramshaw House,COMPANY,LD - Hunts Locality - Cost of Care,LD - Huntingdonshire - Special Needs,Nursing Care
Cambridgeshire County Council,19-Apr-22,51301768847,"-1,644.68",Bramshaw House,COMPANY,LD - Hunts Locality - Cost of Care,LD - Huntingdonshire - Special Needs,Nursing Care
Cambridgeshire County Council,19-Apr-22,51301768847,"-1,644.68",Bramshaw House,COMPANY,LD - Hunts Locality - Cost of Care,LD - Huntingdonshire - Special Needs,Nursing Care
Cambridgeshire County Council,19-Apr-22,51301768847,"-1,644.68",Bramshaw House,COMPANY,LD - Hunts Locality - Cost of Care,LD - Huntingdonshire - Special Needs,Nursing Care
Cambridgeshire County Council,19-Apr-22,51301768847,"-1,644.68",Bramshaw House,COMPANY,LD - Hunts Locality - Cost of Care,LD - Huntingdonshire - Special Needs,Nursing Care
Cambridgeshire County Council,19-Apr-22,51301768847,"-1,644.68",Bramshaw House,COMPANY,LD - Hunts Locality - Cost of Care,LD - Huntingdonshire - Special Needs,Nursing Care
Cambridgeshire County Council,19-Apr-22,51301768847,"-1,644.68",Bramshaw House,COMPANY,LD - Hunts Locality - Cost of Care,LD - Huntingdonshire - Special Needs,Nursing Care
Cambridgeshire County Council,19-Apr-22,51301768847,"-1,644.68",Bramshaw House,COMPANY,LD - Hunts Locality - Cost of Care,LD - Huntingdonshire - Special Needs,Nursing Care
Cambridgeshire County Council,19-Apr-22,51301768847,"-1,644.68",Bramshaw House,COMPANY,LD - Hunts Locality - Cost of Care,LD - Huntingdonshire - Special Needs,Nursing Care
Cambridgeshire County Council,19-Apr-22,51301768847,"-1,644.68",Bramshaw House,COMPANY,LD - Hunts Locality - Cost of Care,LD - Huntingdonshire - Special Needs,Nursing Care
Cambridgeshire County Council,19-Apr-22,51301768847,"-1,644.68",Bramshaw House,COMPANY,LD - Hunts Locality - Cost of Care,LD - Huntingdonshire - Special Needs,Nursing Care
Cambridgeshire County Council,19-Apr-22,51301768847,"-1,644.68",Bramshaw House,COMPANY,LD - Hunts Locality - Cost of Care,LD - Huntingdonshire - Special Needs,Nursing Care
Cambridgeshire County Council,19-Apr-22,51301768847,"-1,644.68",Bramshaw House,COMPANY,LD - Hunts Locality - Cost of Care,LD - Huntingdonshire - Special Needs,Nursing Care
Cambridgeshire County Council,19-Apr-22,51301768847,"-1,644.68",Bramshaw House,COMPANY,LD - Hunts Locality - Cost of Care,LD - Huntingdonshire - Special Needs,Nursing Care
Cambridgeshire County Council,14-Apr-22,51301765907,"-1,619.23",Redacted Personal Data,SERVICE USER,LD - Fenland Locality - Cost of Care,LD - Fenland  - Care,Direct Payments
Cambridgeshire County Council,14-Apr-22,51301765907,"-1,619.23",Redacted Personal Data,SERVICE USER,LD - Fenland Locality - Cost of Care,LD - Fenland  - Care,Direct Payments
Cambridgeshire County Council,14-Apr-22,51301765907,"-1,619.23",Redacted Personal Data,SERVICE USER,LD - Fenland Locality - Cost of Care,LD - Fenland  - Care,Direct Payments
Cambridgeshire County Council,14-Apr-22,51301765907,"-1,619.23",Redacted Personal Data,SERVICE USER,LD - Fenland Locality - Cost of Care,LD - Fenland  - Care,Direct Payments
Cambridgeshire County Council,14-Apr-22,51301765907,"-1,619.23",Redacted Personal Data,SERVICE USER,LD - Fenland Locality - Cost of Care,LD - Fenland  - Care,Direct Payments
Cambridgeshire County Council,14-Apr-22,51301764286,"-1,616.13",Careuk247 Home Care Ltd,COMPANY,OPMH - City & South,Older People Mental Health City & South,Domiciliary Care
Cambridgeshire County Council,19-Apr-22,51301767995,"-1,581.79",BROOKFIELD CARE (Radis Commnity Care),CARE ESTABLISHMENT,Commissioning - Dom Cars,Hancock-Funded Dom-Cars,Domiciliary Care
Cambridgeshire County Council,19-Apr-22,51301767995,"-1,581.79",BROOKFIELD CARE (Radis Commnity Care),CARE ESTABLISHMENT,Commissioning - Dom Cars,Hancock-Funded Dom-Cars,Domiciliary Care
Cambridgeshire County Council,19-Apr-22,51301767995,"-1,581.79",BROOKFIELD CARE (Radis Commnity Care),CARE ESTABLISHMENT,Commissioning - Dom Cars,Hancock-Funded Dom-Cars,Domiciliary Care
Cambridgeshire County Council,19-Apr-22,51301767995,"-1,581.79",BROOKFIELD CARE (Radis Commnity Care),CARE ESTABLISHMENT,Commissioning - Dom Cars,Hancock-Funded Dom-Cars,Domiciliary Care
Cambridgeshire County Council,19-Apr-22,51301769076,"-1,543.05",AUGUSTA CARE LTD,CARE ESTABLISHMENT,LD - Fenland Locality - Cost of Care,LD - Fenland  - Care,Supported Living
Cambridgeshire County Council,19-Apr-22,51301769076,"-1,543.05",AUGUSTA CARE LTD,CARE ESTABLISHMENT,LD - Fenland Locality - Cost of Care,LD - Fenland  - Care,Supported Living
Cambridgeshire County Council,19-Apr-22,51301769076,"-1,543.05",AUGUSTA CARE LTD,CARE ESTABLISHMENT,LD - Fenland Locality - Cost of Care,LD - Fenland  - Care,Supported Living
Cambridgeshire County Council,19-Apr-22,51301769076,"-1,543.05",AUGUSTA CARE LTD,CARE ESTABLISHMENT,LD - Fenland Locality - Cost of Care,LD - Fenland  - Care,Supported Living
Cambridgeshire County Council,19-Apr-22,51301769076,"-1,543.05",AUGUSTA CARE LTD,CARE ESTABLISHMENT,LD - Fenland Locality - Cost of Care,LD - Fenland  - Care,Supported Living
Cambridgeshire County Council,19-Apr-22,51301769076,"-1,543.05",AUGUSTA CARE LTD,CARE ESTABLISHMENT,LD - Fenland Locality - Cost of Care,LD - Fenland  - Care,Supported Living
Cambridgeshire County Council,19-Apr-22,51301769076,"-1,543.05",AUGUSTA CARE LTD,CARE ESTABLISHMENT,LD - Fenland Locality - Cost of Care,LD - Fenland  - Care,Supported Living
Cambridgeshire County Council,19-Apr-22,51301769076,"-1,543.05",AUGUSTA CARE LTD,CARE ESTABLISHMENT,LD - Fenland Locality - Cost of Care,LD - Fenland  - Care,Supported Living
Cambridgeshire County Council,19-Apr-22,51301769076,"-1,543.05",AUGUSTA CARE LTD,CARE ESTABLISHMENT,LD - Fenland Locality - Cost of Care,LD - Fenland  - Care,Supported Living
Cambridgeshire County Council,19-Apr-22,51301769076,"-1,543.05",AUGUSTA CARE LTD,CARE ESTABLISHMENT,LD - Fenland Locality - Cost of Care,LD - Fenland  - Care,Supported Living
Cambridgeshire County Council,19-Apr-22,51301769076,"-1,543.05",AUGUSTA CARE LTD,CARE ESTABLISHMENT,LD - Fenland Locality - Cost of Care,LD - Fenland  - Care,Supported Living
Cambridgeshire County Council,19-Apr-22,51301769076,"-1,543.05",AUGUSTA CARE LTD,CARE ESTABLISHMENT,LD - Fenland Locality - Cost of Care,LD - Fenland  - Care,Supported Living
Cambridgeshire County Council,19-Apr-22,51301769076,"-1,543.05",AUGUSTA CARE LTD,CARE ESTABLISHMENT,LD - Fenland Locality - Cost of Care,LD - Fenland  - Care,Supported Living
Cambridgeshire County Council,19-Apr-22,51301769076,"-1,543.05",AUGUSTA CARE LTD,CARE ESTABLISHMENT,LD - Fenland Locality - Cost of Care,LD - Fenland  - Care,Supported Living
Cambridgeshire County Council,19-Apr-22,51301769076,"-1,543.05",AUGUSTA CARE LTD,CARE ESTABLISHMENT,LD - Fenland Locality - Cost of Care,LD - Fenland  - Care,Supported Living
Cambridgeshire County Council,19-Apr-22,51301769076,"-1,543.05",AUGUSTA CARE LTD,CARE ESTABLISHMENT,LD - Fenland Locality - Cost of Care,LD - Fenland  - Care,Supported Living
Cambridgeshire County Council,19-Apr-22,51301769076,"-1,543.05",AUGUSTA CARE LTD,CARE ESTABLISHMENT,LD - Fenland Locality - Cost of Care,LD - Fenland  - Care,Supported Living
Cambridgeshire County Council,19-Apr-22,51301769076,"-1,543.05",AUGUSTA CARE LTD,CARE ESTABLISHMENT,LD - Fenland Locality - Cost of Care,LD - Fenland  - Care,Supported Living
Cambridgeshire County Council,19-Apr-22,51301769076,"-1,543.05",AUGUSTA CARE LTD,CARE ESTABLISHMENT,LD - Fenland Locality - Cost of Care,LD - Fenland  - Care,Supported Living
Cambridgeshire County Council,19-Apr-22,51301769076,"-1,543.05",AUGUSTA CARE LTD,CARE ESTABLISHMENT,LD - Fenland Locality - Cost of Care,LD - Fenland  - Care,Supported Living
Cambridgeshire County Council,19-Apr-22,51301769076,"-1,543.05",AUGUSTA CARE LTD,CARE ESTABLISHMENT,LD - Fenland Locality - Cost of Care,LD - Fenland  - Care,Supported Living
Cambridgeshire County Council,19-Apr-22,51301769076,"-1,543.05",AUGUSTA CARE LTD,CARE ESTABLISHMENT,LD - Fenland Locality - Cost of Care,LD - Fenland  - Care,Supported Living
Cambridgeshire County Council,19-Apr-22,51301769076,"-1,543.05",AUGUSTA CARE LTD,CARE ESTABLISHMENT,LD - Fenland Locality - Cost of Care,LD - Fenland  - Care,Supported Living
Cambridgeshire County Council,19-Apr-22,51301769076,"-1,543.05",AUGUSTA CARE LTD,CARE ESTABLISHMENT,LD - Fenland Locality - Cost of Care,LD - Fenland  - Care,Supported Living
Cambridgeshire County Council,19-Apr-22,51301769076,"-1,543.05",AUGUSTA CARE LTD,CARE ESTABLISHMENT,LD - Fenland Locality - Cost of Care,LD - Fenland  - Care,Supported Living
Cambridgeshire County Council,19-Apr-22,51301769076,"-1,543.05",AUGUSTA CARE LTD,CARE ESTABLISHMENT,LD - Fenland Locality - Cost of Care,LD - Fenland  - Care,Supported Living
Cambridgeshire County Council,19-Apr-22,51301769076,"-1,543.05",AUGUSTA CARE LTD,CARE ESTABLISHMENT,LD - Fenland Locality - Cost of Care,LD - Fenland  - Care,Supported Living
Cambridgeshire County Council,19-Apr-22,51301769076,"-1,543.05",AUGUSTA CARE LTD,CARE ESTABLISHMENT,LD - Fenland Locality - Cost of Care,LD - Fenland  - Care,Supported Living
Cambridgeshire County Council,19-Apr-22,51301769076,"-1,543.05",AUGUSTA CARE LTD,CARE ESTABLISHMENT,LD - Fenland Locality - Cost of Care,LD - Fenland  - Care,Supported Living
Cambridgeshire County Council,19-Apr-22,51301769076,"-1,543.05",AUGUSTA CARE LTD,CARE ESTABLISHMENT,LD - Fenland Locality - Cost of Care,LD - Fenland  - Care,Supported Living
Cambridgeshire County Council,19-Apr-22,51301769076,"-1,543.05",AUGUSTA CARE LTD,CARE ESTABLISHMENT,LD - Fenland Locality - Cost of Care,LD - Fenland  - Care,Supported Living
Cambridgeshire County Council,19-Apr-22,51301769076,"-1,543.05",AUGUSTA CARE LTD,CARE ESTABLISHMENT,LD - Fenland Locality - Cost of Care,LD - Fenland  - Care,Supported Living
Cambridgeshire County Council,19-Apr-22,51301769076,"-1,543.05",AUGUSTA CARE LTD,CARE ESTABLISHMENT,LD - Fenland Locality - Cost of Care,LD - Fenland  - Care,Supported Living
Cambridgeshire County Council,19-Apr-22,51301769076,"-1,543.05",AUGUSTA CARE LTD,CARE ESTABLISHMENT,LD - Fenland Locality - Cost of Care,LD - Fenland  - Care,Supported Living
Cambridgeshire County Council,19-Apr-22,51301769076,"-1,543.05",AUGUSTA CARE LTD,CARE ESTABLISHMENT,LD - Fenland Locality - Cost of Care,LD - Fenland  - Care,Supported Living
Cambridgeshire County Council,19-Apr-22,51301769076,"-1,543.05",AUGUSTA CARE LTD,CARE ESTABLISHMENT,LD - Fenland Locality - Cost of Care,LD - Fenland  - Care,Supported Living
Cambridgeshire County Council,19-Apr-22,51301769076,"-1,543.05",AUGUSTA CARE LTD,CARE ESTABLISHMENT,LD - Fenland Locality - Cost of Care,LD - Fenland  - Care,Supported Living
Cambridgeshire County Council,19-Apr-22,51301769076,"-1,543.05",AUGUSTA CARE LTD,CARE ESTABLISHMENT,LD - Fenland Locality - Cost of Care,LD - Fenland  - Care,Supported Living
Cambridgeshire County Council,19-Apr-22,51301769079,"-1,502.30",Focus Care Agency,CARE ESTABLISHMENT,LD - Young Adults Team,LD - Young Adults - Care,Domiciliary Care
Cambridgeshire County Council,19-Apr-22,51301768019,"-1,485.71",SWAN HOUSE NURSING & RESIDENTIAL HOME,CARE ESTABLISHMENT,OP - Fenland Blocks,Fenland - Long term blocks,Nursing Care
Cambridgeshire County Council,19-Apr-22,51301769214,"-1,480.89",Focus Care Agency,CARE ESTABLISHMENT,LD - Fenland Locality - Cost of Care,LD - Fenland  - Care,Supported Living
Cambridgeshire County Council,19-Apr-22,51301769214,"-1,480.89",Focus Care Agency,CARE ESTABLISHMENT,LD - Fenland Locality - Cost of Care,LD - Fenland  - Care,Supported Living
Cambridgeshire County Council,19-Apr-22,51301769214,"-1,480.89",Focus Care Agency,CARE ESTABLISHMENT,LD - Fenland Locality - Cost of Care,LD - Fenland  - Care,Supported Living
Cambridgeshire County Council,19-Apr-22,51301769214,"-1,480.89",Focus Care Agency,CARE ESTABLISHMENT,LD - Fenland Locality - Cost of Care,LD - Fenland  - Care,Supported Living
Cambridgeshire County Council,19-Apr-22,51301769214,"-1,480.89",Focus Care Agency,CARE ESTABLISHMENT,LD - Fenland Locality - Cost of Care,LD - Fenland  - Care,Supported Living
Cambridgeshire County Council,19-Apr-22,51301769214,"-1,480.89",Focus Care Agency,CARE ESTABLISHMENT,LD - Fenland Locality - Cost of Care,LD - Fenland  - Care,Supported Living
Cambridgeshire County Council,19-Apr-22,51301769214,"-1,480.89",Focus Care Agency,CARE ESTABLISHMENT,LD - Fenland Locality - Cost of Care,LD - Fenland  - Care,Supported Living
Cambridgeshire County Council,19-Apr-22,51301769214,"-1,480.89",Focus Care Agency,CARE ESTABLISHMENT,LD - Fenland Locality - Cost of Care,LD - Fenland  - Care,Supported Living
Cambridgeshire County Council,19-Apr-22,51301769214,"-1,480.89",Focus Care Agency,CARE ESTABLISHMENT,LD - Fenland Locality - Cost of Care,LD - Fenland  - Care,Supported Living
Cambridgeshire County Council,19-Apr-22,51301769214,"-1,480.89",Focus Care Agency,CARE ESTABLISHMENT,LD - Fenland Locality - Cost of Care,LD - Fenland  - Care,Supported Living
Cambridgeshire County Council,19-Apr-22,51301769214,"-1,480.89",Focus Care Agency,CARE ESTABLISHMENT,LD - Fenland Locality - Cost of Care,LD - Fenland  - Care,Supported Living
Cambridgeshire County Council,19-Apr-22,51301769214,"-1,480.89",Focus Care Agency,CARE ESTABLISHMENT,LD - Fenland Locality - Cost of Care,LD - Fenland  - Care,Supported Living
Cambridgeshire County Council,19-Apr-22,51301769214,"-1,480.89",Focus Care Agency,CARE ESTABLISHMENT,LD - Fenland Locality - Cost of Care,LD - Fenland  - Care,Supported Living
Cambridgeshire County Council,19-Apr-22,51301769214,"-1,480.89",Focus Care Agency,CARE ESTABLISHMENT,LD - Fenland Locality - Cost of Care,LD - Fenland  - Care,Supported Living
Cambridgeshire County Council,19-Apr-22,51301769214,"-1,480.89",Focus Care Agency,CARE ESTABLISHMENT,LD - Fenland Locality - Cost of Care,LD - Fenland  - Care,Supported Living
Cambridgeshire County Council,19-Apr-22,51301769214,"-1,480.89",Focus Care Agency,CARE ESTABLISHMENT,LD - Fenland Locality - Cost of Care,LD - Fenland  - Care,Supported Living
Cambridgeshire County Council,19-Apr-22,51301769214,"-1,480.89",Focus Care Agency,CARE ESTABLISHMENT,LD - Fenland Locality - Cost of Care,LD - Fenland  - Care,Supported Living
Cambridgeshire County Council,19-Apr-22,51301769214,"-1,480.89",Focus Care Agency,CARE ESTABLISHMENT,LD - Fenland Locality - Cost of Care,LD - Fenland  - Care,Supported Living
Cambridgeshire County Council,19-Apr-22,51301769214,"-1,480.89",Focus Care Agency,CARE ESTABLISHMENT,LD - Fenland Locality - Cost of Care,LD - Fenland  - Care,Supported Living
Cambridgeshire County Council,19-Apr-22,51301769214,"-1,480.89",Focus Care Agency,CARE ESTABLISHMENT,LD - Fenland Locality - Cost of Care,LD - Fenland  - Care,Supported Living
Cambridgeshire County Council,19-Apr-22,51301769214,"-1,480.89",Focus Care Agency,CARE ESTABLISHMENT,LD - Fenland Locality - Cost of Care,LD - Fenland  - Care,Supported Living
Cambridgeshire County Council,19-Apr-22,51301769214,"-1,480.89",Focus Care Agency,CARE ESTABLISHMENT,LD - Fenland Locality - Cost of Care,LD - Fenland  - Care,Supported Living
Cambridgeshire County Council,19-Apr-22,51301769214,"-1,480.89",Focus Care Agency,CARE ESTABLISHMENT,LD - Fenland Locality - Cost of Care,LD - Fenland  - Care,Supported Living
Cambridgeshire County Council,19-Apr-22,51301769214,"-1,480.89",Focus Care Agency,CARE ESTABLISHMENT,LD - Fenland Locality - Cost of Care,LD - Fenland  - Care,Supported Living
Cambridgeshire County Council,19-Apr-22,51301769214,"-1,480.89",Focus Care Agency,CARE ESTABLISHMENT,LD - Fenland Locality - Cost of Care,LD - Fenland  - Care,Supported Living
Cambridgeshire County Council,19-Apr-22,51301769214,"-1,480.89",Focus Care Agency,CARE ESTABLISHMENT,LD - Fenland Locality - Cost of Care,LD - Fenland  - Care,Supported Living
Cambridgeshire County Council,19-Apr-22,51301769214,"-1,480.89",Focus Care Agency,CARE ESTABLISHMENT,LD - Fenland Locality - Cost of Care,LD - Fenland  - Care,Supported Living
Cambridgeshire County Council,19-Apr-22,51301769214,"-1,480.89",Focus Care Agency,CARE ESTABLISHMENT,LD - Fenland Locality - Cost of Care,LD - Fenland  - Care,Supported Living
Cambridgeshire County Council,19-Apr-22,51301769214,"-1,480.89",Focus Care Agency,CARE ESTABLISHMENT,LD - Fenland Locality - Cost of Care,LD - Fenland  - Care,Supported Living
Cambridgeshire County Council,19-Apr-22,51301769214,"-1,480.89",Focus Care Agency,CARE ESTABLISHMENT,LD - Fenland Locality - Cost of Care,LD - Fenland  - Care,Supported Living
Cambridgeshire County Council,19-Apr-22,51301769214,"-1,480.89",Focus Care Agency,CARE ESTABLISHMENT,LD - Fenland Locality - Cost of Care,LD - Fenland  - Care,Supported Living
Cambridgeshire County Council,19-Apr-22,51301769214,"-1,480.89",Focus Care Agency,CARE ESTABLISHMENT,LD - Fenland Locality - Cost of Care,LD - Fenland  - Care,Supported Living
Cambridgeshire County Council,19-Apr-22,51301769214,"-1,480.89",Focus Care Agency,CARE ESTABLISHMENT,LD - Fenland Locality - Cost of Care,LD - Fenland  - Care,Supported Living
Cambridgeshire County Council,19-Apr-22,51301769214,"-1,480.89",Focus Care Agency,CARE ESTABLISHMENT,LD - Fenland Locality - Cost of Care,LD - Fenland  - Care,Supported Living
Cambridgeshire County Council,19-Apr-22,51301769214,"-1,480.89",Focus Care Agency,CARE ESTABLISHMENT,LD - Fenland Locality - Cost of Care,LD - Fenland  - Care,Supported Living
Cambridgeshire County Council,19-Apr-22,51301769214,"-1,480.89",Focus Care Agency,CARE ESTABLISHMENT,LD - Fenland Locality - Cost of Care,LD - Fenland  - Care,Supported Living
Cambridgeshire County Council,19-Apr-22,51301769214,"-1,480.89",Focus Care Agency,CARE ESTABLISHMENT,LD - Fenland Locality - Cost of Care,LD - Fenland  - Care,Supported Living
Cambridgeshire County Council,19-Apr-22,51301769214,"-1,480.89",Focus Care Agency,CARE ESTABLISHMENT,LD - Fenland Locality - Cost of Care,LD - Fenland  - Care,Supported Living
Cambridgeshire County Council,19-Apr-22,51301769214,"-1,480.89",Focus Care Agency,CARE ESTABLISHMENT,LD - Fenland Locality - Cost of Care,LD - Fenland  - Care,Supported Living
Cambridgeshire County Council,19-Apr-22,51301769214,"-1,480.89",Focus Care Agency,CARE ESTABLISHMENT,LD - Fenland Locality - Cost of Care,LD - Fenland  - Care,Supported Living
Cambridgeshire County Council,19-Apr-22,51301769214,"-1,480.89",Focus Care Agency,CARE ESTABLISHMENT,LD - Fenland Locality - Cost of Care,LD - Fenland  - Care,Supported Living
Cambridgeshire County Council,19-Apr-22,51301769214,"-1,480.89",Focus Care Agency,CARE ESTABLISHMENT,LD - Fenland Locality - Cost of Care,LD - Fenland  - Care,Supported Living
Cambridgeshire County Council,19-Apr-22,51301769214,"-1,480.89",Focus Care Agency,CARE ESTABLISHMENT,LD - Fenland Locality - Cost of Care,LD - Fenland  - Care,Supported Living
Cambridgeshire County Council,19-Apr-22,51301769214,"-1,480.89",Focus Care Agency,CARE ESTABLISHMENT,LD - Fenland Locality - Cost of Care,LD - Fenland  - Care,Supported Living
Cambridgeshire County Council,19-Apr-22,51301769214,"-1,480.89",Focus Care Agency,CARE ESTABLISHMENT,LD - Fenland Locality - Cost of Care,LD - Fenland  - Care,Supported Living
Cambridgeshire County Council,19-Apr-22,51301769214,"-1,480.89",Focus Care Agency,CARE ESTABLISHMENT,LD - Fenland Locality - Cost of Care,LD - Fenland  - Care,Supported Living
Cambridgeshire County Council,19-Apr-22,51301769214,"-1,480.89",Focus Care Agency,CARE ESTABLISHMENT,LD - Fenland Locality - Cost of Care,LD - Fenland  - Care,Supported Living
Cambridgeshire County Council,19-Apr-22,51301769214,"-1,480.89",Focus Care Agency,CARE ESTABLISHMENT,LD - Fenland Locality - Cost of Care,LD - Fenland  - Care,Supported Living
Cambridgeshire County Council,19-Apr-22,51301769214,"-1,480.89",Focus Care Agency,CARE ESTABLISHMENT,LD - Fenland Locality - Cost of Care,LD - Fenland  - Care,Supported Living
Cambridgeshire County Council,19-Apr-22,51301769214,"-1,480.89",Focus Care Agency,CARE ESTABLISHMENT,LD - Fenland Locality - Cost of Care,LD - Fenland  - Care,Supported Living
Cambridgeshire County Council,19-Apr-22,51301769214,"-1,480.89",Focus Care Agency,CARE ESTABLISHMENT,LD - Fenland Locality - Cost of Care,LD - Fenland  - Care,Supported Living
Cambridgeshire County Council,19-Apr-22,51301769214,"-1,480.89",Focus Care Agency,CARE ESTABLISHMENT,LD - Fenland Locality - Cost of Care,LD - Fenland  - Care,Supported Living
Cambridgeshire County Council,14-Apr-22,51301764641,"-1,450.00",Redacted Personal Data,SERVICE USER,Physical Disablity - Cost of Care,Countywide PD Service - Care,Direct Payments
Cambridgeshire County Council,14-Apr-22,51301764641,"-1,450.00",Redacted Personal Data,SERVICE USER,Physical Disablity - Cost of Care,Countywide PD Service - Care,Direct Payments
Cambridgeshire County Council,14-Apr-22,51301764641,"-1,450.00",Redacted Personal Data,SERVICE USER,Physical Disablity - Cost of Care,Countywide PD Service - Care,Direct Payments
Cambridgeshire County Council,14-Apr-22,51301764641,"-1,450.00",Redacted Personal Data,SERVICE USER,Physical Disablity - Cost of Care,Countywide PD Service - Care,Direct Payments
Cambridgeshire County Council,19-Apr-22,51301768043,"-1,400.00",LABURNUM LODGE,CARE ESTABLISHMENT,Strategic Management - Adults,Covid General - Adults,Residential Care
Cambridgeshire County Council,19-Apr-22,51301768043,"-1,400.00",LABURNUM LODGE,CARE ESTABLISHMENT,Strategic Management - Adults,Covid General - Adults,Residential Care
Cambridgeshire County Council,14-Apr-22,51301764286,"-1,385.25",Careuk247 Home Care Ltd,COMPANY,OPMH - City & South,Older People Mental Health City & South,Domiciliary Care
Cambridgeshire County Council,19-Apr-22,51301767887,"-1,366.08",WOODLANDS CARE CENTRE,CARE ESTABLISHMENT,OP - City & South Locality - Cost of Care,Older People - City & South - Care,Nursing Care
Cambridgeshire County Council,19-Apr-22,51301767887,"-1,366.08",WOODLANDS CARE CENTRE,CARE ESTABLISHMENT,OP - City & South Locality - Cost of Care,Older People - City & South - Care,Nursing Care
Cambridgeshire County Council,19-Apr-22,51301767887,"-1,366.08",WOODLANDS CARE CENTRE,CARE ESTABLISHMENT,OP - City & South Locality - Cost of Care,Older People - City & South - Care,Nursing Care
Cambridgeshire County Council,19-Apr-22,51301767923,"-1,366.08",WOODLANDS CARE CENTRE,CARE ESTABLISHMENT,OPMH - City & South,Older People Mental Health E Cambs,Nursing Care
Cambridgeshire County Council,19-Apr-22,51301769158,"-1,359.88",Focus Care Agency,CARE ESTABLISHMENT,LD - Fenland Locality - Cost of Care,LD - Fenland  - Care,Supported Living
Cambridgeshire County Council,19-Apr-22,51301767819,"-1,350.00",WOODLANDS CARE CENTRE,CARE ESTABLISHMENT,OP - Hunts Locality - Cost of Care,Hunts OP Team - Care,Nursing Care
Cambridgeshire County Council,19-Apr-22,51301767819,"-1,350.00",WOODLANDS CARE CENTRE,CARE ESTABLISHMENT,OP - Hunts Locality - Cost of Care,Hunts OP Team - Care,Nursing Care
Cambridgeshire County Council,19-Apr-22,51301767819,"-1,350.00",WOODLANDS CARE CENTRE,CARE ESTABLISHMENT,OP - Hunts Locality - Cost of Care,Hunts OP Team - Care,Nursing Care
Cambridgeshire County Council,19-Apr-22,51301767819,"-1,350.00",WOODLANDS CARE CENTRE,CARE ESTABLISHMENT,OP - Hunts Locality - Cost of Care,Hunts OP Team - Care,Nursing Care
Cambridgeshire County Council,19-Apr-22,51301767819,"-1,350.00",WOODLANDS CARE CENTRE,CARE ESTABLISHMENT,OP - Hunts Locality - Cost of Care,Hunts OP Team - Care,Nursing Care
Cambridgeshire County Council,19-Apr-22,51301767819,"-1,350.00",WOODLANDS CARE CENTRE,CARE ESTABLISHMENT,OP - Hunts Locality - Cost of Care,Hunts OP Team - Care,Nursing Care
Cambridgeshire County Council,19-Apr-22,51301767819,"-1,350.00",WOODLANDS CARE CENTRE,CARE ESTABLISHMENT,OP - Hunts Locality - Cost of Care,Hunts OP Team - Care,Nursing Care
Cambridgeshire County Council,19-Apr-22,51301767819,"-1,350.00",WOODLANDS CARE CENTRE,CARE ESTABLISHMENT,OP - Hunts Locality - Cost of Care,Hunts OP Team - Care,Nursing Care
Cambridgeshire County Council,19-Apr-22,51301767819,"-1,350.00",WOODLANDS CARE CENTRE,CARE ESTABLISHMENT,OP - Hunts Locality - Cost of Care,Hunts OP Team - Care,Nursing Care
Cambridgeshire County Council,19-Apr-22,51301769076,"-1,322.61",AUGUSTA CARE LTD,CARE ESTABLISHMENT,LD - Fenland Locality - Cost of Care,LD - Fenland  - Care,Supported Living
Cambridgeshire County Council,19-Apr-22,51301769076,"-1,322.61",AUGUSTA CARE LTD,CARE ESTABLISHMENT,LD - Fenland Locality - Cost of Care,LD - Fenland  - Care,Supported Living
Cambridgeshire County Council,19-Apr-22,51301767997,"-1,257.86",K RAVIVARUMAN T/A FAIR HAVEN CARE HOME,CARE ESTABLISHMENT,OP - East Cambs Blocks,East Cambs � Long term Blocks,Residential Care
Cambridgeshire County Council,19-Apr-22,51301766176,"-1,250.91",PAPWORTH TRUST,TRUST (OTHER),LD - Fenland Locality - Cost of Care,LD - Fenland  - Care,Residential Care - Property Voids
Cambridgeshire County Council,19-Apr-22,51301769216,"-1,241.71",Focus Care Agency,CARE ESTABLISHMENT,LD - Young Adults Team,LD - Young Adults - Special Needs,Supported Living
Cambridgeshire County Council,19-Apr-22,51301767947,"-1,212.40",CHERRY HINTON NURSING HOME,CARE ESTABLISHMENT,OP - City & South Locality - Cost of Care,Older People - City & South - Care,Nursing Care
Cambridgeshire County Council,19-Apr-22,51301767947,"-1,212.40",CHERRY HINTON NURSING HOME,CARE ESTABLISHMENT,OP - City & South Locality - Cost of Care,Older People - City & South - Care,Nursing Care
Cambridgeshire County Council,19-Apr-22,51301767947,"-1,212.40",CHERRY HINTON NURSING HOME,CARE ESTABLISHMENT,OP - City & South Locality - Cost of Care,Older People - City & South - Care,Nursing Care
Cambridgeshire County Council,19-Apr-22,51301767947,"-1,212.40",CHERRY HINTON NURSING HOME,CARE ESTABLISHMENT,OP - City & South Locality - Cost of Care,Older People - City & South - Care,Nursing Care
Cambridgeshire County Council,19-Apr-22,51301767947,"-1,212.40",CHERRY HINTON NURSING HOME,CARE ESTABLISHMENT,OP - City & South Locality - Cost of Care,Older People - City & South - Care,Nursing Care
Cambridgeshire County Council,19-Apr-22,51301767947,"-1,212.40",CHERRY HINTON NURSING HOME,CARE ESTABLISHMENT,OP - City & South Locality - Cost of Care,Older People - City & South - Care,Nursing Care
Cambridgeshire County Council,19-Apr-22,51301767947,"-1,212.40",CHERRY HINTON NURSING HOME,CARE ESTABLISHMENT,OP - City & South Locality - Cost of Care,Older People - City & South - Care,Nursing Care
Cambridgeshire County Council,19-Apr-22,51301767711,"-1,208.73",MAKING SPACE,CARE ESTABLISHMENT,OP - East Cambs Locality - Cost of Care,East Cambs - O P Team - Care,Nursing Care
Cambridgeshire County Council,19-Apr-22,51301767711,"-1,208.73",MAKING SPACE,CARE ESTABLISHMENT,OP - East Cambs Locality - Cost of Care,East Cambs - O P Team - Care,Nursing Care
Cambridgeshire County Council,19-Apr-22,51301767711,"-1,208.73",MAKING SPACE,CARE ESTABLISHMENT,OP - East Cambs Locality - Cost of Care,East Cambs - O P Team - Care,Nursing Care
Cambridgeshire County Council,19-Apr-22,51301767711,"-1,208.73",MAKING SPACE,CARE ESTABLISHMENT,OP - East Cambs Locality - Cost of Care,East Cambs - O P Team - Care,Nursing Care
Cambridgeshire County Council,19-Apr-22,51301767711,"-1,208.73",MAKING SPACE,CARE ESTABLISHMENT,OP - East Cambs Locality - Cost of Care,East Cambs - O P Team - Care,Nursing Care
Cambridgeshire County Council,19-Apr-22,51301767711,"-1,208.73",MAKING SPACE,CARE ESTABLISHMENT,OP - East Cambs Locality - Cost of Care,East Cambs - O P Team - Care,Nursing Care
Cambridgeshire County Council,19-Apr-22,51301767711,"-1,208.73",MAKING SPACE,CARE ESTABLISHMENT,OP - East Cambs Locality - Cost of Care,East Cambs - O P Team - Care,Nursing Care
Cambridgeshire County Council,19-Apr-22,51301767711,"-1,208.73",MAKING SPACE,CARE ESTABLISHMENT,OP - East Cambs Locality - Cost of Care,East Cambs - O P Team - Care,Nursing Care
Cambridgeshire County Council,19-Apr-22,51301767711,"-1,208.73",MAKING SPACE,CARE ESTABLISHMENT,OP - East Cambs Locality - Cost of Care,East Cambs - O P Team - Care,Nursing Care
Cambridgeshire County Council,19-Apr-22,51301767711,"-1,208.73",MAKING SPACE,CARE ESTABLISHMENT,OP - East Cambs Locality - Cost of Care,East Cambs - O P Team - Care,Nursing Care
Cambridgeshire County Council,19-Apr-22,51301768021,"-1,191.43",HC-ONE,CARE ESTABLISHMENT,OP - Hunts Locality - Cost of Care,Hunts OP Team - Care,Nursing Care
Cambridgeshire County Council,19-Apr-22,51301768038,"-1,182.86",CARE UK LIMITED,CARE ESTABLISHMENT,OP - Hunts Blocks,Hunts - Long term blocks,Nursing Care
Cambridgeshire County Council,19-Apr-22,51301767923,"-1,170.93",WOODLANDS CARE CENTRE,CARE ESTABLISHMENT,OPMH - City & South,Older People Mental Health E Cambs,Nursing Care
Cambridgeshire County Council,19-Apr-22,51301768070,"-1,143.00",AUTISM ANGLIA,CARE ESTABLISHMENT,LD - East Locality - Cost of Care,LD - East Cambs - Care,Residential Care
Cambridgeshire County Council,19-Apr-22,51301768070,"-1,143.00",AUTISM ANGLIA,CARE ESTABLISHMENT,LD - East Locality - Cost of Care,LD - East Cambs - Care,Residential Care
Cambridgeshire County Council,19-Apr-22,51301768070,"-1,143.00",AUTISM ANGLIA,CARE ESTABLISHMENT,LD - East Locality - Cost of Care,LD - East Cambs - Care,Residential Care
Cambridgeshire County Council,19-Apr-22,51301768070,"-1,143.00",AUTISM ANGLIA,CARE ESTABLISHMENT,LD - East Locality - Cost of Care,LD - East Cambs - Care,Residential Care
Cambridgeshire County Council,19-Apr-22,51301768070,"-1,143.00",AUTISM ANGLIA,CARE ESTABLISHMENT,LD - East Locality - Cost of Care,LD - East Cambs - Care,Residential Care
Cambridgeshire County Council,19-Apr-22,51301768070,"-1,143.00",AUTISM ANGLIA,CARE ESTABLISHMENT,LD - East Locality - Cost of Care,LD - East Cambs - Care,Residential Care
Cambridgeshire County Council,19-Apr-22,51301768070,"-1,143.00",AUTISM ANGLIA,CARE ESTABLISHMENT,LD - East Locality - Cost of Care,LD - East Cambs - Care,Residential Care
Cambridgeshire County Council,19-Apr-22,51301768070,"-1,143.00",AUTISM ANGLIA,CARE ESTABLISHMENT,LD - East Locality - Cost of Care,LD - East Cambs - Care,Residential Care
Cambridgeshire County Council,19-Apr-22,51301768070,"-1,143.00",AUTISM ANGLIA,CARE ESTABLISHMENT,LD - East Locality - Cost of Care,LD - East Cambs - Care,Residential Care
Cambridgeshire County Council,19-Apr-22,51301768070,"-1,143.00",AUTISM ANGLIA,CARE ESTABLISHMENT,LD - East Locality - Cost of Care,LD - East Cambs - Care,Residential Care
Cambridgeshire County Council,19-Apr-22,51301768070,"-1,143.00",AUTISM ANGLIA,CARE ESTABLISHMENT,LD - East Locality - Cost of Care,LD - East Cambs - Care,Residential Care
Cambridgeshire County Council,19-Apr-22,51301768070,"-1,143.00",AUTISM ANGLIA,CARE ESTABLISHMENT,LD - East Locality - Cost of Care,LD - East Cambs - Care,Residential Care
Cambridgeshire County Council,19-Apr-22,51301768070,"-1,143.00",AUTISM ANGLIA,CARE ESTABLISHMENT,LD - East Locality - Cost of Care,LD - East Cambs - Care,Residential Care
Cambridgeshire County Council,19-Apr-22,51301768070,"-1,143.00",AUTISM ANGLIA,CARE ESTABLISHMENT,LD - East Locality - Cost of Care,LD - East Cambs - Care,Residential Care
Cambridgeshire County Council,19-Apr-22,51301768070,"-1,143.00",AUTISM ANGLIA,CARE ESTABLISHMENT,LD - East Locality - Cost of Care,LD - East Cambs - Care,Residential Care
Cambridgeshire County Council,19-Apr-22,51301768070,"-1,143.00",AUTISM ANGLIA,CARE ESTABLISHMENT,LD - East Locality - Cost of Care,LD - East Cambs - Care,Residential Care
Cambridgeshire County Council,19-Apr-22,51301768070,"-1,143.00",AUTISM ANGLIA,CARE ESTABLISHMENT,LD - East Locality - Cost of Care,LD - East Cambs - Care,Residential Care
Cambridgeshire County Council,19-Apr-22,51301768070,"-1,143.00",AUTISM ANGLIA,CARE ESTABLISHMENT,LD - East Locality - Cost of Care,LD - East Cambs - Care,Residential Care
Cambridgeshire County Council,19-Apr-22,51301768070,"-1,143.00",AUTISM ANGLIA,CARE ESTABLISHMENT,LD - East Locality - Cost of Care,LD - East Cambs - Care,Residential Care
Cambridgeshire County Council,19-Apr-22,51301768070,"-1,143.00",AUTISM ANGLIA,CARE ESTABLISHMENT,LD - East Locality - Cost of Care,LD - East Cambs - Care,Residential Care
Cambridgeshire County Council,19-Apr-22,51301768070,"-1,143.00",AUTISM ANGLIA,CARE ESTABLISHMENT,LD - East Locality - Cost of Care,LD - East Cambs - Care,Residential Care
Cambridgeshire County Council,19-Apr-22,51301768070,"-1,143.00",AUTISM ANGLIA,CARE ESTABLISHMENT,LD - East Locality - Cost of Care,LD - East Cambs - Care,Residential Care
Cambridgeshire County Council,19-Apr-22,51301768070,"-1,143.00",AUTISM ANGLIA,CARE ESTABLISHMENT,LD - East Locality - Cost of Care,LD - East Cambs - Care,Residential Care
Cambridgeshire County Council,19-Apr-22,51301768070,"-1,143.00",AUTISM ANGLIA,CARE ESTABLISHMENT,LD - East Locality - Cost of Care,LD - East Cambs - Care,Residential Care
Cambridgeshire County Council,19-Apr-22,51301768070,"-1,143.00",AUTISM ANGLIA,CARE ESTABLISHMENT,LD - East Locality - Cost of Care,LD - East Cambs - Care,Residential Care
Cambridgeshire County Council,19-Apr-22,51301768070,"-1,143.00",AUTISM ANGLIA,CARE ESTABLISHMENT,LD - East Locality - Cost of Care,LD - East Cambs - Care,Residential Care
Cambridgeshire County Council,19-Apr-22,51301768070,"-1,143.00",AUTISM ANGLIA,CARE ESTABLISHMENT,LD - East Locality - Cost of Care,LD - East Cambs - Care,Residential Care
Cambridgeshire County Council,19-Apr-22,51301768070,"-1,143.00",AUTISM ANGLIA,CARE ESTABLISHMENT,LD - East Locality - Cost of Care,LD - East Cambs - Care,Residential Care
Cambridgeshire County Council,19-Apr-22,51301768070,"-1,143.00",AUTISM ANGLIA,CARE ESTABLISHMENT,LD - East Locality - Cost of Care,LD - East Cambs - Care,Residential Care
Cambridgeshire County Council,19-Apr-22,51301768070,"-1,143.00",AUTISM ANGLIA,CARE ESTABLISHMENT,LD - East Locality - Cost of Care,LD - East Cambs - Care,Residential Care
Cambridgeshire County Council,19-Apr-22,51301768070,"-1,143.00",AUTISM ANGLIA,CARE ESTABLISHMENT,LD - East Locality - Cost of Care,LD - East Cambs - Care,Residential Care
Cambridgeshire County Council,19-Apr-22,51301768070,"-1,143.00",AUTISM ANGLIA,CARE ESTABLISHMENT,LD - East Locality - Cost of Care,LD - East Cambs - Care,Residential Care
Cambridgeshire County Council,19-Apr-22,51301768070,"-1,143.00",AUTISM ANGLIA,CARE ESTABLISHMENT,LD - East Locality - Cost of Care,LD - East Cambs - Care,Residential Care
Cambridgeshire County Council,19-Apr-22,51301768070,"-1,143.00",AUTISM ANGLIA,CARE ESTABLISHMENT,LD - East Locality - Cost of Care,LD - East Cambs - Care,Residential Care
Cambridgeshire County Council,19-Apr-22,51301768070,"-1,143.00",AUTISM ANGLIA,CARE ESTABLISHMENT,LD - East Locality - Cost of Care,LD - East Cambs - Care,Residential Care
Cambridgeshire County Council,19-Apr-22,51301768070,"-1,143.00",AUTISM ANGLIA,CARE ESTABLISHMENT,LD - East Locality - Cost of Care,LD - East Cambs - Care,Residential Care
Cambridgeshire County Council,19-Apr-22,51301768070,"-1,143.00",AUTISM ANGLIA,CARE ESTABLISHMENT,LD - East Locality - Cost of Care,LD - East Cambs - Care,Residential Care
Cambridgeshire County Council,19-Apr-22,51301768070,"-1,143.00",AUTISM ANGLIA,CARE ESTABLISHMENT,LD - East Locality - Cost of Care,LD - East Cambs - Care,Residential Care
Cambridgeshire County Council,19-Apr-22,51301768070,"-1,143.00",AUTISM ANGLIA,CARE ESTABLISHMENT,LD - East Locality - Cost of Care,LD - East Cambs - Care,Residential Care
Cambridgeshire County Council,19-Apr-22,51301768070,"-1,143.00",AUTISM ANGLIA,CARE ESTABLISHMENT,LD - East Locality - Cost of Care,LD - East Cambs - Care,Residential Care
Cambridgeshire County Council,19-Apr-22,51301768070,"-1,143.00",AUTISM ANGLIA,CARE ESTABLISHMENT,LD - East Locality - Cost of Care,LD - East Cambs - Care,Residential Care
Cambridgeshire County Council,19-Apr-22,51301768070,"-1,143.00",AUTISM ANGLIA,CARE ESTABLISHMENT,LD - East Locality - Cost of Care,LD - East Cambs - Care,Residential Care
Cambridgeshire County Council,19-Apr-22,51301768070,"-1,143.00",AUTISM ANGLIA,CARE ESTABLISHMENT,LD - East Locality - Cost of Care,LD - East Cambs - Care,Residential Care
Cambridgeshire County Council,19-Apr-22,51301768070,"-1,143.00",AUTISM ANGLIA,CARE ESTABLISHMENT,LD - East Locality - Cost of Care,LD - East Cambs - Care,Residential Care
Cambridgeshire County Council,19-Apr-22,51301768070,"-1,143.00",AUTISM ANGLIA,CARE ESTABLISHMENT,LD - East Locality - Cost of Care,LD - East Cambs - Care,Residential Care
Cambridgeshire County Council,19-Apr-22,51301768070,"-1,143.00",AUTISM ANGLIA,CARE ESTABLISHMENT,LD - East Locality - Cost of Care,LD - East Cambs - Care,Residential Care
Cambridgeshire County Council,19-Apr-22,51301768070,"-1,143.00",AUTISM ANGLIA,CARE ESTABLISHMENT,LD - East Locality - Cost of Care,LD - East Cambs - Care,Residential Care
Cambridgeshire County Council,19-Apr-22,51301768070,"-1,143.00",AUTISM ANGLIA,CARE ESTABLISHMENT,LD - East Locality - Cost of Care,LD - East Cambs - Care,Residential Care
Cambridgeshire County Council,19-Apr-22,51301768070,"-1,143.00",AUTISM ANGLIA,CARE ESTABLISHMENT,LD - East Locality - Cost of Care,LD - East Cambs - Care,Residential Care
Cambridgeshire County Council,19-Apr-22,51301768070,"-1,143.00",AUTISM ANGLIA,CARE ESTABLISHMENT,LD - East Locality - Cost of Care,LD - East Cambs - Care,Residential Care
Cambridgeshire County Council,19-Apr-22,51301768070,"-1,143.00",AUTISM ANGLIA,CARE ESTABLISHMENT,LD - East Locality - Cost of Care,LD - East Cambs - Care,Residential Care
Cambridgeshire County Council,19-Apr-22,51301768070,"-1,143.00",AUTISM ANGLIA,CARE ESTABLISHMENT,LD - East Locality - Cost of Care,LD - East Cambs - Care,Residential Care
Cambridgeshire County Council,19-Apr-22,51301768070,"-1,143.00",AUTISM ANGLIA,CARE ESTABLISHMENT,LD - East Locality - Cost of Care,LD - East Cambs - Care,Residential Care
Cambridgeshire County Council,19-Apr-22,51301768070,"-1,143.00",AUTISM ANGLIA,CARE ESTABLISHMENT,LD - East Locality - Cost of Care,LD - East Cambs - Care,Residential Care
Cambridgeshire County Council,19-Apr-22,51301768070,"-1,143.00",AUTISM ANGLIA,CARE ESTABLISHMENT,LD - East Locality - Cost of Care,LD - East Cambs - Care,Residential Care
Cambridgeshire County Council,19-Apr-22,51301769152,"-1,141.26",Focus Care Agency,CARE ESTABLISHMENT,LD - Hunts Locality - Cost of Care,LD - Huntingdonshire - Care,Supported Living
Cambridgeshire County Council,19-Apr-22,51301767995,"-1,129.85",BROOKFIELD CARE (Radis Commnity Care),CARE ESTABLISHMENT,Commissioning - Dom Cars,Hancock-Funded Dom-Cars,Domiciliary Care
Cambridgeshire County Council,19-Apr-22,51301769079,"-1,126.72",Focus Care Agency,CARE ESTABLISHMENT,LD - Young Adults Team,LD - Young Adults - Care,Domiciliary Care
Cambridgeshire County Council,19-Apr-22,51301769251,"-1,126.72",Focus Care Agency,CARE ESTABLISHMENT,LD - Hunts Locality - Cost of Care,LD - Huntingdonshire - Care,Domiciliary Care
Cambridgeshire County Council,19-Apr-22,51301767011,"-1,121.14",RED2GREEN,CARE ESTABLISHMENT,LD - Young Adults Team,LD - Young Adults - Special Needs,Day Care
Cambridgeshire County Council,19-Apr-22,51301767011,"-1,121.14",RED2GREEN,CARE ESTABLISHMENT,LD - Young Adults Team,LD - Young Adults - Special Needs,Day Care
Cambridgeshire County Council,19-Apr-22,51301767011,"-1,121.14",RED2GREEN,CARE ESTABLISHMENT,LD - Young Adults Team,LD - Young Adults - Special Needs,Day Care
Cambridgeshire County Council,19-Apr-22,51301768629,"-1,116.00",ROSEWOOD  (OP PD MH),CARE ESTABLISHMENT,OP - City & South Locality - Cost of Care,Older People - City & South - Care,Residential Care
Cambridgeshire County Council,19-Apr-22,51301768629,"-1,116.00",ROSEWOOD  (OP PD MH),CARE ESTABLISHMENT,OP - City & South Locality - Cost of Care,Older People - City & South - Care,Residential Care
Cambridgeshire County Council,19-Apr-22,51301768629,"-1,116.00",ROSEWOOD  (OP PD MH),CARE ESTABLISHMENT,OP - City & South Locality - Cost of Care,Older People - City & South - Care,Residential Care
Cambridgeshire County Council,14-Apr-22,51301764608,"-1,107.33",Redacted Personal Data,SERVICE USER,Physical Disablity - Cost of Care,Countywide PD Service - Care,Direct Payments
Cambridgeshire County Council,14-Apr-22,51301764608,"-1,107.33",Redacted Personal Data,SERVICE USER,Physical Disablity - Cost of Care,Countywide PD Service - Care,Direct Payments
Cambridgeshire County Council,14-Apr-22,51301764608,"-1,107.33",Redacted Personal Data,SERVICE USER,Physical Disablity - Cost of Care,Countywide PD Service - Care,Direct Payments
Cambridgeshire County Council,14-Apr-22,51301764608,"-1,107.33",Redacted Personal Data,SERVICE USER,Physical Disablity - Cost of Care,Countywide PD Service - Care,Direct Payments
Cambridgeshire County Council,14-Apr-22,51301763380,"-1,100.00",BLUEBIRD CARE NEWMARKET & FENLAND,CARE ESTABLISHMENT,OP - Fenland Locality - Cost of Care,Older People - Fenland - Care,Homecare
Cambridgeshire County Council,14-Apr-22,51301763380,"-1,100.00",BLUEBIRD CARE NEWMARKET & FENLAND,CARE ESTABLISHMENT,OP - Fenland Locality - Cost of Care,Older People - Fenland - Care,Homecare
Cambridgeshire County Council,14-Apr-22,51301763380,"-1,100.00",BLUEBIRD CARE NEWMARKET & FENLAND,CARE ESTABLISHMENT,OP - Fenland Locality - Cost of Care,Older People - Fenland - Care,Homecare
Cambridgeshire County Council,14-Apr-22,51301763380,"-1,100.00",BLUEBIRD CARE NEWMARKET & FENLAND,CARE ESTABLISHMENT,OP - Fenland Locality - Cost of Care,Older People - Fenland - Care,Homecare
Cambridgeshire County Council,14-Apr-22,51301763380,"-1,100.00",BLUEBIRD CARE NEWMARKET & FENLAND,CARE ESTABLISHMENT,OP - Fenland Locality - Cost of Care,Older People - Fenland - Care,Homecare
Cambridgeshire County Council,21-Apr-22,51301759681,"-1,091.52",D LINE MARKINGS LTD,TRADE SUPPLIER,Parking Enforcement,Civil Parking Enforcement,Traffic Signs and Lines Maintenance
Cambridgeshire County Council,19-Apr-22,51301768611,"-1,074.99",CONIFER LODGE,CARE ESTABLISHMENT,LD - Fenland Locality - Cost of Care,LD - Fenland  - Care,Residential Care
Cambridgeshire County Council,19-Apr-22,51301768611,"-1,074.99",CONIFER LODGE,CARE ESTABLISHMENT,LD - Fenland Locality - Cost of Care,LD - Fenland  - Care,Residential Care
Cambridgeshire County Council,19-Apr-22,51301768611,"-1,074.99",CONIFER LODGE,CARE ESTABLISHMENT,LD - Fenland Locality - Cost of Care,LD - Fenland  - Care,Residential Care
Cambridgeshire County Council,19-Apr-22,51301768611,"-1,074.99",CONIFER LODGE,CARE ESTABLISHMENT,LD - Fenland Locality - Cost of Care,LD - Fenland  - Care,Residential Care
Cambridgeshire County Council,19-Apr-22,51301768611,"-1,074.99",CONIFER LODGE,CARE ESTABLISHMENT,LD - Fenland Locality - Cost of Care,LD - Fenland  - Care,Residential Care
Cambridgeshire County Council,19-Apr-22,51301768611,"-1,074.99",CONIFER LODGE,CARE ESTABLISHMENT,LD - Fenland Locality - Cost of Care,LD - Fenland  - Care,Residential Care
Cambridgeshire County Council,19-Apr-22,51301768611,"-1,074.99",CONIFER LODGE,CARE ESTABLISHMENT,LD - Fenland Locality - Cost of Care,LD - Fenland  - Care,Residential Care
Cambridgeshire County Council,19-Apr-22,51301768611,"-1,074.99",CONIFER LODGE,CARE ESTABLISHMENT,LD - Fenland Locality - Cost of Care,LD - Fenland  - Care,Residential Care
Cambridgeshire County Council,19-Apr-22,51301768611,"-1,074.99",CONIFER LODGE,CARE ESTABLISHMENT,LD - Fenland Locality - Cost of Care,LD - Fenland  - Care,Residential Care
Cambridgeshire County Council,19-Apr-22,51301768611,"-1,074.99",CONIFER LODGE,CARE ESTABLISHMENT,LD - Fenland Locality - Cost of Care,LD - Fenland  - Care,Residential Care
Cambridgeshire County Council,19-Apr-22,51301768611,"-1,074.99",CONIFER LODGE,CARE ESTABLISHMENT,LD - Fenland Locality - Cost of Care,LD - Fenland  - Care,Residential Care
Cambridgeshire County Council,19-Apr-22,51301768611,"-1,074.99",CONIFER LODGE,CARE ESTABLISHMENT,LD - Fenland Locality - Cost of Care,LD - Fenland  - Care,Residential Care
Cambridgeshire County Council,19-Apr-22,51301768611,"-1,074.99",CONIFER LODGE,CARE ESTABLISHMENT,LD - Fenland Locality - Cost of Care,LD - Fenland  - Care,Residential Care
Cambridgeshire County Council,19-Apr-22,51301768611,"-1,074.99",CONIFER LODGE,CARE ESTABLISHMENT,LD - Fenland Locality - Cost of Care,LD - Fenland  - Care,Residential Care
Cambridgeshire County Council,19-Apr-22,51301768611,"-1,074.99",CONIFER LODGE,CARE ESTABLISHMENT,LD - Fenland Locality - Cost of Care,LD - Fenland  - Care,Residential Care
Cambridgeshire County Council,19-Apr-22,51301768611,"-1,074.99",CONIFER LODGE,CARE ESTABLISHMENT,LD - Fenland Locality - Cost of Care,LD - Fenland  - Care,Residential Care
Cambridgeshire County Council,19-Apr-22,51301768611,"-1,074.99",CONIFER LODGE,CARE ESTABLISHMENT,LD - Fenland Locality - Cost of Care,LD - Fenland  - Care,Residential Care
Cambridgeshire County Council,19-Apr-22,51301768611,"-1,074.99",CONIFER LODGE,CARE ESTABLISHMENT,LD - Fenland Locality - Cost of Care,LD - Fenland  - Care,Residential Care
Cambridgeshire County Council,19-Apr-22,51301768611,"-1,074.99",CONIFER LODGE,CARE ESTABLISHMENT,LD - Fenland Locality - Cost of Care,LD - Fenland  - Care,Residential Care
Cambridgeshire County Council,19-Apr-22,51301768611,"-1,074.99",CONIFER LODGE,CARE ESTABLISHMENT,LD - Fenland Locality - Cost of Care,LD - Fenland  - Care,Residential Care
Cambridgeshire County Council,19-Apr-22,51301768611,"-1,074.99",CONIFER LODGE,CARE ESTABLISHMENT,LD - Fenland Locality - Cost of Care,LD - Fenland  - Care,Residential Care
Cambridgeshire County Council,19-Apr-22,51301768611,"-1,074.99",CONIFER LODGE,CARE ESTABLISHMENT,LD - Fenland Locality - Cost of Care,LD - Fenland  - Care,Residential Care
Cambridgeshire County Council,19-Apr-22,51301768611,"-1,074.99",CONIFER LODGE,CARE ESTABLISHMENT,LD - Fenland Locality - Cost of Care,LD - Fenland  - Care,Residential Care
Cambridgeshire County Council,19-Apr-22,51301768611,"-1,074.99",CONIFER LODGE,CARE ESTABLISHMENT,LD - Fenland Locality - Cost of Care,LD - Fenland  - Care,Residential Care
Cambridgeshire County Council,19-Apr-22,51301768611,"-1,074.99",CONIFER LODGE,CARE ESTABLISHMENT,LD - Fenland Locality - Cost of Care,LD - Fenland  - Care,Residential Care
Cambridgeshire County Council,19-Apr-22,51301768611,"-1,074.99",CONIFER LODGE,CARE ESTABLISHMENT,LD - Fenland Locality - Cost of Care,LD - Fenland  - Care,Residential Care
Cambridgeshire County Council,19-Apr-22,51301768611,"-1,074.99",CONIFER LODGE,CARE ESTABLISHMENT,LD - Fenland Locality - Cost of Care,LD - Fenland  - Care,Residential Care
Cambridgeshire County Council,19-Apr-22,51301768611,"-1,074.99",CONIFER LODGE,CARE ESTABLISHMENT,LD - Fenland Locality - Cost of Care,LD - Fenland  - Care,Residential Care
Cambridgeshire County Council,19-Apr-22,51301768611,"-1,074.99",CONIFER LODGE,CARE ESTABLISHMENT,LD - Fenland Locality - Cost of Care,LD - Fenland  - Care,Residential Care
Cambridgeshire County Council,19-Apr-22,51301768611,"-1,074.99",CONIFER LODGE,CARE ESTABLISHMENT,LD - Fenland Locality - Cost of Care,LD - Fenland  - Care,Residential Care
Cambridgeshire County Council,19-Apr-22,51301768611,"-1,074.99",CONIFER LODGE,CARE ESTABLISHMENT,LD - Fenland Locality - Cost of Care,LD - Fenland  - Care,Residential Care
Cambridgeshire County Council,19-Apr-22,51301768611,"-1,074.99",CONIFER LODGE,CARE ESTABLISHMENT,LD - Fenland Locality - Cost of Care,LD - Fenland  - Care,Residential Care
Cambridgeshire County Council,19-Apr-22,51301768611,"-1,074.99",CONIFER LODGE,CARE ESTABLISHMENT,LD - Fenland Locality - Cost of Care,LD - Fenland  - Care,Residential Care
Cambridgeshire County Council,19-Apr-22,51301768611,"-1,074.99",CONIFER LODGE,CARE ESTABLISHMENT,LD - Fenland Locality - Cost of Care,LD - Fenland  - Care,Residential Care
Cambridgeshire County Council,19-Apr-22,51301768611,"-1,074.99",CONIFER LODGE,CARE ESTABLISHMENT,LD - Fenland Locality - Cost of Care,LD - Fenland  - Care,Residential Care
Cambridgeshire County Council,19-Apr-22,51301768611,"-1,074.99",CONIFER LODGE,CARE ESTABLISHMENT,LD - Fenland Locality - Cost of Care,LD - Fenland  - Care,Residential Care
Cambridgeshire County Council,19-Apr-22,51301768611,"-1,074.99",CONIFER LODGE,CARE ESTABLISHMENT,LD - Fenland Locality - Cost of Care,LD - Fenland  - Care,Residential Care
Cambridgeshire County Council,19-Apr-22,51301768611,"-1,074.99",CONIFER LODGE,CARE ESTABLISHMENT,LD - Fenland Locality - Cost of Care,LD - Fenland  - Care,Residential Care
Cambridgeshire County Council,19-Apr-22,51301768611,"-1,074.99",CONIFER LODGE,CARE ESTABLISHMENT,LD - Fenland Locality - Cost of Care,LD - Fenland  - Care,Residential Care
Cambridgeshire County Council,19-Apr-22,51301768611,"-1,074.99",CONIFER LODGE,CARE ESTABLISHMENT,LD - Fenland Locality - Cost of Care,LD - Fenland  - Care,Residential Care
Cambridgeshire County Council,19-Apr-22,51301768611,"-1,074.99",CONIFER LODGE,CARE ESTABLISHMENT,LD - Fenland Locality - Cost of Care,LD - Fenland  - Care,Residential Care
Cambridgeshire County Council,19-Apr-22,51301768611,"-1,074.99",CONIFER LODGE,CARE ESTABLISHMENT,LD - Fenland Locality - Cost of Care,LD - Fenland  - Care,Residential Care
Cambridgeshire County Council,19-Apr-22,51301768611,"-1,074.99",CONIFER LODGE,CARE ESTABLISHMENT,LD - Fenland Locality - Cost of Care,LD - Fenland  - Care,Residential Care
Cambridgeshire County Council,19-Apr-22,51301768611,"-1,074.99",CONIFER LODGE,CARE ESTABLISHMENT,LD - Fenland Locality - Cost of Care,LD - Fenland  - Care,Residential Care
Cambridgeshire County Council,19-Apr-22,51301768611,"-1,074.99",CONIFER LODGE,CARE ESTABLISHMENT,LD - Fenland Locality - Cost of Care,LD - Fenland  - Care,Residential Care
Cambridgeshire County Council,19-Apr-22,51301768611,"-1,074.99",CONIFER LODGE,CARE ESTABLISHMENT,LD - Fenland Locality - Cost of Care,LD - Fenland  - Care,Residential Care
Cambridgeshire County Council,19-Apr-22,51301768611,"-1,074.99",CONIFER LODGE,CARE ESTABLISHMENT,LD - Fenland Locality - Cost of Care,LD - Fenland  - Care,Residential Care
Cambridgeshire County Council,19-Apr-22,51301768611,"-1,074.99",CONIFER LODGE,CARE ESTABLISHMENT,LD - Fenland Locality - Cost of Care,LD - Fenland  - Care,Residential Care
Cambridgeshire County Council,19-Apr-22,51301768611,"-1,074.99",CONIFER LODGE,CARE ESTABLISHMENT,LD - Fenland Locality - Cost of Care,LD - Fenland  - Care,Residential Care
Cambridgeshire County Council,19-Apr-22,51301768611,"-1,074.99",CONIFER LODGE,CARE ESTABLISHMENT,LD - Fenland Locality - Cost of Care,LD - Fenland  - Care,Residential Care
Cambridgeshire County Council,19-Apr-22,51301768611,"-1,074.99",CONIFER LODGE,CARE ESTABLISHMENT,LD - Fenland Locality - Cost of Care,LD - Fenland  - Care,Residential Care
Cambridgeshire County Council,19-Apr-22,51301768611,"-1,074.99",CONIFER LODGE,CARE ESTABLISHMENT,LD - Fenland Locality - Cost of Care,LD - Fenland  - Care,Residential Care
Cambridgeshire County Council,19-Apr-22,51301768611,"-1,074.99",CONIFER LODGE,CARE ESTABLISHMENT,LD - Fenland Locality - Cost of Care,LD - Fenland  - Care,Residential Care
Cambridgeshire County Council,19-Apr-22,51301768611,"-1,074.99",CONIFER LODGE,CARE ESTABLISHMENT,LD - Fenland Locality - Cost of Care,LD - Fenland  - Care,Residential Care
Cambridgeshire County Council,19-Apr-22,51301768611,"-1,074.99",CONIFER LODGE,CARE ESTABLISHMENT,LD - Fenland Locality - Cost of Care,LD - Fenland  - Care,Residential Care
Cambridgeshire County Council,19-Apr-22,51301766175,"-1,066.72",MENCAP,CARE ESTABLISHMENT,LD - South Locality - Cost of Care,LD - South Cambs - Care,Residential Care - Property Voids
Cambridgeshire County Council,19-Apr-22,51301768693,"-1,064.40",LONGUEVILLE COURT,CARE ESTABLISHMENT,OP - Hunts Locality - Cost of Care,Hunts OP Team - Care,Nursing Care
Cambridgeshire County Council,19-Apr-22,51301768693,"-1,064.40",LONGUEVILLE COURT,CARE ESTABLISHMENT,OP - Hunts Locality - Cost of Care,Hunts OP Team - Care,Nursing Care
Cambridgeshire County Council,19-Apr-22,51301768693,"-1,064.40",LONGUEVILLE COURT,CARE ESTABLISHMENT,OP - Hunts Locality - Cost of Care,Hunts OP Team - Care,Nursing Care
Cambridgeshire County Council,19-Apr-22,51301768693,"-1,064.40",LONGUEVILLE COURT,CARE ESTABLISHMENT,OP - Hunts Locality - Cost of Care,Hunts OP Team - Care,Nursing Care
Cambridgeshire County Council,19-Apr-22,51301768693,"-1,064.40",LONGUEVILLE COURT,CARE ESTABLISHMENT,OP - Hunts Locality - Cost of Care,Hunts OP Team - Care,Nursing Care
Cambridgeshire County Council,19-Apr-22,51301768862,"-1,059.98",THE MARBROOK CENTRE,CARE ESTABLISHMENT,OPMH - Hunts & Fens,Older People Mental Health Hunts,Nursing Care
Cambridgeshire County Council,19-Apr-22,51301768862,"-1,059.98",THE MARBROOK CENTRE,CARE ESTABLISHMENT,OPMH - Hunts & Fens,Older People Mental Health Hunts,Nursing Care
Cambridgeshire County Council,19-Apr-22,51301768862,"-1,059.98",THE MARBROOK CENTRE,CARE ESTABLISHMENT,OPMH - Hunts & Fens,Older People Mental Health Hunts,Nursing Care
Cambridgeshire County Council,19-Apr-22,51301768862,"-1,059.98",THE MARBROOK CENTRE,CARE ESTABLISHMENT,OPMH - Hunts & Fens,Older People Mental Health Hunts,Nursing Care
Cambridgeshire County Council,19-Apr-22,51301768862,"-1,059.98",THE MARBROOK CENTRE,CARE ESTABLISHMENT,OPMH - Hunts & Fens,Older People Mental Health Hunts,Nursing Care
Cambridgeshire County Council,19-Apr-22,51301768411,"-1,053.61",AURORA ORCHARD MANOR,CARE ESTABLISHMENT,LD - South Locality - Cost of Care,LD - South Cambs - Special Needs,Residential Care
Cambridgeshire County Council,14-Apr-22,51301764740,"-1,017.33",Redacted Personal Data,SERVICE USER,Physical Disablity - Cost of Care,Countywide PD Service - Care,Direct Payments
Cambridgeshire County Council,14-Apr-22,51301764740,"-1,017.33",Redacted Personal Data,SERVICE USER,Physical Disablity - Cost of Care,Countywide PD Service - Care,Direct Payments
Cambridgeshire County Council,14-Apr-22,51301764740,"-1,017.33",Redacted Personal Data,SERVICE USER,Physical Disablity - Cost of Care,Countywide PD Service - Care,Direct Payments
Cambridgeshire County Council,14-Apr-22,51301764740,"-1,017.33",Redacted Personal Data,SERVICE USER,Physical Disablity - Cost of Care,Countywide PD Service - Care,Direct Payments
Cambridgeshire County Council,19-Apr-22,51301767936,"-1,012.40",CHERRY HINTON NURSING HOME,CARE ESTABLISHMENT,OP - Hunts Locality - Cost of Care,Hunts OP Team - Care,Nursing Care
Cambridgeshire County Council,19-Apr-22,51301767936,"-1,012.40",CHERRY HINTON NURSING HOME,CARE ESTABLISHMENT,OP - Hunts Locality - Cost of Care,Hunts OP Team - Care,Nursing Care
Cambridgeshire County Council,19-Apr-22,51301767936,"-1,012.40",CHERRY HINTON NURSING HOME,CARE ESTABLISHMENT,OP - Hunts Locality - Cost of Care,Hunts OP Team - Care,Nursing Care
Cambridgeshire County Council,19-Apr-22,51301767936,"-1,012.40",CHERRY HINTON NURSING HOME,CARE ESTABLISHMENT,OP - Hunts Locality - Cost of Care,Hunts OP Team - Care,Nursing Care
Cambridgeshire County Council,19-Apr-22,51301767936,"-1,012.40",CHERRY HINTON NURSING HOME,CARE ESTABLISHMENT,OP - Hunts Locality - Cost of Care,Hunts OP Team - Care,Nursing Care
Cambridgeshire County Council,19-Apr-22,51301767936,"-1,012.40",CHERRY HINTON NURSING HOME,CARE ESTABLISHMENT,OP - Hunts Locality - Cost of Care,Hunts OP Team - Care,Nursing Care
Cambridgeshire County Council,19-Apr-22,51301767936,"-1,012.40",CHERRY HINTON NURSING HOME,CARE ESTABLISHMENT,OP - Hunts Locality - Cost of Care,Hunts OP Team - Care,Nursing Care
Cambridgeshire County Council,19-Apr-22,51301767936,"-1,012.40",CHERRY HINTON NURSING HOME,CARE ESTABLISHMENT,OP - Hunts Locality - Cost of Care,Hunts OP Team - Care,Nursing Care
Cambridgeshire County Council,19-Apr-22,51301767936,"-1,012.40",CHERRY HINTON NURSING HOME,CARE ESTABLISHMENT,OP - Hunts Locality - Cost of Care,Hunts OP Team - Care,Nursing Care
Cambridgeshire County Council,19-Apr-22,51301767936,"-1,012.40",CHERRY HINTON NURSING HOME,CARE ESTABLISHMENT,OP - Hunts Locality - Cost of Care,Hunts OP Team - Care,Nursing Care
Cambridgeshire County Council,19-Apr-22,51301767936,"-1,012.40",CHERRY HINTON NURSING HOME,CARE ESTABLISHMENT,OP - Hunts Locality - Cost of Care,Hunts OP Team - Care,Nursing Care
Cambridgeshire County Council,19-Apr-22,51301767936,"-1,012.40",CHERRY HINTON NURSING HOME,CARE ESTABLISHMENT,OP - Hunts Locality - Cost of Care,Hunts OP Team - Care,Nursing Care
Cambridgeshire County Council,19-Apr-22,51301767936,"-1,012.40",CHERRY HINTON NURSING HOME,CARE ESTABLISHMENT,OP - Hunts Locality - Cost of Care,Hunts OP Team - Care,Nursing Care
Cambridgeshire County Council,19-Apr-22,51301767936,"-1,012.40",CHERRY HINTON NURSING HOME,CARE ESTABLISHMENT,OP - Hunts Locality - Cost of Care,Hunts OP Team - Care,Nursing Care
Cambridgeshire County Council,19-Apr-22,51301767936,"-1,012.40",CHERRY HINTON NURSING HOME,CARE ESTABLISHMENT,OP - Hunts Locality - Cost of Care,Hunts OP Team - Care,Nursing Care
Cambridgeshire County Council,14-Apr-22,51301764660,"-1,011.32",Redacted Personal Data,PARENT/GUARDIAN,Physical Disablity - Cost of Care,Countywide PD Service - Care,Direct Payments
Cambridgeshire County Council,14-Apr-22,51301764660,"-1,011.32",Redacted Personal Data,PARENT/GUARDIAN,Physical Disablity - Cost of Care,Countywide PD Service - Care,Direct Payments
Cambridgeshire County Council,14-Apr-22,51301764660,"-1,011.32",Redacted Personal Data,PARENT/GUARDIAN,Physical Disablity - Cost of Care,Countywide PD Service - Care,Direct Payments
Cambridgeshire County Council,14-Apr-22,51301764660,"-1,011.32",Redacted Personal Data,PARENT/GUARDIAN,Physical Disablity - Cost of Care,Countywide PD Service - Care,Direct Payments
Cambridgeshire County Council,19-Apr-22,51301768412,"-1,000.42",ROSEWOOD  (OP PD MH),CARE ESTABLISHMENT,OP - City & South Locality - Cost of Care,Older People - City & South - Care,Residential Care
Cambridgeshire County Council,19-Apr-22,51301768412,"-1,000.42",ROSEWOOD  (OP PD MH),CARE ESTABLISHMENT,OP - City & South Locality - Cost of Care,Older People - City & South - Care,Residential Care
Cambridgeshire County Council,19-Apr-22,51301768412,"-1,000.42",ROSEWOOD  (OP PD MH),CARE ESTABLISHMENT,OP - City & South Locality - Cost of Care,Older People - City & South - Care,Residential Care
Cambridgeshire County Council,19-Apr-22,51301767878,"-1,000.00",BRAMLEY COURT,CARE ESTABLISHMENT,OP - City & South Locality - Cost of Care,Older People - City & South - Care,Residential Care
Cambridgeshire County Council,19-Apr-22,51301767878,"-1,000.00",BRAMLEY COURT,CARE ESTABLISHMENT,OP - City & South Locality - Cost of Care,Older People - City & South - Care,Residential Care
Cambridgeshire County Council,19-Apr-22,51301767878,"-1,000.00",BRAMLEY COURT,CARE ESTABLISHMENT,OP - City & South Locality - Cost of Care,Older People - City & South - Care,Residential Care
Cambridgeshire County Council,19-Apr-22,51301768125,"-1,000.00",MIDFIELD LODGE CARE CENTRE,CARE ESTABLISHMENT,OP - City & South Locality - Cost of Care,Older People - City & South - Care,Nursing Care
Cambridgeshire County Council,19-Apr-22,51301768125,"-1,000.00",MIDFIELD LODGE CARE CENTRE,CARE ESTABLISHMENT,OP - City & South Locality - Cost of Care,Older People - City & South - Care,Nursing Care
Cambridgeshire County Council,19-Apr-22,51301768125,"-1,000.00",MIDFIELD LODGE CARE CENTRE,CARE ESTABLISHMENT,OP - City & South Locality - Cost of Care,Older People - City & South - Care,Nursing Care
Cambridgeshire County Council,14-Apr-22,51301764742,"-1,000.00",Redacted Personal Data,SERVICE USER,Physical Disablity - Cost of Care,Countywide PD Service - Care,Direct Payments
Cambridgeshire County Council,14-Apr-22,51301764742,"-1,000.00",Redacted Personal Data,SERVICE USER,Physical Disablity - Cost of Care,Countywide PD Service - Care,Direct Payments
Cambridgeshire County Council,14-Apr-22,51301764742,"-1,000.00",Redacted Personal Data,SERVICE USER,Physical Disablity - Cost of Care,Countywide PD Service - Care,Direct Payments
Cambridgeshire County Council,14-Apr-22,51301764742,"-1,000.00",Redacted Personal Data,SERVICE USER,Physical Disablity - Cost of Care,Countywide PD Service - Care,Direct Payments
Cambridgeshire County Council,28-Apr-22,51301772815,-993.00,METHODIST HOMES FOR THE AGED (MHA),CARE ESTABLISHMENT,OP - East Cambs Locality - Cost of Care,East Cambs - O P Team - Care,Residential Care
Cambridgeshire County Council,28-Apr-22,51301772815,-993.00,METHODIST HOMES FOR THE AGED (MHA),CARE ESTABLISHMENT,OP - East Cambs Locality - Cost of Care,East Cambs - O P Team - Care,Residential Care
Cambridgeshire County Council,28-Apr-22,51301772815,-993.00,METHODIST HOMES FOR THE AGED (MHA),CARE ESTABLISHMENT,OP - East Cambs Locality - Cost of Care,East Cambs - O P Team - Care,Residential Care
Cambridgeshire County Council,19-Apr-22,51301767205,-987.78,GUYATT HOUSE CARE LTD,CARE ESTABLISHMENT,LD - Young Adults Team,LD - Young Adults - Care,Supported Living
Cambridgeshire County Council,19-Apr-22,51301767205,-987.78,GUYATT HOUSE CARE LTD,CARE ESTABLISHMENT,LD - Young Adults Team,LD - Young Adults - Care,Supported Living
Cambridgeshire County Council,19-Apr-22,51301767205,-987.78,GUYATT HOUSE CARE LTD,CARE ESTABLISHMENT,LD - Young Adults Team,LD - Young Adults - Care,Supported Living
Cambridgeshire County Council,19-Apr-22,51301767205,-987.78,GUYATT HOUSE CARE LTD,CARE ESTABLISHMENT,LD - Young Adults Team,LD - Young Adults - Care,Supported Living
Cambridgeshire County Council,19-Apr-22,51301767205,-987.78,GUYATT HOUSE CARE LTD,CARE ESTABLISHMENT,LD - Young Adults Team,LD - Young Adults - Care,Supported Living
Cambridgeshire County Council,19-Apr-22,51301767205,-987.78,GUYATT HOUSE CARE LTD,CARE ESTABLISHMENT,LD - Young Adults Team,LD - Young Adults - Care,Supported Living
Cambridgeshire County Council,19-Apr-22,51301767205,-987.78,GUYATT HOUSE CARE LTD,CARE ESTABLISHMENT,LD - Young Adults Team,LD - Young Adults - Care,Supported Living
Cambridgeshire County Council,19-Apr-22,51301767205,-987.78,GUYATT HOUSE CARE LTD,CARE ESTABLISHMENT,LD - Young Adults Team,LD - Young Adults - Care,Supported Living
Cambridgeshire County Council,19-Apr-22,51301767205,-987.78,GUYATT HOUSE CARE LTD,CARE ESTABLISHMENT,LD - Young Adults Team,LD - Young Adults - Care,Supported Living
Cambridgeshire County Council,19-Apr-22,51301767205,-987.78,GUYATT HOUSE CARE LTD,CARE ESTABLISHMENT,LD - Young Adults Team,LD - Young Adults - Care,Supported Living
Cambridgeshire County Council,19-Apr-22,51301767205,-987.78,GUYATT HOUSE CARE LTD,CARE ESTABLISHMENT,LD - Young Adults Team,LD - Young Adults - Care,Supported Living
Cambridgeshire County Council,19-Apr-22,51301767205,-987.78,GUYATT HOUSE CARE LTD,CARE ESTABLISHMENT,LD - Young Adults Team,LD - Young Adults - Care,Supported Living
Cambridgeshire County Council,19-Apr-22,51301767205,-987.78,GUYATT HOUSE CARE LTD,CARE ESTABLISHMENT,LD - Young Adults Team,LD - Young Adults - Care,Supported Living
Cambridgeshire County Council,19-Apr-22,51301767205,-987.78,GUYATT HOUSE CARE LTD,CARE ESTABLISHMENT,LD - Young Adults Team,LD - Young Adults - Care,Supported Living
Cambridgeshire County Council,19-Apr-22,51301767205,-987.78,GUYATT HOUSE CARE LTD,CARE ESTABLISHMENT,LD - Young Adults Team,LD - Young Adults - Care,Supported Living
Cambridgeshire County Council,19-Apr-22,51301767205,-987.78,GUYATT HOUSE CARE LTD,CARE ESTABLISHMENT,LD - Young Adults Team,LD - Young Adults - Care,Supported Living
Cambridgeshire County Council,19-Apr-22,51301767205,-987.78,GUYATT HOUSE CARE LTD,CARE ESTABLISHMENT,LD - Young Adults Team,LD - Young Adults - Care,Supported Living
Cambridgeshire County Council,19-Apr-22,51301767205,-987.78,GUYATT HOUSE CARE LTD,CARE ESTABLISHMENT,LD - Young Adults Team,LD - Young Adults - Care,Supported Living
Cambridgeshire County Council,19-Apr-22,51301767205,-987.78,GUYATT HOUSE CARE LTD,CARE ESTABLISHMENT,LD - Young Adults Team,LD - Young Adults - Care,Supported Living
Cambridgeshire County Council,19-Apr-22,51301767205,-987.78,GUYATT HOUSE CARE LTD,CARE ESTABLISHMENT,LD - Young Adults Team,LD - Young Adults - Care,Supported Living
Cambridgeshire County Council,19-Apr-22,51301767205,-987.78,GUYATT HOUSE CARE LTD,CARE ESTABLISHMENT,LD - Young Adults Team,LD - Young Adults - Care,Supported Living
Cambridgeshire County Council,19-Apr-22,51301767205,-987.78,GUYATT HOUSE CARE LTD,CARE ESTABLISHMENT,LD - Young Adults Team,LD - Young Adults - Care,Supported Living
Cambridgeshire County Council,19-Apr-22,51301767205,-987.78,GUYATT HOUSE CARE LTD,CARE ESTABLISHMENT,LD - Young Adults Team,LD - Young Adults - Care,Supported Living
Cambridgeshire County Council,19-Apr-22,51301767205,-987.78,GUYATT HOUSE CARE LTD,CARE ESTABLISHMENT,LD - Young Adults Team,LD - Young Adults - Care,Supported Living
Cambridgeshire County Council,27-Apr-22,51301771993,-968.00,Beaumont HEALTHCARE LTD,CARE ESTABLISHMENT,Physical Disablity - Cost of Care,Countywide PD Service - Care,Domiciliary Care
Cambridgeshire County Council,27-Apr-22,51301771993,-968.00,Beaumont HEALTHCARE LTD,CARE ESTABLISHMENT,Physical Disablity - Cost of Care,Countywide PD Service - Care,Domiciliary Care
Cambridgeshire County Council,27-Apr-22,51301771993,-968.00,Beaumont HEALTHCARE LTD,CARE ESTABLISHMENT,Physical Disablity - Cost of Care,Countywide PD Service - Care,Domiciliary Care
Cambridgeshire County Council,27-Apr-22,51301771856,-964.62,PROMINENT VENTURES LTD T/A KARE PLUS CAMBRIDGE,CARE ESTABLISHMENT,Physical Disablity - Cost of Care,Countywide PD Service - Care,Domiciliary Care
Cambridgeshire County Council,27-Apr-22,51301771856,-964.62,PROMINENT VENTURES LTD T/A KARE PLUS CAMBRIDGE,CARE ESTABLISHMENT,Physical Disablity - Cost of Care,Countywide PD Service - Care,Domiciliary Care
Cambridgeshire County Council,27-Apr-22,51301771856,-964.62,PROMINENT VENTURES LTD T/A KARE PLUS CAMBRIDGE,CARE ESTABLISHMENT,Physical Disablity - Cost of Care,Countywide PD Service - Care,Domiciliary Care
Cambridgeshire County Council,29-Apr-22,51301773457,-958.74,CHS GROUP,CARE ESTABLISHMENT,LD - City Locality - Cost of Care,LD - City - Care,Residential Care - Property Voids
Cambridgeshire County Council,19-Apr-22,51301767850,-950.00,WOODLANDS CARE CENTRE,CARE ESTABLISHMENT,OP - City & South Locality - Cost of Care,Older People - City & South - Care,Nursing Care
Cambridgeshire County Council,19-Apr-22,51301767850,-950.00,WOODLANDS CARE CENTRE,CARE ESTABLISHMENT,OP - City & South Locality - Cost of Care,Older People - City & South - Care,Nursing Care
Cambridgeshire County Council,19-Apr-22,51301767850,-950.00,WOODLANDS CARE CENTRE,CARE ESTABLISHMENT,OP - City & South Locality - Cost of Care,Older People - City & South - Care,Nursing Care
Cambridgeshire County Council,14-Apr-22,51301765084,-950.00,Lav Care Services LTD,CARE ESTABLISHMENT,Physical Disablity - Cost of Care,Countywide PD Service - Care,Domiciliary Care
Cambridgeshire County Council,14-Apr-22,51301765084,-950.00,Lav Care Services LTD,CARE ESTABLISHMENT,Physical Disablity - Cost of Care,Countywide PD Service - Care,Domiciliary Care
Cambridgeshire County Council,14-Apr-22,51301765084,-950.00,Lav Care Services LTD,CARE ESTABLISHMENT,Physical Disablity - Cost of Care,Countywide PD Service - Care,Domiciliary Care
Cambridgeshire County Council,14-Apr-22,51301765084,-950.00,Lav Care Services LTD,CARE ESTABLISHMENT,Physical Disablity - Cost of Care,Countywide PD Service - Care,Domiciliary Care
Cambridgeshire County Council,14-Apr-22,51301765084,-950.00,Lav Care Services LTD,CARE ESTABLISHMENT,Physical Disablity - Cost of Care,Countywide PD Service - Care,Domiciliary Care
Cambridgeshire County Council,14-Apr-22,51301764612,-937.78,Redacted Personal Data,SERVICE USER,Physical Disablity - Cost of Care,Countywide PD Service - Care,Direct Payments
Cambridgeshire County Council,14-Apr-22,51301764612,-937.78,Redacted Personal Data,SERVICE USER,Physical Disablity - Cost of Care,Countywide PD Service - Care,Direct Payments
Cambridgeshire County Council,14-Apr-22,51301764612,-937.78,Redacted Personal Data,SERVICE USER,Physical Disablity - Cost of Care,Countywide PD Service - Care,Direct Payments
Cambridgeshire County Council,14-Apr-22,51301764612,-937.78,Redacted Personal Data,SERVICE USER,Physical Disablity - Cost of Care,Countywide PD Service - Care,Direct Payments
Cambridgeshire County Council,19-Apr-22,51301768631,-935.98,THE EDMUND TRUST,CARE ESTABLISHMENT,OP - City & South Locality - Cost of Care,Older People - City & South - Care,Residential Care
Cambridgeshire County Council,19-Apr-22,51301768631,-935.98,THE EDMUND TRUST,CARE ESTABLISHMENT,OP - City & South Locality - Cost of Care,Older People - City & South - Care,Residential Care
Cambridgeshire County Council,19-Apr-22,51301768631,-935.98,THE EDMUND TRUST,CARE ESTABLISHMENT,OP - City & South Locality - Cost of Care,Older People - City & South - Care,Residential Care
Cambridgeshire County Council,19-Apr-22,51301769130,-912.95,26A LEROWE ROAD (REGARD),CARE ESTABLISHMENT,AMH - Hunts & Fens,E Cambs & Fenland Mental Health Team,Supported Living
Cambridgeshire County Council,19-Apr-22,51301769130,-912.95,26A LEROWE ROAD (REGARD),CARE ESTABLISHMENT,AMH - Hunts & Fens,E Cambs & Fenland Mental Health Team,Supported Living
Cambridgeshire County Council,19-Apr-22,51301769130,-912.95,26A LEROWE ROAD (REGARD),CARE ESTABLISHMENT,AMH - Hunts & Fens,E Cambs & Fenland Mental Health Team,Supported Living
Cambridgeshire County Council,19-Apr-22,51301769130,-912.95,26A LEROWE ROAD (REGARD),CARE ESTABLISHMENT,AMH - Hunts & Fens,E Cambs & Fenland Mental Health Team,Supported Living
Cambridgeshire County Council,19-Apr-22,51301769130,-912.95,26A LEROWE ROAD (REGARD),CARE ESTABLISHMENT,AMH - Hunts & Fens,E Cambs & Fenland Mental Health Team,Supported Living
Cambridgeshire County Council,19-Apr-22,51301769130,-912.95,26A LEROWE ROAD (REGARD),CARE ESTABLISHMENT,AMH - Hunts & Fens,E Cambs & Fenland Mental Health Team,Supported Living
Cambridgeshire County Council,19-Apr-22,51301769130,-912.95,26A LEROWE ROAD (REGARD),CARE ESTABLISHMENT,AMH - Hunts & Fens,E Cambs & Fenland Mental Health Team,Supported Living
Cambridgeshire County Council,19-Apr-22,51301769130,-912.95,26A LEROWE ROAD (REGARD),CARE ESTABLISHMENT,AMH - Hunts & Fens,E Cambs & Fenland Mental Health Team,Supported Living
Cambridgeshire County Council,19-Apr-22,51301769130,-912.95,26A LEROWE ROAD (REGARD),CARE ESTABLISHMENT,AMH - Hunts & Fens,E Cambs & Fenland Mental Health Team,Supported Living
Cambridgeshire County Council,19-Apr-22,51301769130,-912.95,26A LEROWE ROAD (REGARD),CARE ESTABLISHMENT,AMH - Hunts & Fens,E Cambs & Fenland Mental Health Team,Supported Living
Cambridgeshire County Council,19-Apr-22,51301769130,-912.95,26A LEROWE ROAD (REGARD),CARE ESTABLISHMENT,AMH - Hunts & Fens,E Cambs & Fenland Mental Health Team,Supported Living
Cambridgeshire County Council,19-Apr-22,51301769130,-912.95,26A LEROWE ROAD (REGARD),CARE ESTABLISHMENT,AMH - Hunts & Fens,E Cambs & Fenland Mental Health Team,Supported Living
Cambridgeshire County Council,19-Apr-22,51301769130,-912.95,26A LEROWE ROAD (REGARD),CARE ESTABLISHMENT,AMH - Hunts & Fens,E Cambs & Fenland Mental Health Team,Supported Living
Cambridgeshire County Council,19-Apr-22,51301769130,-912.95,26A LEROWE ROAD (REGARD),CARE ESTABLISHMENT,AMH - Hunts & Fens,E Cambs & Fenland Mental Health Team,Supported Living
Cambridgeshire County Council,19-Apr-22,51301769130,-912.95,26A LEROWE ROAD (REGARD),CARE ESTABLISHMENT,AMH - Hunts & Fens,E Cambs & Fenland Mental Health Team,Supported Living
Cambridgeshire County Council,19-Apr-22,51301769130,-912.95,26A LEROWE ROAD (REGARD),CARE ESTABLISHMENT,AMH - Hunts & Fens,E Cambs & Fenland Mental Health Team,Supported Living
Cambridgeshire County Council,19-Apr-22,51301769130,-912.95,26A LEROWE ROAD (REGARD),CARE ESTABLISHMENT,AMH - Hunts & Fens,E Cambs & Fenland Mental Health Team,Supported Living
Cambridgeshire County Council,19-Apr-22,51301769130,-912.95,26A LEROWE ROAD (REGARD),CARE ESTABLISHMENT,AMH - Hunts & Fens,E Cambs & Fenland Mental Health Team,Supported Living
Cambridgeshire County Council,19-Apr-22,51301769130,-912.95,26A LEROWE ROAD (REGARD),CARE ESTABLISHMENT,AMH - Hunts & Fens,E Cambs & Fenland Mental Health Team,Supported Living
Cambridgeshire County Council,19-Apr-22,51301769130,-912.95,26A LEROWE ROAD (REGARD),CARE ESTABLISHMENT,AMH - Hunts & Fens,E Cambs & Fenland Mental Health Team,Supported Living
Cambridgeshire County Council,19-Apr-22,51301769130,-912.95,26A LEROWE ROAD (REGARD),CARE ESTABLISHMENT,AMH - Hunts & Fens,E Cambs & Fenland Mental Health Team,Supported Living
Cambridgeshire County Council,19-Apr-22,51301769130,-912.95,26A LEROWE ROAD (REGARD),CARE ESTABLISHMENT,AMH - Hunts & Fens,E Cambs & Fenland Mental Health Team,Supported Living
Cambridgeshire County Council,19-Apr-22,51301769130,-912.95,26A LEROWE ROAD (REGARD),CARE ESTABLISHMENT,AMH - Hunts & Fens,E Cambs & Fenland Mental Health Team,Supported Living
Cambridgeshire County Council,19-Apr-22,51301769130,-912.95,26A LEROWE ROAD (REGARD),CARE ESTABLISHMENT,AMH - Hunts & Fens,E Cambs & Fenland Mental Health Team,Supported Living
Cambridgeshire County Council,19-Apr-22,51301769130,-912.95,26A LEROWE ROAD (REGARD),CARE ESTABLISHMENT,AMH - Hunts & Fens,E Cambs & Fenland Mental Health Team,Supported Living
Cambridgeshire County Council,19-Apr-22,51301769130,-912.95,26A LEROWE ROAD (REGARD),CARE ESTABLISHMENT,AMH - Hunts & Fens,E Cambs & Fenland Mental Health Team,Supported Living
Cambridgeshire County Council,19-Apr-22,51301769130,-912.95,26A LEROWE ROAD (REGARD),CARE ESTABLISHMENT,AMH - Hunts & Fens,E Cambs & Fenland Mental Health Team,Supported Living
Cambridgeshire County Council,19-Apr-22,51301769130,-912.95,26A LEROWE ROAD (REGARD),CARE ESTABLISHMENT,AMH - Hunts & Fens,E Cambs & Fenland Mental Health Team,Supported Living
Cambridgeshire County Council,19-Apr-22,51301769130,-912.95,26A LEROWE ROAD (REGARD),CARE ESTABLISHMENT,AMH - Hunts & Fens,E Cambs & Fenland Mental Health Team,Supported Living
Cambridgeshire County Council,19-Apr-22,51301769130,-912.95,26A LEROWE ROAD (REGARD),CARE ESTABLISHMENT,AMH - Hunts & Fens,E Cambs & Fenland Mental Health Team,Supported Living
Cambridgeshire County Council,19-Apr-22,51301769130,-912.95,26A LEROWE ROAD (REGARD),CARE ESTABLISHMENT,AMH - Hunts & Fens,E Cambs & Fenland Mental Health Team,Supported Living
Cambridgeshire County Council,19-Apr-22,51301769130,-912.95,26A LEROWE ROAD (REGARD),CARE ESTABLISHMENT,AMH - Hunts & Fens,E Cambs & Fenland Mental Health Team,Supported Living
Cambridgeshire County Council,19-Apr-22,51301769130,-912.95,26A LEROWE ROAD (REGARD),CARE ESTABLISHMENT,AMH - Hunts & Fens,E Cambs & Fenland Mental Health Team,Supported Living
Cambridgeshire County Council,19-Apr-22,51301769130,-912.95,26A LEROWE ROAD (REGARD),CARE ESTABLISHMENT,AMH - Hunts & Fens,E Cambs & Fenland Mental Health Team,Supported Living
Cambridgeshire County Council,19-Apr-22,51301769130,-912.95,26A LEROWE ROAD (REGARD),CARE ESTABLISHMENT,AMH - Hunts & Fens,E Cambs & Fenland Mental Health Team,Supported Living
Cambridgeshire County Council,19-Apr-22,51301769130,-912.95,26A LEROWE ROAD (REGARD),CARE ESTABLISHMENT,AMH - Hunts & Fens,E Cambs & Fenland Mental Health Team,Supported Living
Cambridgeshire County Council,19-Apr-22,51301769130,-912.95,26A LEROWE ROAD (REGARD),CARE ESTABLISHMENT,AMH - Hunts & Fens,E Cambs & Fenland Mental Health Team,Supported Living
Cambridgeshire County Council,19-Apr-22,51301769130,-912.95,26A LEROWE ROAD (REGARD),CARE ESTABLISHMENT,AMH - Hunts & Fens,E Cambs & Fenland Mental Health Team,Supported Living
Cambridgeshire County Council,19-Apr-22,51301769130,-912.95,26A LEROWE ROAD (REGARD),CARE ESTABLISHMENT,AMH - Hunts & Fens,E Cambs & Fenland Mental Health Team,Supported Living
Cambridgeshire County Council,19-Apr-22,51301769130,-912.95,26A LEROWE ROAD (REGARD),CARE ESTABLISHMENT,AMH - Hunts & Fens,E Cambs & Fenland Mental Health Team,Supported Living
Cambridgeshire County Council,19-Apr-22,51301769130,-912.95,26A LEROWE ROAD (REGARD),CARE ESTABLISHMENT,AMH - Hunts & Fens,E Cambs & Fenland Mental Health Team,Supported Living
Cambridgeshire County Council,19-Apr-22,51301769130,-912.95,26A LEROWE ROAD (REGARD),CARE ESTABLISHMENT,AMH - Hunts & Fens,E Cambs & Fenland Mental Health Team,Supported Living
Cambridgeshire County Council,19-Apr-22,51301769130,-912.95,26A LEROWE ROAD (REGARD),CARE ESTABLISHMENT,AMH - Hunts & Fens,E Cambs & Fenland Mental Health Team,Supported Living
Cambridgeshire County Council,19-Apr-22,51301769130,-912.95,26A LEROWE ROAD (REGARD),CARE ESTABLISHMENT,AMH - Hunts & Fens,E Cambs & Fenland Mental Health Team,Supported Living
Cambridgeshire County Council,19-Apr-22,51301769130,-912.95,26A LEROWE ROAD (REGARD),CARE ESTABLISHMENT,AMH - Hunts & Fens,E Cambs & Fenland Mental Health Team,Supported Living
Cambridgeshire County Council,19-Apr-22,51301769130,-912.95,26A LEROWE ROAD (REGARD),CARE ESTABLISHMENT,AMH - Hunts & Fens,E Cambs & Fenland Mental Health Team,Supported Living
Cambridgeshire County Council,19-Apr-22,51301769130,-912.95,26A LEROWE ROAD (REGARD),CARE ESTABLISHMENT,AMH - Hunts & Fens,E Cambs & Fenland Mental Health Team,Supported Living
Cambridgeshire County Council,19-Apr-22,51301769130,-912.95,26A LEROWE ROAD (REGARD),CARE ESTABLISHMENT,AMH - Hunts & Fens,E Cambs & Fenland Mental Health Team,Supported Living
Cambridgeshire County Council,19-Apr-22,51301769130,-912.95,26A LEROWE ROAD (REGARD),CARE ESTABLISHMENT,AMH - Hunts & Fens,E Cambs & Fenland Mental Health Team,Supported Living
Cambridgeshire County Council,19-Apr-22,51301769130,-912.95,26A LEROWE ROAD (REGARD),CARE ESTABLISHMENT,AMH - Hunts & Fens,E Cambs & Fenland Mental Health Team,Supported Living
Cambridgeshire County Council,19-Apr-22,51301769130,-912.95,26A LEROWE ROAD (REGARD),CARE ESTABLISHMENT,AMH - Hunts & Fens,E Cambs & Fenland Mental Health Team,Supported Living
Cambridgeshire County Council,19-Apr-22,51301769130,-912.95,26A LEROWE ROAD (REGARD),CARE ESTABLISHMENT,AMH - Hunts & Fens,E Cambs & Fenland Mental Health Team,Supported Living
Cambridgeshire County Council,19-Apr-22,51301769130,-912.95,26A LEROWE ROAD (REGARD),CARE ESTABLISHMENT,AMH - Hunts & Fens,E Cambs & Fenland Mental Health Team,Supported Living
Cambridgeshire County Council,19-Apr-22,51301769130,-912.95,26A LEROWE ROAD (REGARD),CARE ESTABLISHMENT,AMH - Hunts & Fens,E Cambs & Fenland Mental Health Team,Supported Living
Cambridgeshire County Council,19-Apr-22,51301769130,-912.95,26A LEROWE ROAD (REGARD),CARE ESTABLISHMENT,AMH - Hunts & Fens,E Cambs & Fenland Mental Health Team,Supported Living
Cambridgeshire County Council,19-Apr-22,51301769130,-912.95,26A LEROWE ROAD (REGARD),CARE ESTABLISHMENT,AMH - Hunts & Fens,E Cambs & Fenland Mental Health Team,Supported Living
Cambridgeshire County Council,19-Apr-22,51301769130,-912.95,26A LEROWE ROAD (REGARD),CARE ESTABLISHMENT,AMH - Hunts & Fens,E Cambs & Fenland Mental Health Team,Supported Living
Cambridgeshire County Council,19-Apr-22,51301769130,-912.95,26A LEROWE ROAD (REGARD),CARE ESTABLISHMENT,AMH - Hunts & Fens,E Cambs & Fenland Mental Health Team,Supported Living
Cambridgeshire County Council,19-Apr-22,51301769130,-912.95,26A LEROWE ROAD (REGARD),CARE ESTABLISHMENT,AMH - Hunts & Fens,E Cambs & Fenland Mental Health Team,Supported Living
Cambridgeshire County Council,19-Apr-22,51301769130,-912.95,26A LEROWE ROAD (REGARD),CARE ESTABLISHMENT,AMH - Hunts & Fens,E Cambs & Fenland Mental Health Team,Supported Living
Cambridgeshire County Council,19-Apr-22,51301769130,-912.95,26A LEROWE ROAD (REGARD),CARE ESTABLISHMENT,AMH - Hunts & Fens,E Cambs & Fenland Mental Health Team,Supported Living
Cambridgeshire County Council,19-Apr-22,51301769130,-912.95,26A LEROWE ROAD (REGARD),CARE ESTABLISHMENT,AMH - Hunts & Fens,E Cambs & Fenland Mental Health Team,Supported Living
Cambridgeshire County Council,19-Apr-22,51301769130,-912.95,26A LEROWE ROAD (REGARD),CARE ESTABLISHMENT,AMH - Hunts & Fens,E Cambs & Fenland Mental Health Team,Supported Living
Cambridgeshire County Council,19-Apr-22,51301769130,-912.95,26A LEROWE ROAD (REGARD),CARE ESTABLISHMENT,AMH - Hunts & Fens,E Cambs & Fenland Mental Health Team,Supported Living
Cambridgeshire County Council,19-Apr-22,51301769130,-912.95,26A LEROWE ROAD (REGARD),CARE ESTABLISHMENT,AMH - Hunts & Fens,E Cambs & Fenland Mental Health Team,Supported Living
Cambridgeshire County Council,19-Apr-22,51301769130,-912.95,26A LEROWE ROAD (REGARD),CARE ESTABLISHMENT,AMH - Hunts & Fens,E Cambs & Fenland Mental Health Team,Supported Living
Cambridgeshire County Council,19-Apr-22,51301769130,-912.95,26A LEROWE ROAD (REGARD),CARE ESTABLISHMENT,AMH - Hunts & Fens,E Cambs & Fenland Mental Health Team,Supported Living
Cambridgeshire County Council,19-Apr-22,51301769130,-912.95,26A LEROWE ROAD (REGARD),CARE ESTABLISHMENT,AMH - Hunts & Fens,E Cambs & Fenland Mental Health Team,Supported Living
Cambridgeshire County Council,19-Apr-22,51301769130,-912.95,26A LEROWE ROAD (REGARD),CARE ESTABLISHMENT,AMH - Hunts & Fens,E Cambs & Fenland Mental Health Team,Supported Living
Cambridgeshire County Council,19-Apr-22,51301769130,-912.95,26A LEROWE ROAD (REGARD),CARE ESTABLISHMENT,AMH - Hunts & Fens,E Cambs & Fenland Mental Health Team,Supported Living
Cambridgeshire County Council,19-Apr-22,51301769130,-912.95,26A LEROWE ROAD (REGARD),CARE ESTABLISHMENT,AMH - Hunts & Fens,E Cambs & Fenland Mental Health Team,Supported Living
Cambridgeshire County Council,19-Apr-22,51301769130,-912.95,26A LEROWE ROAD (REGARD),CARE ESTABLISHMENT,AMH - Hunts & Fens,E Cambs & Fenland Mental Health Team,Supported Living
Cambridgeshire County Council,19-Apr-22,51301769130,-912.95,26A LEROWE ROAD (REGARD),CARE ESTABLISHMENT,AMH - Hunts & Fens,E Cambs & Fenland Mental Health Team,Supported Living
Cambridgeshire County Council,19-Apr-22,51301769130,-912.95,26A LEROWE ROAD (REGARD),CARE ESTABLISHMENT,AMH - Hunts & Fens,E Cambs & Fenland Mental Health Team,Supported Living
Cambridgeshire County Council,19-Apr-22,51301769130,-912.95,26A LEROWE ROAD (REGARD),CARE ESTABLISHMENT,AMH - Hunts & Fens,E Cambs & Fenland Mental Health Team,Supported Living
Cambridgeshire County Council,19-Apr-22,51301769130,-912.95,26A LEROWE ROAD (REGARD),CARE ESTABLISHMENT,AMH - Hunts & Fens,E Cambs & Fenland Mental Health Team,Supported Living
Cambridgeshire County Council,19-Apr-22,51301769130,-912.95,26A LEROWE ROAD (REGARD),CARE ESTABLISHMENT,AMH - Hunts & Fens,E Cambs & Fenland Mental Health Team,Supported Living
Cambridgeshire County Council,19-Apr-22,51301769130,-912.95,26A LEROWE ROAD (REGARD),CARE ESTABLISHMENT,AMH - Hunts & Fens,E Cambs & Fenland Mental Health Team,Supported Living
Cambridgeshire County Council,19-Apr-22,51301769130,-912.95,26A LEROWE ROAD (REGARD),CARE ESTABLISHMENT,AMH - Hunts & Fens,E Cambs & Fenland Mental Health Team,Supported Living
Cambridgeshire County Council,19-Apr-22,51301769130,-912.95,26A LEROWE ROAD (REGARD),CARE ESTABLISHMENT,AMH - Hunts & Fens,E Cambs & Fenland Mental Health Team,Supported Living
Cambridgeshire County Council,19-Apr-22,51301769130,-912.95,26A LEROWE ROAD (REGARD),CARE ESTABLISHMENT,AMH - Hunts & Fens,E Cambs & Fenland Mental Health Team,Supported Living
Cambridgeshire County Council,19-Apr-22,51301769130,-912.95,26A LEROWE ROAD (REGARD),CARE ESTABLISHMENT,AMH - Hunts & Fens,E Cambs & Fenland Mental Health Team,Supported Living
Cambridgeshire County Council,19-Apr-22,51301769130,-912.95,26A LEROWE ROAD (REGARD),CARE ESTABLISHMENT,AMH - Hunts & Fens,E Cambs & Fenland Mental Health Team,Supported Living
Cambridgeshire County Council,19-Apr-22,51301769130,-912.95,26A LEROWE ROAD (REGARD),CARE ESTABLISHMENT,AMH - Hunts & Fens,E Cambs & Fenland Mental Health Team,Supported Living
Cambridgeshire County Council,19-Apr-22,51301769130,-912.95,26A LEROWE ROAD (REGARD),CARE ESTABLISHMENT,AMH - Hunts & Fens,E Cambs & Fenland Mental Health Team,Supported Living
Cambridgeshire County Council,19-Apr-22,51301769130,-912.95,26A LEROWE ROAD (REGARD),CARE ESTABLISHMENT,AMH - Hunts & Fens,E Cambs & Fenland Mental Health Team,Supported Living
Cambridgeshire County Council,19-Apr-22,51301769130,-912.95,26A LEROWE ROAD (REGARD),CARE ESTABLISHMENT,AMH - Hunts & Fens,E Cambs & Fenland Mental Health Team,Supported Living
Cambridgeshire County Council,19-Apr-22,51301769130,-912.95,26A LEROWE ROAD (REGARD),CARE ESTABLISHMENT,AMH - Hunts & Fens,E Cambs & Fenland Mental Health Team,Supported Living
Cambridgeshire County Council,19-Apr-22,51301769130,-912.95,26A LEROWE ROAD (REGARD),CARE ESTABLISHMENT,AMH - Hunts & Fens,E Cambs & Fenland Mental Health Team,Supported Living
Cambridgeshire County Council,19-Apr-22,51301769130,-912.95,26A LEROWE ROAD (REGARD),CARE ESTABLISHMENT,AMH - Hunts & Fens,E Cambs & Fenland Mental Health Team,Supported Living
Cambridgeshire County Council,19-Apr-22,51301769130,-912.95,26A LEROWE ROAD (REGARD),CARE ESTABLISHMENT,AMH - Hunts & Fens,E Cambs & Fenland Mental Health Team,Supported Living
Cambridgeshire County Council,14-Apr-22,51301766028,-910.86,Redacted Personal Data,SERVICE USER,LD - South Locality - Cost of Care,LD - South Cambs - Care,Direct Payments
Cambridgeshire County Council,14-Apr-22,51301766028,-910.86,Redacted Personal Data,SERVICE USER,LD - South Locality - Cost of Care,LD - South Cambs - Care,Direct Payments
Cambridgeshire County Council,14-Apr-22,51301766028,-910.86,Redacted Personal Data,SERVICE USER,LD - South Locality - Cost of Care,LD - South Cambs - Care,Direct Payments
Cambridgeshire County Council,19-Apr-22,51301766899,-910.12,VOYAGE (LICHFIELD),CARE ESTABLISHMENT,LD - South Locality - Cost of Care,LD - South Cambs - Care,Supported Living
Cambridgeshire County Council,19-Apr-22,51301766899,-910.12,VOYAGE (LICHFIELD),CARE ESTABLISHMENT,LD - South Locality - Cost of Care,LD - South Cambs - Care,Supported Living
Cambridgeshire County Council,19-Apr-22,51301766899,-910.12,VOYAGE (LICHFIELD),CARE ESTABLISHMENT,LD - South Locality - Cost of Care,LD - South Cambs - Care,Supported Living
Cambridgeshire County Council,19-Apr-22,51301767886,-900.00,WOODLANDS CARE CENTRE,CARE ESTABLISHMENT,OP - City & South Locality - Cost of Care,Older People - City & South - Care,Residential Care
Cambridgeshire County Council,19-Apr-22,51301767886,-900.00,WOODLANDS CARE CENTRE,CARE ESTABLISHMENT,OP - City & South Locality - Cost of Care,Older People - City & South - Care,Residential Care
Cambridgeshire County Council,19-Apr-22,51301767886,-900.00,WOODLANDS CARE CENTRE,CARE ESTABLISHMENT,OP - City & South Locality - Cost of Care,Older People - City & South - Care,Residential Care
Cambridgeshire County Council,19-Apr-22,51301767631,-900.00,COTTENHAM COURT NURSING HOME,CARE ESTABLISHMENT,OP - City & South Locality - Cost of Care,Older People - City & South - Care,Nursing Care
Cambridgeshire County Council,19-Apr-22,51301767631,-900.00,COTTENHAM COURT NURSING HOME,CARE ESTABLISHMENT,OP - City & South Locality - Cost of Care,Older People - City & South - Care,Nursing Care
Cambridgeshire County Council,19-Apr-22,51301767631,-900.00,COTTENHAM COURT NURSING HOME,CARE ESTABLISHMENT,OP - City & South Locality - Cost of Care,Older People - City & South - Care,Nursing Care
Cambridgeshire County Council,19-Apr-22,51301767631,-900.00,COTTENHAM COURT NURSING HOME,CARE ESTABLISHMENT,OP - City & South Locality - Cost of Care,Older People - City & South - Care,Nursing Care
Cambridgeshire County Council,19-Apr-22,51301767631,-900.00,COTTENHAM COURT NURSING HOME,CARE ESTABLISHMENT,OP - City & South Locality - Cost of Care,Older People - City & South - Care,Nursing Care
Cambridgeshire County Council,19-Apr-22,51301767631,-900.00,COTTENHAM COURT NURSING HOME,CARE ESTABLISHMENT,OP - City & South Locality - Cost of Care,Older People - City & South - Care,Nursing Care
Cambridgeshire County Council,19-Apr-22,51301767631,-900.00,COTTENHAM COURT NURSING HOME,CARE ESTABLISHMENT,OP - City & South Locality - Cost of Care,Older People - City & South - Care,Nursing Care
Cambridgeshire County Council,19-Apr-22,51301767631,-900.00,COTTENHAM COURT NURSING HOME,CARE ESTABLISHMENT,OP - City & South Locality - Cost of Care,Older People - City & South - Care,Nursing Care
Cambridgeshire County Council,19-Apr-22,51301767631,-900.00,COTTENHAM COURT NURSING HOME,CARE ESTABLISHMENT,OP - City & South Locality - Cost of Care,Older People - City & South - Care,Nursing Care
Cambridgeshire County Council,19-Apr-22,51301767631,-900.00,COTTENHAM COURT NURSING HOME,CARE ESTABLISHMENT,OP - City & South Locality - Cost of Care,Older People - City & South - Care,Nursing Care
Cambridgeshire County Council,19-Apr-22,51301768020,-900.00,GLENNFIELD CARE CENTRE (OP),CARE ESTABLISHMENT,OP - Fenland Blocks,Fenland - Long term blocks,Nursing Care
Cambridgeshire County Council,14-Apr-22,51301763222,-880.88,BLUEBIRD CARE NEWMARKET & FENLAND,CARE ESTABLISHMENT,OP - East Cambs Locality - Cost of Care,East Cambs - O P Team - Care,Domiciliary Care
Cambridgeshire County Council,14-Apr-22,51301763222,-880.88,BLUEBIRD CARE NEWMARKET & FENLAND,CARE ESTABLISHMENT,OP - East Cambs Locality - Cost of Care,East Cambs - O P Team - Care,Domiciliary Care
Cambridgeshire County Council,14-Apr-22,51301763222,-880.88,BLUEBIRD CARE NEWMARKET & FENLAND,CARE ESTABLISHMENT,OP - East Cambs Locality - Cost of Care,East Cambs - O P Team - Care,Domiciliary Care
Cambridgeshire County Council,19-Apr-22,51301768066,-872.70,ROYAL MENCAP SOCIETY,CARE ESTABLISHMENT,OP - City & South Locality - Cost of Care,Older People - City & South - Care,Residential Care
Cambridgeshire County Council,19-Apr-22,51301768066,-872.70,ROYAL MENCAP SOCIETY,CARE ESTABLISHMENT,OP - City & South Locality - Cost of Care,Older People - City & South - Care,Residential Care
Cambridgeshire County Council,19-Apr-22,51301768066,-872.70,ROYAL MENCAP SOCIETY,CARE ESTABLISHMENT,OP - City & South Locality - Cost of Care,Older People - City & South - Care,Residential Care
Cambridgeshire County Council,04-Apr-22,51301756884,-864.00,ROYAL MAIL,TRADE SUPPLIER,Information Management,Resources Franking Machine,Postage & Carriage
Cambridgeshire County Council,19-Apr-22,51301767711,-863.38,MAKING SPACE,CARE ESTABLISHMENT,OP - East Cambs Locality - Cost of Care,East Cambs - O P Team - Care,Nursing Care
Cambridgeshire County Council,27-Apr-22,51301771797,-856.80,MEADOWS HOMECARE SERVICES,CARE ESTABLISHMENT,Physical Disablity - Cost of Care,Countywide PD Service - Care,Homecare
Cambridgeshire County Council,27-Apr-22,51301771797,-856.80,MEADOWS HOMECARE SERVICES,CARE ESTABLISHMENT,Physical Disablity - Cost of Care,Countywide PD Service - Care,Homecare
Cambridgeshire County Council,27-Apr-22,51301771797,-856.80,MEADOWS HOMECARE SERVICES,CARE ESTABLISHMENT,Physical Disablity - Cost of Care,Countywide PD Service - Care,Homecare
Cambridgeshire County Council,27-Apr-22,51301771803,-856.80,MEADOWS HOMECARE SERVICES,CARE ESTABLISHMENT,Physical Disablity - Cost of Care,Countywide PD Service - Care,Homecare
Cambridgeshire County Council,27-Apr-22,51301771803,-856.80,MEADOWS HOMECARE SERVICES,CARE ESTABLISHMENT,Physical Disablity - Cost of Care,Countywide PD Service - Care,Homecare
Cambridgeshire County Council,27-Apr-22,51301771803,-856.80,MEADOWS HOMECARE SERVICES,CARE ESTABLISHMENT,Physical Disablity - Cost of Care,Countywide PD Service - Care,Homecare
Cambridgeshire County Council,28-Apr-22,51301736065,-853.60,SANCTON WOOD SCHOOL,NURSERY,SEN Placements,Placements - Education,Independent School Placements
Cambridgeshire County Council,19-Apr-22,51301768000,-850.00,SPRINGFIELD RESIDENTIAL CARE,CARE ESTABLISHMENT,OP - Fenland Blocks,Fenland - Short term blocks,Rehabilitation And Respite Care
Cambridgeshire County Council,14-Apr-22,51301765140,-850.00,Faith Care Line Services Ltd,CARE ESTABLISHMENT,OP - City & South Locality - Cost of Care,Older People - City & South - Care,Homecare
Cambridgeshire County Council,14-Apr-22,51301765140,-850.00,Faith Care Line Services Ltd,CARE ESTABLISHMENT,OP - City & South Locality - Cost of Care,Older People - City & South - Care,Homecare
Cambridgeshire County Council,14-Apr-22,51301765140,-850.00,Faith Care Line Services Ltd,CARE ESTABLISHMENT,OP - City & South Locality - Cost of Care,Older People - City & South - Care,Homecare
Cambridgeshire County Council,19-Apr-22,51301767845,-850.00,WOODLANDS CARE CENTRE,CARE ESTABLISHMENT,OP - City & South Locality - Cost of Care,Older People - City & South - Care,Residential Care
Cambridgeshire County Council,19-Apr-22,51301767845,-850.00,WOODLANDS CARE CENTRE,CARE ESTABLISHMENT,OP - City & South Locality - Cost of Care,Older People - City & South - Care,Residential Care
Cambridgeshire County Council,19-Apr-22,51301767845,-850.00,WOODLANDS CARE CENTRE,CARE ESTABLISHMENT,OP - City & South Locality - Cost of Care,Older People - City & South - Care,Residential Care
Cambridgeshire County Council,19-Apr-22,51301767845,-850.00,WOODLANDS CARE CENTRE,CARE ESTABLISHMENT,OP - City & South Locality - Cost of Care,Older People - City & South - Care,Residential Care
Cambridgeshire County Council,19-Apr-22,51301767845,-850.00,WOODLANDS CARE CENTRE,CARE ESTABLISHMENT,OP - City & South Locality - Cost of Care,Older People - City & South - Care,Residential Care
Cambridgeshire County Council,19-Apr-22,51301767845,-850.00,WOODLANDS CARE CENTRE,CARE ESTABLISHMENT,OP - City & South Locality - Cost of Care,Older People - City & South - Care,Residential Care
Cambridgeshire County Council,19-Apr-22,51301767845,-850.00,WOODLANDS CARE CENTRE,CARE ESTABLISHMENT,OP - City & South Locality - Cost of Care,Older People - City & South - Care,Residential Care
Cambridgeshire County Council,19-Apr-22,51301767845,-850.00,WOODLANDS CARE CENTRE,CARE ESTABLISHMENT,OP - City & South Locality - Cost of Care,Older People - City & South - Care,Residential Care
Cambridgeshire County Council,19-Apr-22,51301767845,-850.00,WOODLANDS CARE CENTRE,CARE ESTABLISHMENT,OP - City & South Locality - Cost of Care,Older People - City & South - Care,Residential Care
Cambridgeshire County Council,19-Apr-22,51301767845,-850.00,WOODLANDS CARE CENTRE,CARE ESTABLISHMENT,OP - City & South Locality - Cost of Care,Older People - City & South - Care,Residential Care
Cambridgeshire County Council,19-Apr-22,51301767845,-850.00,WOODLANDS CARE CENTRE,CARE ESTABLISHMENT,OP - City & South Locality - Cost of Care,Older People - City & South - Care,Residential Care
Cambridgeshire County Council,19-Apr-22,51301767845,-850.00,WOODLANDS CARE CENTRE,CARE ESTABLISHMENT,OP - City & South Locality - Cost of Care,Older People - City & South - Care,Residential Care
Cambridgeshire County Council,19-Apr-22,51301767845,-850.00,WOODLANDS CARE CENTRE,CARE ESTABLISHMENT,OP - City & South Locality - Cost of Care,Older People - City & South - Care,Residential Care
Cambridgeshire County Council,19-Apr-22,51301767845,-850.00,WOODLANDS CARE CENTRE,CARE ESTABLISHMENT,OP - City & South Locality - Cost of Care,Older People - City & South - Care,Residential Care
Cambridgeshire County Council,19-Apr-22,51301767845,-850.00,WOODLANDS CARE CENTRE,CARE ESTABLISHMENT,OP - City & South Locality - Cost of Care,Older People - City & South - Care,Residential Care
Cambridgeshire County Council,19-Apr-22,51301767845,-850.00,WOODLANDS CARE CENTRE,CARE ESTABLISHMENT,OP - City & South Locality - Cost of Care,Older People - City & South - Care,Residential Care
Cambridgeshire County Council,19-Apr-22,51301768781,-838.71,EAGLE WOOD NEUROLOGICAL CARE,CARE ESTABLISHMENT,OPMH - Hunts & Fens,Older People Mental Health Hunts,Nursing Care
Cambridgeshire County Council,08-Apr-22,51301737364,-831.59,EAST CAMBRIDGESHIRE DISTRICT COUNCIL,OTHER PUBLIC BODIES,North Angle Solar Farm,North Angle Solar Farm,Planning Permission Costs
Cambridgeshire County Council,28-Apr-22,51301772813,-825.00,METHODIST HOMES FOR THE AGED (MHA),CARE ESTABLISHMENT,OP - East Cambs Locality - Cost of Care,East Cambs - O P Team - Care,Residential Care
Cambridgeshire County Council,28-Apr-22,51301772813,-825.00,METHODIST HOMES FOR THE AGED (MHA),CARE ESTABLISHMENT,OP - East Cambs Locality - Cost of Care,East Cambs - O P Team - Care,Residential Care
Cambridgeshire County Council,28-Apr-22,51301772813,-825.00,METHODIST HOMES FOR THE AGED (MHA),CARE ESTABLISHMENT,OP - East Cambs Locality - Cost of Care,East Cambs - O P Team - Care,Residential Care
Cambridgeshire County Council,28-Apr-22,51301772813,-825.00,METHODIST HOMES FOR THE AGED (MHA),CARE ESTABLISHMENT,OP - East Cambs Locality - Cost of Care,East Cambs - O P Team - Care,Residential Care
Cambridgeshire County Council,28-Apr-22,51301772813,-825.00,METHODIST HOMES FOR THE AGED (MHA),CARE ESTABLISHMENT,OP - East Cambs Locality - Cost of Care,East Cambs - O P Team - Care,Residential Care
Cambridgeshire County Council,28-Apr-22,51301772813,-825.00,METHODIST HOMES FOR THE AGED (MHA),CARE ESTABLISHMENT,OP - East Cambs Locality - Cost of Care,East Cambs - O P Team - Care,Residential Care
Cambridgeshire County Council,28-Apr-22,51301772813,-825.00,METHODIST HOMES FOR THE AGED (MHA),CARE ESTABLISHMENT,OP - East Cambs Locality - Cost of Care,East Cambs - O P Team - Care,Residential Care
Cambridgeshire County Council,28-Apr-22,51301772813,-825.00,METHODIST HOMES FOR THE AGED (MHA),CARE ESTABLISHMENT,OP - East Cambs Locality - Cost of Care,East Cambs - O P Team - Care,Residential Care
Cambridgeshire County Council,28-Apr-22,51301772813,-825.00,METHODIST HOMES FOR THE AGED (MHA),CARE ESTABLISHMENT,OP - East Cambs Locality - Cost of Care,East Cambs - O P Team - Care,Residential Care
Cambridgeshire County Council,28-Apr-22,51301772813,-825.00,METHODIST HOMES FOR THE AGED (MHA),CARE ESTABLISHMENT,OP - East Cambs Locality - Cost of Care,East Cambs - O P Team - Care,Residential Care
Cambridgeshire County Council,28-Apr-22,51301772813,-825.00,METHODIST HOMES FOR THE AGED (MHA),CARE ESTABLISHMENT,OP - East Cambs Locality - Cost of Care,East Cambs - O P Team - Care,Residential Care
Cambridgeshire County Council,28-Apr-22,51301772813,-825.00,METHODIST HOMES FOR THE AGED (MHA),CARE ESTABLISHMENT,OP - East Cambs Locality - Cost of Care,East Cambs - O P Team - Care,Residential Care
Cambridgeshire County Council,28-Apr-22,51301772813,-825.00,METHODIST HOMES FOR THE AGED (MHA),CARE ESTABLISHMENT,OP - East Cambs Locality - Cost of Care,East Cambs - O P Team - Care,Residential Care
Cambridgeshire County Council,28-Apr-22,51301772813,-825.00,METHODIST HOMES FOR THE AGED (MHA),CARE ESTABLISHMENT,OP - East Cambs Locality - Cost of Care,East Cambs - O P Team - Care,Residential Care
Cambridgeshire County Council,28-Apr-22,51301772813,-825.00,METHODIST HOMES FOR THE AGED (MHA),CARE ESTABLISHMENT,OP - East Cambs Locality - Cost of Care,East Cambs - O P Team - Care,Residential Care
Cambridgeshire County Council,28-Apr-22,51301772813,-825.00,METHODIST HOMES FOR THE AGED (MHA),CARE ESTABLISHMENT,OP - East Cambs Locality - Cost of Care,East Cambs - O P Team - Care,Residential Care
Cambridgeshire County Council,28-Apr-22,51301772813,-825.00,METHODIST HOMES FOR THE AGED (MHA),CARE ESTABLISHMENT,OP - East Cambs Locality - Cost of Care,East Cambs - O P Team - Care,Residential Care
Cambridgeshire County Council,28-Apr-22,51301772813,-825.00,METHODIST HOMES FOR THE AGED (MHA),CARE ESTABLISHMENT,OP - East Cambs Locality - Cost of Care,East Cambs - O P Team - Care,Residential Care
Cambridgeshire County Council,28-Apr-22,51301772813,-825.00,METHODIST HOMES FOR THE AGED (MHA),CARE ESTABLISHMENT,OP - East Cambs Locality - Cost of Care,East Cambs - O P Team - Care,Residential Care
Cambridgeshire County Council,28-Apr-22,51301772813,-825.00,METHODIST HOMES FOR THE AGED (MHA),CARE ESTABLISHMENT,OP - East Cambs Locality - Cost of Care,East Cambs - O P Team - Care,Residential Care
Cambridgeshire County Council,28-Apr-22,51301772813,-825.00,METHODIST HOMES FOR THE AGED (MHA),CARE ESTABLISHMENT,OP - East Cambs Locality - Cost of Care,East Cambs - O P Team - Care,Residential Care
Cambridgeshire County Council,28-Apr-22,51301772813,-825.00,METHODIST HOMES FOR THE AGED (MHA),CARE ESTABLISHMENT,OP - East Cambs Locality - Cost of Care,East Cambs - O P Team - Care,Residential Care
Cambridgeshire County Council,28-Apr-22,51301772813,-825.00,METHODIST HOMES FOR THE AGED (MHA),CARE ESTABLISHMENT,OP - East Cambs Locality - Cost of Care,East Cambs - O P Team - Care,Residential Care
Cambridgeshire County Council,28-Apr-22,51301772813,-825.00,METHODIST HOMES FOR THE AGED (MHA),CARE ESTABLISHMENT,OP - East Cambs Locality - Cost of Care,East Cambs - O P Team - Care,Residential Care
Cambridgeshire County Council,28-Apr-22,51301772813,-825.00,METHODIST HOMES FOR THE AGED (MHA),CARE ESTABLISHMENT,OP - East Cambs Locality - Cost of Care,East Cambs - O P Team - Care,Residential Care
Cambridgeshire County Council,28-Apr-22,51301772813,-825.00,METHODIST HOMES FOR THE AGED (MHA),CARE ESTABLISHMENT,OP - East Cambs Locality - Cost of Care,East Cambs - O P Team - Care,Residential Care
Cambridgeshire County Council,28-Apr-22,51301772813,-825.00,METHODIST HOMES FOR THE AGED (MHA),CARE ESTABLISHMENT,OP - East Cambs Locality - Cost of Care,East Cambs - O P Team - Care,Residential Care
Cambridgeshire County Council,28-Apr-22,51301772813,-825.00,METHODIST HOMES FOR THE AGED (MHA),CARE ESTABLISHMENT,OP - East Cambs Locality - Cost of Care,East Cambs - O P Team - Care,Residential Care
Cambridgeshire County Council,28-Apr-22,51301772813,-825.00,METHODIST HOMES FOR THE AGED (MHA),CARE ESTABLISHMENT,OP - East Cambs Locality - Cost of Care,East Cambs - O P Team - Care,Residential Care
Cambridgeshire County Council,28-Apr-22,51301772813,-825.00,METHODIST HOMES FOR THE AGED (MHA),CARE ESTABLISHMENT,OP - East Cambs Locality - Cost of Care,East Cambs - O P Team - Care,Residential Care
Cambridgeshire County Council,28-Apr-22,51301772813,-825.00,METHODIST HOMES FOR THE AGED (MHA),CARE ESTABLISHMENT,OP - East Cambs Locality - Cost of Care,East Cambs - O P Team - Care,Residential Care
Cambridgeshire County Council,28-Apr-22,51301772813,-825.00,METHODIST HOMES FOR THE AGED (MHA),CARE ESTABLISHMENT,OP - East Cambs Locality - Cost of Care,East Cambs - O P Team - Care,Residential Care
Cambridgeshire County Council,28-Apr-22,51301772813,-825.00,METHODIST HOMES FOR THE AGED (MHA),CARE ESTABLISHMENT,OP - East Cambs Locality - Cost of Care,East Cambs - O P Team - Care,Residential Care
Cambridgeshire County Council,28-Apr-22,51301772813,-825.00,METHODIST HOMES FOR THE AGED (MHA),CARE ESTABLISHMENT,OP - East Cambs Locality - Cost of Care,East Cambs - O P Team - Care,Residential Care
Cambridgeshire County Council,28-Apr-22,51301772813,-825.00,METHODIST HOMES FOR THE AGED (MHA),CARE ESTABLISHMENT,OP - East Cambs Locality - Cost of Care,East Cambs - O P Team - Care,Residential Care
Cambridgeshire County Council,28-Apr-22,51301772813,-825.00,METHODIST HOMES FOR THE AGED (MHA),CARE ESTABLISHMENT,OP - East Cambs Locality - Cost of Care,East Cambs - O P Team - Care,Residential Care
Cambridgeshire County Council,28-Apr-22,51301772813,-825.00,METHODIST HOMES FOR THE AGED (MHA),CARE ESTABLISHMENT,OP - East Cambs Locality - Cost of Care,East Cambs - O P Team - Care,Residential Care
Cambridgeshire County Council,28-Apr-22,51301772813,-825.00,METHODIST HOMES FOR THE AGED (MHA),CARE ESTABLISHMENT,OP - East Cambs Locality - Cost of Care,East Cambs - O P Team - Care,Residential Care
Cambridgeshire County Council,28-Apr-22,51301772813,-825.00,METHODIST HOMES FOR THE AGED (MHA),CARE ESTABLISHMENT,OP - East Cambs Locality - Cost of Care,East Cambs - O P Team - Care,Residential Care
